Effective Date,Department,Supplier Name,Payment Date,Amount**,Purpose of Spend,Merchant Category,Card Transaction
Statement 20/03/2018 - 17/04/2018,Adults and Communities,Amazon Eu Amazon.Co.Uk,19/03/2018,10.19,Books - General,Miscellaneous and Specialty Retail Stores,GPC
Statement 20/03/2018 - 17/04/2018,Adults and Communities,Amazon Eu Amazon.Co.Uk,29/03/2018,10.00,General Equipment - General,Miscellaneous and Specialty Retail Stores,GPC
Statement 20/03/2018 - 17/04/2018,Adults and Communities,Amazon Eu Amazon.Co.Uk,02/04/2018,38.53,Materials - General,Miscellaneous and Specialty Retail Stores,GPC
Statement 20/03/2018 - 17/04/2018,Adults and Communities,Amazon Eu Amazon.Co.Uk,03/04/2018,29.47,Materials - General,Miscellaneous and Specialty Retail Stores,GPC
Statement 20/03/2018 - 17/04/2018,Adults and Communities,Amazon Eu Amazon.Co.Uk,03/04/2018,17.91,Materials - General,Miscellaneous and Specialty Retail Stores,GPC
Statement 20/03/2018 - 17/04/2018,Adults and Communities,Amazon Eu Amazon.Co.Uk,05/04/2018,19.98,Materials - General,Miscellaneous and Specialty Retail Stores,GPC
Statement 20/03/2018 - 17/04/2018,Adults and Communities,Amazon Eu Amazon.Co.Uk,08/04/2018,27.81,Materials - General,Miscellaneous and Specialty Retail Stores,GPC
Statement 20/03/2018 - 17/04/2018,Adults and Communities,Amazon Eu Amazon.Co.Uk,10/04/2018,59.14,Materials - General,Miscellaneous and Specialty Retail Stores,GPC
Statement 20/03/2018 - 17/04/2018,Adults and Communities,Amazon Eu Amazon.Co.Uk,02/04/2018,24.95,Other Equipment & Materials - General,Miscellaneous and Specialty Retail Stores,GPC
Statement 20/03/2018 - 17/04/2018,Adults and Communities,Amazon Eu Amazon.Co.Uk,26/03/2018,21.49,Personal Needs of Clients - General,Miscellaneous and Specialty Retail Stores,GPC
Statement 20/03/2018 - 17/04/2018,Adults and Communities,Amazon Prime,03/04/2018,7.99,Other Expenditure - General,Continuity/Subscription Merchants,GPC
Statement 20/03/2018 - 17/04/2018,Adults and Communities,Amazon Prime,10/04/2018,-7.99,Other Expenditure - General,Continuity/Subscription Merchants,GPC
Statement 20/03/2018 - 17/04/2018,Adults and Communities,Amazon Prime,19/03/2018,-7.99,Other Expenditure - General,Continuity/Subscription Merchants,GPC
Statement 20/03/2018 - 17/04/2018,Adults and Communities,Amazon Prime Member Fee A,03/04/2018,-6.66,Other Expenditure - General,Continuity/Subscription Merchants,GPC
Statement 20/03/2018 - 17/04/2018,Adults and Communities,Amazon Prime Member Fee A,26/03/2018,7.99,Other Expenditure - General,Continuity/Subscription Merchants,GPC
Statement 20/03/2018 - 17/04/2018,Adults and Communities,Amazon Svcs Eu-Uk Amazon.,03/04/2018,2.74,Books - General,Book Stores,GPC
Statement 20/03/2018 - 17/04/2018,Adults and Communities,Amazon Svcs Eu-Uk Amazon.,03/04/2018,5.83,Books - General,Book Stores,GPC
Statement 20/03/2018 - 17/04/2018,Adults and Communities,Amazon Svcs Eu-Uk Amazon.,04/04/2018,3.83,Books - General,Book Stores,GPC
Statement 20/03/2018 - 17/04/2018,Adults and Communities,Amazon Svcs Eu-Uk Amazon.,04/04/2018,2.32,Books - General,Book Stores,GPC
Statement 20/03/2018 - 17/04/2018,Adults and Communities,Amazon Svcs Eu-Uk Amazon.,05/04/2018,10.99,Books - General,Book Stores,GPC
Statement 20/03/2018 - 17/04/2018,Adults and Communities,Amazon Svcs Eu-Uk Amazon.,05/04/2018,42.90,Books - General,Book Stores,GPC
Statement 20/03/2018 - 17/04/2018,Adults and Communities,Amazon Svcs Eu-Uk Amazon.,11/04/2018,7.29,Books - General,Book Stores,GPC
Statement 20/03/2018 - 17/04/2018,Adults and Communities,Amazon Svcs Eu-Uk Amazon.,13/04/2018,10.82,Books - General,Book Stores,GPC
Statement 20/03/2018 - 17/04/2018,Adults and Communities,Amazon Svcs Eu-Uk Amazon.,16/04/2018,4.99,Books - General,Book Stores,GPC
Statement 20/03/2018 - 17/04/2018,Adults and Communities,Amazon Svcs Eu-Uk Amazon.,19/03/2018,2.72,Books - General,Book Stores,GPC
Statement 20/03/2018 - 17/04/2018,Adults and Communities,Amazon Svcs Eu-Uk Amazon.,20/03/2018,1.59,Books - General,Book Stores,GPC
Statement 20/03/2018 - 17/04/2018,Adults and Communities,Amazon Svcs Eu-Uk Amazon.,20/03/2018,7.58,Books - General,Book Stores,GPC
Statement 20/03/2018 - 17/04/2018,Adults and Communities,Amazon Svcs Eu-Uk Amazon.,20/03/2018,3.53,Books - General,Book Stores,GPC
Statement 20/03/2018 - 17/04/2018,Adults and Communities,Amazon Svcs Eu-Uk Amazon.,21/03/2018,7.98,Books - General,Book Stores,GPC
Statement 20/03/2018 - 17/04/2018,Adults and Communities,Amazon Svcs Eu-Uk Amazon.,21/03/2018,8.31,Books - General,Book Stores,GPC
Statement 20/03/2018 - 17/04/2018,Adults and Communities,Amazon Svcs Eu-Uk Amazon.,21/03/2018,3.02,Books - General,Book Stores,GPC
Statement 20/03/2018 - 17/04/2018,Adults and Communities,Amazon Svcs Eu-Uk Amazon.,21/03/2018,21.92,Books - General,Book Stores,GPC
Statement 20/03/2018 - 17/04/2018,Adults and Communities,Amazon Svcs Eu-Uk Amazon.,27/03/2018,14.42,Books - General,Book Stores,GPC
Statement 20/03/2018 - 17/04/2018,Adults and Communities,Amazon Svcs Eu-Uk Amazon.,28/03/2018,124.47,Books - General,Book Stores,GPC
Statement 20/03/2018 - 17/04/2018,Adults and Communities,Amazon Svcs Eu-Uk Amazon.,28/03/2018,194.51,Books - General,Book Stores,GPC
Statement 20/03/2018 - 17/04/2018,Adults and Communities,Amazon Svcs Eu-Uk Amazon.,29/03/2018,64.77,Books - General,Book Stores,GPC
Statement 20/03/2018 - 17/04/2018,Adults and Communities,Amazon Svcs Eu-Uk Amazon.,29/03/2018,12.00,Books - General,Book Stores,GPC
Statement 20/03/2018 - 17/04/2018,Adults and Communities,Amazon Svcs Eu-Uk Amazon.,20/03/2018,79.98,Cleaning Materials - General,Book Stores,GPC
Statement 20/03/2018 - 17/04/2018,Adults and Communities,Amazon Svcs Eu-Uk Amazon.,20/03/2018,79.98,Cleaning Materials - General,Book Stores,GPC
Statement 20/03/2018 - 17/04/2018,Adults and Communities,Amazon Svcs Eu-Uk Amazon.,27/03/2018,138.00,Cleaning Materials - General,Book Stores,GPC
Statement 20/03/2018 - 17/04/2018,Adults and Communities,Amazon Svcs Eu-Uk Amazon.,07/04/2018,2.50,Display/Conservn/Exhibitions - Exhibitions,Book Stores,GPC
Statement 20/03/2018 - 17/04/2018,Adults and Communities,Amazon Svcs Eu-Uk Amazon.,18/03/2018,19.57,Display/Conservn/Exhibitions - Exhibitions,Book Stores,GPC
Statement 20/03/2018 - 17/04/2018,Adults and Communities,Amazon Svcs Eu-Uk Amazon.,22/03/2018,24.99,Display/Conservn/Exhibitions - Exhibitions,Book Stores,GPC
Statement 20/03/2018 - 17/04/2018,Adults and Communities,Amazon Svcs Eu-Uk Amazon.,22/03/2018,11.02,Display/Conservn/Exhibitions - Exhibitions,Book Stores,GPC
Statement 20/03/2018 - 17/04/2018,Adults and Communities,Amazon Svcs Eu-Uk Amazon.,23/03/2018,8.86,Display/Conservn/Exhibitions - Exhibitions,Book Stores,GPC
Statement 20/03/2018 - 17/04/2018,Adults and Communities,Amazon Svcs Eu-Uk Amazon.,26/03/2018,84.74,Display/Conservn/Exhibitions - Exhibitions,Book Stores,GPC
Statement 20/03/2018 - 17/04/2018,Adults and Communities,Amazon Svcs Eu-Uk Amazon.,23/03/2018,48.40,Educational Visits - General,Book Stores,GPC
Statement 20/03/2018 - 17/04/2018,Adults and Communities,Amazon Svcs Eu-Uk Amazon.,05/04/2018,34.02,General Equipment - General,Book Stores,GPC
Statement 20/03/2018 - 17/04/2018,Adults and Communities,Amazon Svcs Eu-Uk Amazon.,20/03/2018,51.80,Materials - General,Book Stores,GPC
Statement 20/03/2018 - 17/04/2018,Adults and Communities,Amazon Svcs Eu-Uk Amazon.,05/04/2018,45.60,Operational Equipment - DDA,Book Stores,GPC
Statement 20/03/2018 - 17/04/2018,Adults and Communities,Amazon Svcs Eu-Uk Amazon.,16/04/2018,3.21,Operational Equipment - General,Book Stores,GPC
Statement 20/03/2018 - 17/04/2018,Adults and Communities,Amazon Svcs Eu-Uk Amazon.,28/03/2018,23.08,Operational Equipment - General,Book Stores,GPC
Statement 20/03/2018 - 17/04/2018,Adults and Communities,Amazon Svcs Eu-Uk Amazon.,29/03/2018,25.63,Other Equipment & Materials - General,Book Stores,GPC
Statement 20/03/2018 - 17/04/2018,Adults and Communities,Amazon Svcs Eu-Uk Amazon.,19/03/2018,26.49,Other Expenditure - General,Book Stores,GPC
Statement 20/03/2018 - 17/04/2018,Adults and Communities,Amazon Svcs Eu-Uk Amazon.,22/03/2018,83.24,Other Expenditure - General,Book Stores,GPC
Statement 20/03/2018 - 17/04/2018,Adults and Communities,Amazon Svcs Eu-Uk Amazon.,10/04/2018,29.98,Provisions - General,Book Stores,GPC
Statement 20/03/2018 - 17/04/2018,Adults and Communities,Amazon Svcs Eu-Uk Amazon.,11/04/2018,11.24,Stationery - General,Book Stores,GPC
Statement 20/03/2018 - 17/04/2018,Adults and Communities,Amazon Svcs Eu-Uk Amazon.,16/04/2018,8.47,Stationery - General,Book Stores,GPC
Statement 20/03/2018 - 17/04/2018,Adults and Communities,Amazon Svcs Eu-Uk Amazon.,19/03/2018,7.40,Stationery - General,Book Stores,GPC
Statement 20/03/2018 - 17/04/2018,Adults and Communities,Amazon Svcs Eu-Uk Amazon.,20/03/2018,9.75,Stationery - General,Book Stores,GPC
Statement 20/03/2018 - 17/04/2018,Adults and Communities,Amazon Svcs Eu-Uk Amazon.,20/03/2018,4.12,Stationery - General,Book Stores,GPC
Statement 20/03/2018 - 17/04/2018,Adults and Communities,Amazon Svcs Eu-Uk Amazon.,28/03/2018,20.99,Stationery - General,Book Stores,GPC
Statement 20/03/2018 - 17/04/2018,Adults and Communities,Amazon UK Marketplace,05/04/2018,21.72,Books - General,Book Stores,GPC
Statement 20/03/2018 - 17/04/2018,Adults and Communities,Amazon UK Marketplace,06/04/2018,21.96,Books - General,Book Stores,GPC
Statement 20/03/2018 - 17/04/2018,Adults and Communities,Amazon UK Marketplace,06/04/2018,2.91,Books - General,Book Stores,GPC
Statement 20/03/2018 - 17/04/2018,Adults and Communities,Amazon UK Marketplace,09/04/2018,30.11,Books - General,Book Stores,GPC
Statement 20/03/2018 - 17/04/2018,Adults and Communities,Amazon UK Marketplace,11/04/2018,12.99,Books - General,Book Stores,GPC
Statement 20/03/2018 - 17/04/2018,Adults and Communities,Amazon UK Marketplace,15/04/2018,22.98,Books - General,Book Stores,GPC
Statement 20/03/2018 - 17/04/2018,Adults and Communities,Amazon UK Marketplace,05/04/2018,17.98,Display/Conservn/Exhibitions - Conservation,Book Stores,GPC
Statement 20/03/2018 - 17/04/2018,Adults and Communities,Amazon UK Marketplace,20/03/2018,1.98,Materials - General,Book Stores,GPC
Statement 20/03/2018 - 17/04/2018,Adults and Communities,Amazon UK Marketplace,05/04/2018,6.99,Operational Equipment - General,Book Stores,GPC
Statement 20/03/2018 - 17/04/2018,Adults and Communities,Amazon UK Marketplace,11/04/2018,21.66,Other Equipment & Materials - General,Book Stores,GPC
Statement 20/03/2018 - 17/04/2018,Adults and Communities,Amazon UK Marketplace,11/04/2018,11.98,Other Equipment & Materials - General,Book Stores,GPC
Statement 20/03/2018 - 17/04/2018,Adults and Communities,Amazon UK Marketplace,15/04/2018,14.78,Other Equipment & Materials - General,Book Stores,GPC
Statement 20/03/2018 - 17/04/2018,Adults and Communities,Amazon UK Marketplace,22/03/2018,19.20,Other Equipment & Materials - General,Book Stores,GPC
Statement 20/03/2018 - 17/04/2018,Adults and Communities,Amazon UK Marketplace,22/03/2018,36.48,Other Expenditure - General,Book Stores,GPC
Statement 20/03/2018 - 17/04/2018,Adults and Communities,Amazon UK Marketplace,27/03/2018,56.67,Other Expenditure - General,Book Stores,GPC
Statement 20/03/2018 - 17/04/2018,Adults and Communities,Amazon UK Marketplace,12/04/2018,28.50,Stationery - General,Book Stores,GPC
Statement 20/03/2018 - 17/04/2018,Adults and Communities,Amazon UK Marketplace,19/03/2018,2.19,Stationery - General,Book Stores,GPC
Statement 20/03/2018 - 17/04/2018,Adults and Communities,Amazon UK Marketplace,20/03/2018,3.33,Stationery - General,Book Stores,GPC
Statement 20/03/2018 - 17/04/2018,Adults and Communities,Amazon UK Marketplace,20/03/2018,4.54,Stationery - General,Book Stores,GPC
Statement 20/03/2018 - 17/04/2018,Adults and Communities,Amazon UK Retail,02/04/2018,113.25,Books - General,Direct Marketers - Other,GPC
Statement 20/03/2018 - 17/04/2018,Adults and Communities,Amazon UK Retail,02/04/2018,38.98,Books - General,Direct Marketers - Other,GPC
Statement 20/03/2018 - 17/04/2018,Adults and Communities,Amazon UK Retail,20/03/2018,25.81,Books - General,Direct Marketers - Other,GPC
Statement 20/03/2018 - 17/04/2018,Adults and Communities,Amazon UK Retail,20/03/2018,30.57,Books - General,Direct Marketers - Other,GPC
Statement 20/03/2018 - 17/04/2018,Adults and Communities,Amazon UK Retail,20/03/2018,40.76,Books - General,Direct Marketers - Other,GPC
Statement 20/03/2018 - 17/04/2018,Adults and Communities,Amazon UK Retail,20/03/2018,48.88,Books - General,Direct Marketers - Other,GPC
Statement 20/03/2018 - 17/04/2018,Adults and Communities,Amazon UK Retail,20/03/2018,21.52,Books - General,Direct Marketers - Other,GPC
Statement 20/03/2018 - 17/04/2018,Adults and Communities,Amazon UK Retail,20/03/2018,6.11,Books - General,Direct Marketers - Other,GPC
Statement 20/03/2018 - 17/04/2018,Adults and Communities,Amazon UK Retail,28/03/2018,45.00,Books - General,Direct Marketers - Other,GPC
Statement 20/03/2018 - 17/04/2018,Adults and Communities,Amazon UK Retail,28/03/2018,39.35,Books - General,Direct Marketers - Other,GPC
Statement 20/03/2018 - 17/04/2018,Adults and Communities,Amazon UK Retail,28/03/2018,21.14,Books - General,Direct Marketers - Other,GPC
Statement 20/03/2018 - 17/04/2018,Adults and Communities,Amazon UK Retail,12/04/2018,46.18,Client/Volunteers - General,Direct Marketers - Other,GPC
Statement 20/03/2018 - 17/04/2018,Adults and Communities,Amazon UK Retail,24/03/2018,13.77,IT Equipment - General,Direct Marketers - Other,GPC
Statement 20/03/2018 - 17/04/2018,Adults and Communities,Amazon UK Retail,25/03/2018,13.72,Operational Equipment - General,Direct Marketers - Other,GPC
Statement 20/03/2018 - 17/04/2018,Adults and Communities,Amazon UK Retail,13/04/2018,65.10,Other Expenditure - General,Direct Marketers - Other,GPC
Statement 20/03/2018 - 17/04/2018,Adults and Communities,Amazon UK Retail,14/04/2018,64.31,Other Expenditure - General,Direct Marketers - Other,GPC
Statement 20/03/2018 - 17/04/2018,Adults and Communities,Amazon UK Retail,15/04/2018,3.69,Other Expenditure - General,Direct Marketers - Other,GPC
Statement 20/03/2018 - 17/04/2018,Adults and Communities,Amazon UK Retail,25/03/2018,20.85,Other Expenditure - General,Direct Marketers - Other,GPC
Statement 20/03/2018 - 17/04/2018,Adults and Communities,Amazon UK Retail,28/03/2018,84.88,Other Expenditure - General,Direct Marketers - Other,GPC
Statement 20/03/2018 - 17/04/2018,Adults and Communities,Amazon UK Retail,06/04/2018,43.74,Stationery - General,Direct Marketers - Other,GPC
Statement 20/03/2018 - 17/04/2018,Adults and Communities,Amazon UK Retail,09/04/2018,6.66,Stationery - General,Direct Marketers - Other,GPC
Statement 20/03/2018 - 17/04/2018,Adults and Communities,Amazon UK Retail,12/04/2018,14.98,Stationery - General,Direct Marketers - Other,GPC
Statement 20/03/2018 - 17/04/2018,Adults and Communities,Amazon UK Retail,27/03/2018,11.04,Stationery - General,Direct Marketers - Other,GPC
Statement 20/03/2018 - 17/04/2018,Adults and Communities,Amazon UK Retail,28/03/2018,18.16,Stationery - General,Direct Marketers - Other,GPC
Statement 20/03/2018 - 17/04/2018,Adults and Communities,Argos Retail Group,09/04/2018,61.26,Stationery - General,Discount Stores,GPC
Statement 20/03/2018 - 17/04/2018,Adults and Communities,Asda George Com Leeds,03/04/2018,-30.00,Materials - General,"Grocery Stores, Supermarkets",GPC
Statement 20/03/2018 - 17/04/2018,Adults and Communities,Asda George Com Leeds,27/03/2018,175.00,Other Equipment & Materials - General,"Grocery Stores, Supermarkets",GPC
Statement 20/03/2018 - 17/04/2018,Adults and Communities,Asda Stores 4477,21/03/2018,4.10,Other Expenditure - General,"Grocery Stores, Supermarkets",GPC
Statement 20/03/2018 - 17/04/2018,Adults and Communities,Asda Stores 4477,26/03/2018,35.61,Other Expenditure - General,"Grocery Stores, Supermarkets",GPC
Statement 20/03/2018 - 17/04/2018,Adults and Communities,Asda Superstore,22/03/2018,19.93,Materials - General,"Grocery Stores, Supermarkets",GPC
Statement 20/03/2018 - 17/04/2018,Adults and Communities,Asda Superstore,22/03/2018,2.60,Materials - General,"Grocery Stores, Supermarkets",GPC
Statement 20/03/2018 - 17/04/2018,Adults and Communities,B & Q 1043,12/04/2018,32.40,R & M of Buildings - General,"Building Materials, Lumber Stores",GPC
Statement 20/03/2018 - 17/04/2018,Adults and Communities,B&m Retail Ltd,28/03/2018,4.56,Materials - General,Discount Stores,GPC
Statement 20/03/2018 - 17/04/2018,Adults and Communities,B&m Retail Ltd,27/03/2018,29.97,Other Expenditure - General,Discount Stores,GPC
Statement 20/03/2018 - 17/04/2018,Adults and Communities,B&m Retail Ltd,06/04/2018,35.94,Provisions - General,Discount Stores,GPC
Statement 20/03/2018 - 17/04/2018,Adults and Communities,B&m Retail Ltd,12/04/2018,2.49,Provisions - General,Discount Stores,GPC
Statement 20/03/2018 - 17/04/2018,Adults and Communities,B&q Direct,06/04/2018,99.99,Display/Conservn/Exhibitions - Exhibitions,"Building Materials, Lumber Stores",GPC
Statement 20/03/2018 - 17/04/2018,Adults and Communities,Baker Ross Ltd,27/03/2018,67.94,Display/Conservn/Exhibitions - Exhibitions,"Artist Supply Stores, Craft Shops",GPC
Statement 20/03/2018 - 17/04/2018,Adults and Communities,Bc.Basecamp 2 2997305,01/04/2018,14.28,IT Equipment - Licences,Membership Organizations-Not Elsewhere Classified,GPC
Statement 20/03/2018 - 17/04/2018,Adults and Communities,Blakemore/tates Limite,29/03/2018,8.00,Cleaning Materials - General,"Grocery Stores, Supermarkets",GPC
Statement 20/03/2018 - 17/04/2018,Adults and Communities,Cafe 68 At York Castle,12/04/2018,6.20,Other Expenditure - General,"Eating Places, Restaurants",GPC
Statement 20/03/2018 - 17/04/2018,Adults and Communities,Cartridge Save,09/04/2018,78.31,Stationery - General,"Stationary, Office Supplies, Printing and Writing",GPC
Statement 20/03/2018 - 17/04/2018,Adults and Communities,Central Eng Coop,09/04/2018,12.00,Cleaning Materials - General,Department Stores,GPC
Statement 20/03/2018 - 17/04/2018,Adults and Communities,Central Eng Coop,20/03/2018,12.71,Materials - General,Department Stores,GPC
Statement 20/03/2018 - 17/04/2018,Adults and Communities,Central Eng Coop,21/03/2018,3.78,Materials - General,Department Stores,GPC
Statement 20/03/2018 - 17/04/2018,Adults and Communities,Central Eng Coop,01/04/2018,20.60,Provisions - General,Department Stores,GPC
Statement 20/03/2018 - 17/04/2018,Adults and Communities,Central Eng Coop,02/04/2018,6.78,Provisions - General,Department Stores,GPC
Statement 20/03/2018 - 17/04/2018,Adults and Communities,Central Eng Coop,14/04/2018,63.66,Provisions - General,Department Stores,GPC
Statement 20/03/2018 - 17/04/2018,Adults and Communities,Central Eng Coop,14/04/2018,3.70,Provisions - General,Department Stores,GPC
Statement 20/03/2018 - 17/04/2018,Adults and Communities,Charnwood Borough Council,10/04/2018,6.00,Casual/Essential - General,Automobile Parking Lots and Garages,GPC
Statement 20/03/2018 - 17/04/2018,Adults and Communities,Charnwood Borough Council,19/03/2018,4.90,Casual/Essential - General,Automobile Parking Lots and Garages,GPC
Statement 20/03/2018 - 17/04/2018,Adults and Communities,Charnwood Borough Council,21/03/2018,6.00,Casual/Essential - General,Automobile Parking Lots and Garages,GPC
Statement 20/03/2018 - 17/04/2018,Adults and Communities,Charnwood Borough Council,27/03/2018,1.33,Casual/Essential - General,Automobile Parking Lots and Garages,GPC
Statement 20/03/2018 - 17/04/2018,Adults and Communities,Charnwood Borough Council,27/03/2018,6.00,Casual/Essential - General,Automobile Parking Lots and Garages,GPC
Statement 20/03/2018 - 17/04/2018,Adults and Communities,Charnwood Borough Council,21/03/2018,5.00,Other Equipment & Materials - General,Automobile Parking Lots and Garages,GPC
Statement 20/03/2018 - 17/04/2018,Adults and Communities,Clintons 964,27/03/2018,5.47,Other Equipment & Materials - General,"Gift, Card, Novelty, and Souvenir Shops",GPC
Statement 20/03/2018 - 17/04/2018,Adults and Communities,Complete Care Shop,10/04/2018,15.85,Materials - General,Miscellaneous General Merchandise Stores,GPC
Statement 20/03/2018 - 17/04/2018,Adults and Communities,Conservation.Co.Uk,27/03/2018,62.40,Other Equipment & Materials - General,"Stationary, Office Supplies, Printing and Writing",GPC
Statement 20/03/2018 - 17/04/2018,Adults and Communities,Crescent Hotel,09/04/2018,55.00,Subsistence - General,"Lodging-Hotels, Motels, Resorts",GPC
Statement 20/03/2018 - 17/04/2018,Adults and Communities,Crossbow Education,19/03/2018,44.05,Training Expenses - General,Correspondence Schools,GPC
Statement 20/03/2018 - 17/04/2018,Adults and Communities,Davpac,21/03/2018,25.84,General Equipment - General,Miscellaneous General Merchandise Stores,GPC
Statement 20/03/2018 - 17/04/2018,Adults and Communities,Daybreak Services,20/03/2018,20.33,Other Equipment & Materials - General,"Grocery Stores, Supermarkets",GPC
Statement 20/03/2018 - 17/04/2018,Adults and Communities,Decathlon UK Vad,27/03/2018,233.25,Protective Clothing & Uniforms - General,Sporting Goods Stores,GPC
Statement 20/03/2018 - 17/04/2018,Adults and Communities,Dronfield Sst,12/04/2018,21.80,Public Transport -  Staff - General,Passenger Railways,GPC
Statement 20/03/2018 - 17/04/2018,Adults and Communities,Dvla Vehicle Tax,12/04/2018,252.50,Road Licences - General,Government Services-Not Elsewhere Classified,GPC
Statement 20/03/2018 - 17/04/2018,Adults and Communities,Dvla Vehicle Tax,12/04/2018,252.50,Road Licences - General,Government Services-Not Elsewhere Classified,GPC
Statement 20/03/2018 - 17/04/2018,Adults and Communities,Dvla Vehicle Tax,23/03/2018,242.50,Road Licences - General,Government Services-Not Elsewhere Classified,GPC
Statement 20/03/2018 - 17/04/2018,Adults and Communities,East Midlands Trai,12/04/2018,9.50,Casual/Essential - General,Passenger Railways,GPC
Statement 20/03/2018 - 17/04/2018,Adults and Communities,East Midlands Trai,21/03/2018,9.50,Casual/Essential - General,Passenger Railways,GPC
Statement 20/03/2018 - 17/04/2018,Adults and Communities,East Midlands Trains,09/04/2018,85.70,Casual/Essential - General,Passenger Railways,GPC
Statement 20/03/2018 - 17/04/2018,Adults and Communities,East Midlands Trains,12/04/2018,63.50,Casual/Essential - General,Passenger Railways,GPC
Statement 20/03/2018 - 17/04/2018,Adults and Communities,East Midlands Trains,05/04/2018,116.80,Public Transport -  Staff - General,Passenger Railways,GPC
Statement 20/03/2018 - 17/04/2018,Adults and Communities,East Midlands Trains,12/04/2018,-28.60,Public Transport -  Staff - General,Passenger Railways,GPC
Statement 20/03/2018 - 17/04/2018,Adults and Communities,East Midlands Trains,12/04/2018,-38.60,Public Transport -  Staff - General,Passenger Railways,GPC
Statement 20/03/2018 - 17/04/2018,Adults and Communities,East Midlands Trains,12/04/2018,-28.60,Public Transport -  Staff - General,Passenger Railways,GPC
Statement 20/03/2018 - 17/04/2018,Adults and Communities,Eb *digital Technologi,10/04/2018,11.67,Other Equipment & Materials - General,Business Services-Not Elsewhere Classified,GPC
Statement 20/03/2018 - 17/04/2018,Adults and Communities,Eb *plethora-Whats In,04/04/2018,40.00,Conference - General,Business Services-Not Elsewhere Classified,GPC
Statement 20/03/2018 - 17/04/2018,Adults and Communities,Elior@qmc Restaurant,06/04/2018,5.67,Personal Needs of Clients - General,Caterers,GPC
Statement 20/03/2018 - 17/04/2018,Adults and Communities,Euroffice.Co.Uk,19/03/2018,92.70,Furniture - General,"Stationery, Office, and School Supply Stores",GPC
Statement 20/03/2018 - 17/04/2018,Adults and Communities,Euroffice.Co.Uk,19/03/2018,416.67,Furniture - General,"Stationery, Office, and School Supply Stores",GPC
Statement 20/03/2018 - 17/04/2018,Adults and Communities,Euroffice.Co.Uk,20/03/2018,436.60,Furniture - General,"Stationery, Office, and School Supply Stores",GPC
Statement 20/03/2018 - 17/04/2018,Adults and Communities,Euroffice.Co.Uk,20/03/2018,500.00,Stationery - General,"Stationery, Office, and School Supply Stores",GPC
Statement 20/03/2018 - 17/04/2018,Adults and Communities,Euroffice.Co.Uk,20/03/2018,51.21,Stationery - General,"Stationery, Office, and School Supply Stores",GPC
Statement 20/03/2018 - 17/04/2018,Adults and Communities,Facebk Yehjqfsjf2,31/03/2018,8.56,Printing - General,Advertising Services,GPC
Statement 20/03/2018 - 17/04/2018,Adults and Communities,Fast Key Services Limi,20/03/2018,39.03,General Equipment - General,Business Services-Not Elsewhere Classified,GPC
Statement 20/03/2018 - 17/04/2018,Adults and Communities,Fast Key Services Limi,28/03/2018,13.24,General Equipment - General,Business Services-Not Elsewhere Classified,GPC
Statement 20/03/2018 - 17/04/2018,Adults and Communities,Fast Key Services Limi,19/03/2018,13.23,Other Equipment & Materials - General,Business Services-Not Elsewhere Classified,GPC
Statement 20/03/2018 - 17/04/2018,Adults and Communities,Fast Key Services Limi,29/03/2018,13.24,Other Equipment & Materials - General,Business Services-Not Elsewhere Classified,GPC
Statement 20/03/2018 - 17/04/2018,Adults and Communities,Fast Key Services Limi,16/04/2018,6.05,Other Expenditure - General,Business Services-Not Elsewhere Classified,GPC
Statement 20/03/2018 - 17/04/2018,Adults and Communities,Fast Key Services Limi,19/03/2018,6.04,Other Expenditure - General,Business Services-Not Elsewhere Classified,GPC
Statement 20/03/2018 - 17/04/2018,Adults and Communities,Grays Kitchen,27/03/2018,10.10,Other Expenditure - General,"Eating Places, Restaurants",GPC
Statement 20/03/2018 - 17/04/2018,Adults and Communities,Grays Kitchen,28/03/2018,12.45,Other Expenditure - General,"Eating Places, Restaurants",GPC
Statement 20/03/2018 - 17/04/2018,Adults and Communities,Group For Educatio,13/04/2018,110.00,Other Equipment & Materials - General,Charitable and Social Service Organizations,GPC
Statement 20/03/2018 - 17/04/2018,Adults and Communities,Handset Solutions,23/03/2018,16.20,Operational Equipment - DDA,Telecommunication Equipment Including Telephone Sa,GPC
Statement 20/03/2018 - 17/04/2018,Adults and Communities,Harrogate & Dis Nh,23/03/2018,697.75,Books - General,Hospitals,GPC
Statement 20/03/2018 - 17/04/2018,Adults and Communities,Hm Passport,20/03/2018,90.00,Other Expenditure - General,Government Services-Not Elsewhere Classified,GPC
Statement 20/03/2018 - 17/04/2018,Adults and Communities,Homebase Ltd,09/04/2018,17.38,Other Expenditure - General,"Building Materials, Lumber Stores",GPC
Statement 20/03/2018 - 17/04/2018,Adults and Communities,Information not available,03/04/2018,0.39,IT Equipment - Licences,Misc-Unknown,GPC
Statement 20/03/2018 - 17/04/2018,Adults and Communities,Kettering Borough Council,22/03/2018,6.00,Casual/Essential - General,Automobile Parking Lots and Garages,GPC
Statement 20/03/2018 - 17/04/2018,Adults and Communities,Lace Market Car Park U,16/04/2018,8.33,Public Transport -  Staff - General,Automobile Parking Lots and Garages,GPC
Statement 20/03/2018 - 17/04/2018,Adults and Communities,Lcc Catering Services,04/04/2018,4.80,Client/Volunteers - General,Government Services-Not Elsewhere Classified,GPC
Statement 20/03/2018 - 17/04/2018,Adults and Communities,Lcc Catering Services,12/04/2018,1.60,Other Expenditure - General,Government Services-Not Elsewhere Classified,GPC
Statement 20/03/2018 - 17/04/2018,Adults and Communities,Lcc Catering Services,13/04/2018,3.10,Other Expenditure - General,Government Services-Not Elsewhere Classified,GPC
Statement 20/03/2018 - 17/04/2018,Adults and Communities,Maritime Dining Room,22/03/2018,83.45,Other Expenditure - General,Fast-Food Restaurants (Quick Payment Service Pilot,GPC
Statement 20/03/2018 - 17/04/2018,Adults and Communities,Maritime Dining Room,22/03/2018,200.00,Other Expenditure - General,Fast-Food Restaurants (Quick Payment Service Pilot,GPC
Statement 20/03/2018 - 17/04/2018,Adults and Communities,Ncp Limited,04/04/2018,13.00,Casual/Essential - General,Automobile Parking Lots and Garages,GPC
Statement 20/03/2018 - 17/04/2018,Adults and Communities,Ncp Limited,19/03/2018,4.17,Casual/Essential - General,Automobile Parking Lots and Garages,GPC
Statement 20/03/2018 - 17/04/2018,Adults and Communities,Ncp Limited,19/03/2018,4.33,Public Transport -  Staff - General,Automobile Parking Lots and Garages,GPC
Statement 20/03/2018 - 17/04/2018,Adults and Communities,Ncp Limited,27/03/2018,4.33,Public Transport -  Staff - General,Automobile Parking Lots and Garages,GPC
Statement 20/03/2018 - 17/04/2018,Adults and Communities,Ncp Ringo M Offst,06/04/2018,2.17,Public Transport -  Staff - General,Automobile Parking Lots and Garages,GPC
Statement 20/03/2018 - 17/04/2018,Adults and Communities,Nottingham Contemporar,16/04/2018,7.75,Materials - General,Art Dealers and Galleries,GPC
Statement 20/03/2018 - 17/04/2018,Adults and Communities,Ocado Ltd.,02/04/2018,138.68,Provisions - General,"Miscellaneous Food Stores-Convenience Stores, Mark",GPC
Statement 20/03/2018 - 17/04/2018,Adults and Communities,Ocado Ltd.,05/04/2018,10.99,Provisions - General,"Miscellaneous Food Stores-Convenience Stores, Mark",GPC
Statement 20/03/2018 - 17/04/2018,Adults and Communities,Ocado Ltd.,06/04/2018,104.39,Provisions - General,"Miscellaneous Food Stores-Convenience Stores, Mark",GPC
Statement 20/03/2018 - 17/04/2018,Adults and Communities,Ocado Ltd.,09/04/2018,129.34,Provisions - General,"Miscellaneous Food Stores-Convenience Stores, Mark",GPC
Statement 20/03/2018 - 17/04/2018,Adults and Communities,Ocado Ltd.,13/04/2018,126.46,Provisions - General,"Miscellaneous Food Stores-Convenience Stores, Mark",GPC
Statement 20/03/2018 - 17/04/2018,Adults and Communities,Ocado Ltd.,19/03/2018,84.04,Provisions - General,"Miscellaneous Food Stores-Convenience Stores, Mark",GPC
Statement 20/03/2018 - 17/04/2018,Adults and Communities,Ocado Ltd.,22/03/2018,99.81,Provisions - General,"Miscellaneous Food Stores-Convenience Stores, Mark",GPC
Statement 20/03/2018 - 17/04/2018,Adults and Communities,Ocado Ltd.,26/03/2018,105.24,Provisions - General,"Miscellaneous Food Stores-Convenience Stores, Mark",GPC
Statement 20/03/2018 - 17/04/2018,Adults and Communities,Ocado Ltd.,29/03/2018,120.05,Provisions - General,"Miscellaneous Food Stores-Convenience Stores, Mark",GPC
Statement 20/03/2018 - 17/04/2018,Adults and Communities,Parking Payment: 29,06/04/2018,2.60,Personal Needs of Clients - General,Professional Services-Not Elsewhere Classified,GPC
Statement 20/03/2018 - 17/04/2018,Adults and Communities,Paypal *crellinghar,21/03/2018,95.05,Other Equipment & Materials - General,Laboratory/Medical/Dental/Ophthalmic Hospital Equi,GPC
Statement 20/03/2018 - 17/04/2018,Adults and Communities,Paypal *crellinghar,23/03/2018,9.50,Other Equipment & Materials - General,Laboratory/Medical/Dental/Ophthalmic Hospital Equi,GPC
Statement 20/03/2018 - 17/04/2018,Adults and Communities,Paypal *daegrad,13/04/2018,13.98,Other Equipment & Materials - General,Professional Services-Not Elsewhere Classified,GPC
Statement 20/03/2018 - 17/04/2018,Adults and Communities,Paypal *getdressedf,10/04/2018,32.03,Other Equipment & Materials - General,Durable Goods Not Elsewhere Classified,GPC
Statement 20/03/2018 - 17/04/2018,Adults and Communities,Paypal *hotdealsbay,20/03/2018,12.96,General Equipment - General,Miscellaneous House Furnishing Specialty Shops,GPC
Statement 20/03/2018 - 17/04/2018,Adults and Communities,Paypal *maddist,23/03/2018,7.56,Other Equipment & Materials - General,Children's and Infants' Wear Stores,GPC
Statement 20/03/2018 - 17/04/2018,Adults and Communities,Paypal *musicmagpie,19/03/2018,35.48,Display/Conservn/Exhibitions - Exhibitions,Record Shops,GPC
Statement 20/03/2018 - 17/04/2018,Adults and Communities,Plantabox.Co.Uk,22/03/2018,96.63,Other Expenditure - General,"Gift, Card, Novelty, and Souvenir Shops",GPC
Statement 20/03/2018 - 17/04/2018,Adults and Communities,Post Office Counter,28/03/2018,9.49,Postal Services - General,Postage Stamps,GPC
Statement 20/03/2018 - 17/04/2018,Adults and Communities,Post Office Counter,26/03/2018,18.45,Printing - General,Postage Stamps,GPC
Statement 20/03/2018 - 17/04/2018,Adults and Communities,Post Office Shop,16/03/2018,60.57,Postal Services - General,Postage Stamps,GPC
Statement 20/03/2018 - 17/04/2018,Adults and Communities,Post Office Shop,16/03/2018,58.49,Postal Services - General,Postage Stamps,GPC
Statement 20/03/2018 - 17/04/2018,Adults and Communities,Poundland Ltd 1142,11/04/2018,4.00,Materials - General,Discount Stores,GPC
Statement 20/03/2018 - 17/04/2018,Adults and Communities,Poundstretcher 791,05/04/2018,51.50,Other Expenditure - General,"Drapery, Window Coverings, and Upholstery Stores",GPC
Statement 20/03/2018 - 17/04/2018,Adults and Communities,Poundstretcher 791,26/03/2018,47.00,Other Expenditure - General,"Drapery, Window Coverings, and Upholstery Stores",GPC
Statement 20/03/2018 - 17/04/2018,Adults and Communities,Poundstretcher 791,28/03/2018,52.00,Other Expenditure - General,"Drapery, Window Coverings, and Upholstery Stores",GPC
Statement 20/03/2018 - 17/04/2018,Adults and Communities,Poundstretcher 791,30/03/2018,59.92,Other Expenditure - General,"Drapery, Window Coverings, and Upholstery Stores",GPC
Statement 20/03/2018 - 17/04/2018,Adults and Communities,Pp*breakescape,06/04/2018,50.00,Materials - General,Miscellaneous and Specialty Retail Stores,GPC
Statement 20/03/2018 - 17/04/2018,Adults and Communities,Premier Catering Equip,19/03/2018,44.00,Other Expenditure - General,Electrical Parts and Equipment,GPC
Statement 20/03/2018 - 17/04/2018,Adults and Communities,Ps Glass Fittings,20/03/2018,38.80,Aids & Adaptations - Minor Adaptations,Computer and Data Processing Services,GPC
Statement 20/03/2018 - 17/04/2018,Adults and Communities,Queensgate,10/04/2018,4.17,Public Transport -  Staff - General,Automobile Parking Lots and Garages,GPC
Statement 20/03/2018 - 17/04/2018,Adults and Communities,Rowen And Wren,19/03/2018,191.90,Display/Conservn/Exhibitions - Exhibitions,"Furniture, Home Furnishings and Equipment Stores,",GPC
Statement 20/03/2018 - 17/04/2018,Adults and Communities,Royal Mail,21/03/2018,509.00,Postal Services - General,Postage Stamps,GPC
Statement 20/03/2018 - 17/04/2018,Adults and Communities,Royal Mail Online Shop,28/03/2018,-56.00,Postal Services - General,Postage Stamps,GPC
Statement 20/03/2018 - 17/04/2018,Adults and Communities,Ryman,10/04/2018,6.65,Stationery - General,"Stationery, Office, and School Supply Stores",GPC
Statement 20/03/2018 - 17/04/2018,Adults and Communities,Sainsburys Local,13/04/2018,6.30,Materials - General,"Grocery Stores, Supermarkets",GPC
Statement 20/03/2018 - 17/04/2018,Adults and Communities,Sainsburys Local,29/03/2018,6.60,Materials - General,"Grocery Stores, Supermarkets",GPC
Statement 20/03/2018 - 17/04/2018,Adults and Communities,Sainsburys S/mkts,03/04/2018,13.10,Display/Conservn/Exhibitions - Exhibitions,"Grocery Stores, Supermarkets",GPC
Statement 20/03/2018 - 17/04/2018,Adults and Communities,Sainsburys S/mkts,12/04/2018,36.90,Materials - General,"Grocery Stores, Supermarkets",GPC
Statement 20/03/2018 - 17/04/2018,Adults and Communities,Sainsburys S/mkts,02/04/2018,7.50,Other Expenditure - General,"Grocery Stores, Supermarkets",GPC
Statement 20/03/2018 - 17/04/2018,Adults and Communities,Sainsburys S/mkts,06/04/2018,11.50,Other Expenditure - General,"Grocery Stores, Supermarkets",GPC
Statement 20/03/2018 - 17/04/2018,Adults and Communities,Spares Supply Company,05/04/2018,20.00,R & M of Buildings - General,Electrical Parts and Equipment,GPC
Statement 20/03/2018 - 17/04/2018,Adults and Communities,St John Ambulance,22/03/2018,135.00,Other Services - General,Charitable and Social Service Organizations,GPC
Statement 20/03/2018 - 17/04/2018,Adults and Communities,Stamps Direct Ltd,26/03/2018,7.04,Stationery - General,"Stationery, Office, and School Supply Stores",GPC
Statement 20/03/2018 - 17/04/2018,Adults and Communities,Sugar & Ice,10/04/2018,128.00,Other Equipment & Materials - General,Miscellaneous and Specialty Retail Stores,GPC
Statement 20/03/2018 - 17/04/2018,Adults and Communities,Surveymonkey,12/04/2018,24.17,IT Equipment - Licences,Computer and Data Processing Services,GPC
Statement 20/03/2018 - 17/04/2018,Adults and Communities,Tesco Store 2846,06/04/2018,236.98,Provisions - General,"Grocery Stores, Supermarkets",GPC
Statement 20/03/2018 - 17/04/2018,Adults and Communities,Tesco Store 2846,07/04/2018,237.79,Provisions - General,"Grocery Stores, Supermarkets",GPC
Statement 20/03/2018 - 17/04/2018,Adults and Communities,Tesco Store 2846,19/03/2018,98.96,Provisions - General,"Grocery Stores, Supermarkets",GPC
Statement 20/03/2018 - 17/04/2018,Adults and Communities,Tesco Store 2846,28/03/2018,232.08,Provisions - General,"Grocery Stores, Supermarkets",GPC
Statement 20/03/2018 - 17/04/2018,Adults and Communities,Tesco Stores 5182,09/04/2018,157.67,Materials - General,"Grocery Stores, Supermarkets",GPC
Statement 20/03/2018 - 17/04/2018,Adults and Communities,Tesco Stores 5182,02/04/2018,60.67,Provisions - General,"Grocery Stores, Supermarkets",GPC
Statement 20/03/2018 - 17/04/2018,Adults and Communities,Tesco Stores 5182,03/04/2018,31.15,Provisions - General,"Grocery Stores, Supermarkets",GPC
Statement 20/03/2018 - 17/04/2018,Adults and Communities,Tesco Stores 5182,03/04/2018,4.00,Provisions - General,"Grocery Stores, Supermarkets",GPC
Statement 20/03/2018 - 17/04/2018,Adults and Communities,Tesco Stores 5182,06/04/2018,149.42,Provisions - General,"Grocery Stores, Supermarkets",GPC
Statement 20/03/2018 - 17/04/2018,Adults and Communities,Tesco Stores 5182,13/04/2018,127.85,Provisions - General,"Grocery Stores, Supermarkets",GPC
Statement 20/03/2018 - 17/04/2018,Adults and Communities,Tesco Stores 5182,16/04/2018,146.94,Provisions - General,"Grocery Stores, Supermarkets",GPC
Statement 20/03/2018 - 17/04/2018,Adults and Communities,Tesco Stores 5182,19/03/2018,149.46,Provisions - General,"Grocery Stores, Supermarkets",GPC
Statement 20/03/2018 - 17/04/2018,Adults and Communities,Tesco Stores 5182,23/03/2018,107.29,Provisions - General,"Grocery Stores, Supermarkets",GPC
Statement 20/03/2018 - 17/04/2018,Adults and Communities,Tesco Stores 5182,26/03/2018,65.26,Provisions - General,"Grocery Stores, Supermarkets",GPC
Statement 20/03/2018 - 17/04/2018,Adults and Communities,Tesco Stores 5182,29/03/2018,172.01,Provisions - General,"Grocery Stores, Supermarkets",GPC
Statement 20/03/2018 - 17/04/2018,Adults and Communities,Tesco Stores 5831,20/03/2018,10.88,Materials - General,"Grocery Stores, Supermarkets",GPC
Statement 20/03/2018 - 17/04/2018,Adults and Communities,Tesco Stores 5902,10/04/2018,30.90,Materials - General,"Grocery Stores, Supermarkets",GPC
Statement 20/03/2018 - 17/04/2018,Adults and Communities,Tesco Stores 5902,05/04/2018,18.00,Other Expenditure - General,"Grocery Stores, Supermarkets",GPC
Statement 20/03/2018 - 17/04/2018,Adults and Communities,Tesco Stores 5902,28/03/2018,8.33,Other Expenditure - General,"Grocery Stores, Supermarkets",GPC
Statement 20/03/2018 - 17/04/2018,Adults and Communities,Tesco Stores 5902,30/03/2018,20.50,Other Expenditure - General,"Grocery Stores, Supermarkets",GPC
Statement 20/03/2018 - 17/04/2018,Adults and Communities,The Book People,28/03/2018,216.80,Books - General,Book Stores,GPC
Statement 20/03/2018 - 17/04/2018,Adults and Communities,The Post Office,20/03/2018,1.42,Provisions - General,Postage Stamps,GPC
Statement 20/03/2018 - 17/04/2018,Adults and Communities,The Works,10/04/2018,8.00,Display/Conservn/Exhibitions - Exhibitions,Discount Stores,GPC
Statement 20/03/2018 - 17/04/2018,Adults and Communities,Thurston Electrical Supp,28/03/2018,8.04,Other Expenditure - General,Electrical Contractors,GPC
Statement 20/03/2018 - 17/04/2018,Adults and Communities,Timpson Ltd,28/03/2018,4.00,Operational Equipment - General,"Shoe Repair Shops, Shoe Shine Parlors, Hat Cleanin",GPC
Statement 20/03/2018 - 17/04/2018,Adults and Communities,Timpson Ltd,28/03/2018,4.00,Other Expenditure - General,"Shoe Repair Shops, Shoe Shine Parlors, Hat Cleanin",GPC
Statement 20/03/2018 - 17/04/2018,Adults and Communities,Trainline,10/04/2018,26.85,Casual/Essential - General,Passenger Railways,GPC
Statement 20/03/2018 - 17/04/2018,Adults and Communities,Trainline,10/04/2018,21.85,Casual/Essential - General,Passenger Railways,GPC
Statement 20/03/2018 - 17/04/2018,Adults and Communities,Travelodge Gb0000,06/04/2018,270.42,Other Support - Main Programme,Travelodge,GPC
Statement 20/03/2018 - 17/04/2018,Adults and Communities,Twinlakespark.Com,21/03/2018,59.79,Public Transport -  Staff - General,"Amusement Parks, Circuses, Carnivals, Fortune Tell",GPC
Statement 20/03/2018 - 17/04/2018,Adults and Communities,Upt York Cc Castle Car P,12/04/2018,9.67,Public Transport -  Staff - General,Automobile Parking Lots and Garages,GPC
Statement 20/03/2018 - 17/04/2018,Adults and Communities,Viking,26/03/2018,34.35,Stationery - General,"Stationary, Office Supplies, Printing and Writing",GPC
Statement 20/03/2018 - 17/04/2018,Adults and Communities,W M Morrisons,16/04/2018,19.40,Materials - General,"Grocery Stores, Supermarkets",GPC
Statement 20/03/2018 - 17/04/2018,Adults and Communities,Waterstones.Com,22/03/2018,-17.50,Training Expenses - General,Book Stores,GPC
Statement 20/03/2018 - 17/04/2018,Adults and Communities,Wh Smith,21/03/2018,20.16,Newspapers & Periodicals - General,News Dealers and Newsstands,GPC
Statement 20/03/2018 - 17/04/2018,Adults and Communities,Wilko Retail Limit,28/03/2018,6.83,Materials - General,Household Appliance Stores,GPC
Statement 20/03/2018 - 17/04/2018,Adults and Communities,Wilko Retail Limit,26/03/2018,16.50,Other Expenditure - General,Household Appliance Stores,GPC
Statement 20/03/2018 - 17/04/2018,Adults and Communities,Wilko Retail Limit,30/03/2018,5.50,Other Expenditure - General,Household Appliance Stores,GPC
Statement 20/03/2018 - 17/04/2018,Adults and Communities,Wilko Retail Limit,05/04/2018,25.21,Stationery - General,Household Appliance Stores,GPC
Statement 20/03/2018 - 17/04/2018,Adults and Communities,Wilko.Com,20/03/2018,24.00,General Equipment - General,Household Appliance Stores,GPC
Statement 20/03/2018 - 17/04/2018,Adults and Communities,Wm Morrison 054,05/04/2018,24.68,Materials - General,"Grocery Stores, Supermarkets",GPC
Statement 20/03/2018 - 17/04/2018,Adults and Communities,Wm Morrison 054,06/04/2018,8.18,Materials - General,"Grocery Stores, Supermarkets",GPC
Statement 20/03/2018 - 17/04/2018,Adults and Communities,Wm Morrison 054,07/04/2018,53.25,Materials - General,"Grocery Stores, Supermarkets",GPC
Statement 20/03/2018 - 17/04/2018,Adults and Communities,Wm Morrison 054,12/04/2018,13.94,Materials - General,"Grocery Stores, Supermarkets",GPC
Statement 20/03/2018 - 17/04/2018,Adults and Communities,Wm Morrison 054,20/03/2018,27.29,Materials - General,"Grocery Stores, Supermarkets",GPC
Statement 20/03/2018 - 17/04/2018,Adults and Communities,Wm Morrison 054,21/03/2018,12.50,Materials - General,"Grocery Stores, Supermarkets",GPC
Statement 20/03/2018 - 17/04/2018,Adults and Communities,Wm Morrison 054,24/03/2018,24.60,Materials - General,"Grocery Stores, Supermarkets",GPC
Statement 20/03/2018 - 17/04/2018,Adults and Communities,Wm Morrison 054,30/03/2018,20.99,Materials - General,"Grocery Stores, Supermarkets",GPC
Statement 20/03/2018 - 17/04/2018,Adults and Communities,Wm Morrison 054,31/03/2018,18.54,Materials - General,"Grocery Stores, Supermarkets",GPC
Statement 20/03/2018 - 17/04/2018,Adults and Communities,Wm Morrison 054,07/04/2018,5.00,Other Expenditure - General,"Grocery Stores, Supermarkets",GPC
Statement 20/03/2018 - 17/04/2018,Adults and Communities,Wm Morrison 054,12/04/2018,10.46,Provisions - General,"Grocery Stores, Supermarkets",GPC
Statement 20/03/2018 - 17/04/2018,Adults and Communities,Wm Morrisons,04/04/2018,12.47,Materials - General,"Grocery Stores, Supermarkets",GPC
Statement 20/03/2018 - 17/04/2018,Adults and Communities,Wm Morrisons,28/03/2018,7.20,Materials - General,"Grocery Stores, Supermarkets",GPC
Statement 20/03/2018 - 17/04/2018,Adults and Communities,Wm Morrisons,04/04/2018,16.00,Other Expenditure - General,"Grocery Stores, Supermarkets",GPC
Statement 20/03/2018 - 17/04/2018,Adults and Communities,Wm Morrisons,05/04/2018,40.00,Other Expenditure - General,"Grocery Stores, Supermarkets",GPC
Statement 20/03/2018 - 17/04/2018,Adults and Communities,Wm Morrisons,19/03/2018,5.00,Other Expenditure - General,"Grocery Stores, Supermarkets",GPC
Statement 20/03/2018 - 17/04/2018,Adults and Communities,Wm Morrisons,24/03/2018,5.00,Other Expenditure - General,"Grocery Stores, Supermarkets",GPC
Statement 20/03/2018 - 17/04/2018,Adults and Communities,Wm Morrisons,26/03/2018,5.00,Other Expenditure - General,"Grocery Stores, Supermarkets",GPC
Statement 20/03/2018 - 17/04/2018,Adults and Communities,Wm Morrisons,28/03/2018,12.00,Other Expenditure - General,"Grocery Stores, Supermarkets",GPC
Statement 20/03/2018 - 17/04/2018,Adults and Communities,Wm Morrisons,30/03/2018,9.50,Other Expenditure - General,"Grocery Stores, Supermarkets",GPC
Statement 20/03/2018 - 17/04/2018,Adults and Communities,Www.Adass.Org.Uk,26/03/2018,144.00,Conference - General,Charitable and Social Service Organizations,GPC
Statement 20/03/2018 - 17/04/2018,Adults and Communities,Www.Adass.Org.Uk,19/03/2018,570.00,Other Services - General,Charitable and Social Service Organizations,GPC
Statement 20/03/2018 - 17/04/2018,Adults and Communities,Www.Adass.Org.Uk,19/03/2018,570.00,Other Services - General,Charitable and Social Service Organizations,GPC
Statement 20/03/2018 - 17/04/2018,Adults and Communities,Www.Flowerbox-Leiceste,05/04/2018,29.08,General Equipment - General,Florists,GPC
Statement 20/03/2018 - 17/04/2018,Adults and Communities,Www.Healthcareconferen,06/04/2018,328.50,Conference - General,Business Services-Not Elsewhere Classified,GPC
Statement 20/03/2018 - 17/04/2018,Adults and Communities,Www.Hemashop.Com/Gb,19/03/2018,106.00,Display/Conservn/Exhibitions - Exhibitions,Department Stores,GPC
Statement 20/03/2018 - 17/04/2018,Adults and Communities,Www.Jerseyplantsdirect,11/04/2018,34.98,Display/Conservn/Exhibitions - Exhibitions,"Lawn and Garden Supply Stores, Nurseries",GPC
Statement 20/03/2018 - 17/04/2018,Adults and Communities,Www.Lasa.Org.Uk,23/03/2018,225.00,Subscriptions - General,Charitable and Social Service Organizations,GPC
Statement 20/03/2018 - 17/04/2018,Adults and Communities,Www.Learning-Resources,19/03/2018,82.00,Stationery - General,"Stationary, Office Supplies, Printing and Writing",GPC
Statement 20/03/2018 - 17/04/2018,Adults and Communities,Www.Officefurnitureonl,21/03/2018,206.00,Grounds Maint-Non Contract - General,"Furniture, Home Furnishings and Equipment Stores,",GPC
Statement 20/03/2018 - 17/04/2018,Adults and Communities,Www.Officefurnitureonl,21/03/2018,232.00,Grounds Maint-Non Contract - General,"Furniture, Home Furnishings and Equipment Stores,",GPC
Statement 20/03/2018 - 17/04/2018,Adults and Communities,Www.Officefurnitureonl,21/03/2018,244.00,Operational Equipment - General,"Furniture, Home Furnishings and Equipment Stores,",GPC
Statement 20/03/2018 - 17/04/2018,Adults and Communities,Www.Talktalkbusiness.C,23/03/2018,32.62,Telephones - General,Telecommunication Equipment Including Telephone Sa,GPC
Statement 20/03/2018 - 17/04/2018,Adults and Communities,Www.Theworks.Co.Uk,28/03/2018,201.98,Materials - General,Discount Stores,GPC
Statement 20/03/2018 - 17/04/2018,Adults and Communities,Www.Victoriananursery.,08/04/2018,43.54,Display/Conservn/Exhibitions - Exhibitions,"Lawn and Garden Supply Stores, Nurseries",GPC
Statement 20/03/2018 - 17/04/2018,Adults and Communities,Www.Widgit.Com,20/03/2018,50.00,Stationery - General,Computer Software Stores,GPC
Statement 20/03/2018 - 17/04/2018,Adults and Communities,Www.Zen.Co.Uk,28/03/2018,34.76,Telephones - General,Computer Network/Information Services,GPC
Statement 20/03/2018 - 17/04/2018,Adults and Communities,Xl Displays Ltd,21/03/2018,604.00,Grounds Maint-Non Contract - General,Durable Goods Not Elsewhere Classified,GPC
Statement 20/03/2018 - 17/04/2018,C&YPS-Non Delegated,360 Play (Leicester) L,22/03/2018,13.00,Other Transfer Payments - General,RECREATION SERVICES--NOT ELSEWHERE CLASSIFIED,GPC
Statement 20/03/2018 - 17/04/2018,C&YPS-Non Delegated,360 Play (Leicester) L,22/03/2018,7.20,Other Transfer Payments - General,RECREATION SERVICES--NOT ELSEWHERE CLASSIFIED,GPC
Statement 20/03/2018 - 17/04/2018,C&YPS-Non Delegated,Aldi 21 772,04/04/2018,32.24,Materials - General,"Grocery Stores, Supermarkets",GPC
Statement 20/03/2018 - 17/04/2018,C&YPS-Non Delegated,Aldi 21 772,09/04/2018,22.56,Other Expenditure - General,"Grocery Stores, Supermarkets",GPC
Statement 20/03/2018 - 17/04/2018,C&YPS-Non Delegated,Aldi 24 772,19/03/2018,6.04,General Equipment - General,"Grocery Stores, Supermarkets",GPC
Statement 20/03/2018 - 17/04/2018,C&YPS-Non Delegated,Aldi 24 772,16/04/2018,18.87,Other Expenditure - General,"Grocery Stores, Supermarkets",GPC
Statement 20/03/2018 - 17/04/2018,C&YPS-Non Delegated,Aldi 27 772,19/03/2018,20.10,Other Expenditure - General,"Grocery Stores, Supermarkets",GPC
Statement 20/03/2018 - 17/04/2018,C&YPS-Non Delegated,Aldi 27 772,20/03/2018,4.58,Subsistence - General,"Grocery Stores, Supermarkets",GPC
Statement 20/03/2018 - 17/04/2018,C&YPS-Non Delegated,Aldi 4 772,19/03/2018,46.55,Materials - General,"Grocery Stores, Supermarkets",GPC
Statement 20/03/2018 - 17/04/2018,C&YPS-Non Delegated,Aldi 4 772,22/03/2018,16.30,Provisions - General,"Grocery Stores, Supermarkets",GPC
Statement 20/03/2018 - 17/04/2018,C&YPS-Non Delegated,Aldi 4 772,23/03/2018,19.13,Provisions - General,"Grocery Stores, Supermarkets",GPC
Statement 20/03/2018 - 17/04/2018,C&YPS-Non Delegated,Aldi 50 772,21/03/2018,10.84,Other Equipment & Materials - General,"Grocery Stores, Supermarkets",GPC
Statement 20/03/2018 - 17/04/2018,C&YPS-Non Delegated,Alif Carpets & Furnish,21/03/2018,375.00,Other Transfer Payments - Leaving Care Grants,Floor Coverings   Stores,GPC
Statement 20/03/2018 - 17/04/2018,C&YPS-Non Delegated,Alif Carpets & Furnish,21/03/2018,375.00,Other Transfer Payments - Leaving Care Grants,Floor Coverings   Stores,GPC
Statement 20/03/2018 - 17/04/2018,C&YPS-Non Delegated,Allpay Moto (Callpay/I,23/03/2018,599.26,Other Transfer Payments - Section 24,Charitable and Social Service Organizations,GPC
Statement 20/03/2018 - 17/04/2018,C&YPS-Non Delegated,Amazon Eu Amazon.Co.Uk,10/04/2018,6.06,Books - General,Miscellaneous and Specialty Retail Stores,GPC
Statement 20/03/2018 - 17/04/2018,C&YPS-Non Delegated,Amazon Eu Amazon.Co.Uk,20/03/2018,46.60,Books - General,Miscellaneous and Specialty Retail Stores,GPC
Statement 20/03/2018 - 17/04/2018,C&YPS-Non Delegated,Amazon Eu Amazon.Co.Uk,18/03/2018,125.47,Other Expenditure - Assist/Conts to Schemes,Miscellaneous and Specialty Retail Stores,GPC
Statement 20/03/2018 - 17/04/2018,C&YPS-Non Delegated,Amazon Eu Amazon.Co.Uk,19/03/2018,99.11,Provisions - General,Miscellaneous and Specialty Retail Stores,GPC
Statement 20/03/2018 - 17/04/2018,C&YPS-Non Delegated,Amazon Prime,08/04/2018,7.99,Other Equipment & Materials - General,Continuity/Subscription Merchants,GPC
Statement 20/03/2018 - 17/04/2018,C&YPS-Non Delegated,Amazon Prime Member Fee A,21/03/2018,7.99,Other Expenditure - General,Continuity/Subscription Merchants,GPC
Statement 20/03/2018 - 17/04/2018,C&YPS-Non Delegated,Amazon Svcs Eu-Uk Amazon.,10/04/2018,7.95,Books - General,Book Stores,GPC
Statement 20/03/2018 - 17/04/2018,C&YPS-Non Delegated,Amazon Svcs Eu-Uk Amazon.,10/04/2018,7.95,Books - General,Book Stores,GPC
Statement 20/03/2018 - 17/04/2018,C&YPS-Non Delegated,Amazon Svcs Eu-Uk Amazon.,10/04/2018,2.46,Books - General,Book Stores,GPC
Statement 20/03/2018 - 17/04/2018,C&YPS-Non Delegated,Amazon Svcs Eu-Uk Amazon.,10/04/2018,3.84,Books - General,Book Stores,GPC
Statement 20/03/2018 - 17/04/2018,C&YPS-Non Delegated,Amazon Svcs Eu-Uk Amazon.,10/04/2018,141.78,Books - General,Book Stores,GPC
Statement 20/03/2018 - 17/04/2018,C&YPS-Non Delegated,Amazon Svcs Eu-Uk Amazon.,10/04/2018,5.73,Books - General,Book Stores,GPC
Statement 20/03/2018 - 17/04/2018,C&YPS-Non Delegated,Amazon Svcs Eu-Uk Amazon.,10/04/2018,59.00,Books - General,Book Stores,GPC
Statement 20/03/2018 - 17/04/2018,C&YPS-Non Delegated,Amazon Svcs Eu-Uk Amazon.,10/04/2018,37.18,Books - General,Book Stores,GPC
Statement 20/03/2018 - 17/04/2018,C&YPS-Non Delegated,Amazon Svcs Eu-Uk Amazon.,11/04/2018,1.70,Books - General,Book Stores,GPC
Statement 20/03/2018 - 17/04/2018,C&YPS-Non Delegated,Amazon Svcs Eu-Uk Amazon.,11/04/2018,39.90,Books - General,Book Stores,GPC
Statement 20/03/2018 - 17/04/2018,C&YPS-Non Delegated,Amazon Svcs Eu-Uk Amazon.,11/04/2018,2.86,Books - General,Book Stores,GPC
Statement 20/03/2018 - 17/04/2018,C&YPS-Non Delegated,Amazon Svcs Eu-Uk Amazon.,11/04/2018,2.49,Books - General,Book Stores,GPC
Statement 20/03/2018 - 17/04/2018,C&YPS-Non Delegated,Amazon Svcs Eu-Uk Amazon.,12/04/2018,14.98,Books - General,Book Stores,GPC
Statement 20/03/2018 - 17/04/2018,C&YPS-Non Delegated,Amazon Svcs Eu-Uk Amazon.,25/03/2018,8.27,Books - General,Book Stores,GPC
Statement 20/03/2018 - 17/04/2018,C&YPS-Non Delegated,Amazon Svcs Eu-Uk Amazon.,16/04/2018,41.66,Furniture - General,Book Stores,GPC
Statement 20/03/2018 - 17/04/2018,C&YPS-Non Delegated,Amazon Svcs Eu-Uk Amazon.,21/03/2018,14.94,General Equipment - General,Book Stores,GPC
Statement 20/03/2018 - 17/04/2018,C&YPS-Non Delegated,Amazon Svcs Eu-Uk Amazon.,29/03/2018,-15.62,General Equipment - General,Book Stores,GPC
Statement 20/03/2018 - 17/04/2018,C&YPS-Non Delegated,Amazon Svcs Eu-Uk Amazon.,21/03/2018,1.85,Grants - General,Book Stores,GPC
Statement 20/03/2018 - 17/04/2018,C&YPS-Non Delegated,Amazon Svcs Eu-Uk Amazon.,22/03/2018,2.18,Grants - General,Book Stores,GPC
Statement 20/03/2018 - 17/04/2018,C&YPS-Non Delegated,Amazon Svcs Eu-Uk Amazon.,22/03/2018,9.15,Grants - General,Book Stores,GPC
Statement 20/03/2018 - 17/04/2018,C&YPS-Non Delegated,Amazon Svcs Eu-Uk Amazon.,22/03/2018,3.98,Grants - General,Book Stores,GPC
Statement 20/03/2018 - 17/04/2018,C&YPS-Non Delegated,Amazon Svcs Eu-Uk Amazon.,13/04/2018,4.45,Other Equipment & Materials - General,Book Stores,GPC
Statement 20/03/2018 - 17/04/2018,C&YPS-Non Delegated,Amazon Svcs Eu-Uk Amazon.,13/04/2018,1.98,Other Equipment & Materials - General,Book Stores,GPC
Statement 20/03/2018 - 17/04/2018,C&YPS-Non Delegated,Amazon Svcs Eu-Uk Amazon.,13/04/2018,3.91,Other Equipment & Materials - General,Book Stores,GPC
Statement 20/03/2018 - 17/04/2018,C&YPS-Non Delegated,Amazon Svcs Eu-Uk Amazon.,14/04/2018,1.31,Other Equipment & Materials - General,Book Stores,GPC
Statement 20/03/2018 - 17/04/2018,C&YPS-Non Delegated,Amazon Svcs Eu-Uk Amazon.,14/04/2018,1.50,Other Equipment & Materials - General,Book Stores,GPC
Statement 20/03/2018 - 17/04/2018,C&YPS-Non Delegated,Amazon Svcs Eu-Uk Amazon.,15/04/2018,5.83,Other Equipment & Materials - General,Book Stores,GPC
Statement 20/03/2018 - 17/04/2018,C&YPS-Non Delegated,Amazon Svcs Eu-Uk Amazon.,16/04/2018,2.99,Other Equipment & Materials - General,Book Stores,GPC
Statement 20/03/2018 - 17/04/2018,C&YPS-Non Delegated,Amazon Svcs Eu-Uk Amazon.,27/03/2018,31.99,Other Equipment & Materials - General,Book Stores,GPC
Statement 20/03/2018 - 17/04/2018,C&YPS-Non Delegated,Amazon Svcs Eu-Uk Amazon.,12/04/2018,11.78,Other Expenditure - General,Book Stores,GPC
Statement 20/03/2018 - 17/04/2018,C&YPS-Non Delegated,Amazon Svcs Eu-Uk Amazon.,15/04/2018,34.97,Other Expenditure - General,Book Stores,GPC
Statement 20/03/2018 - 17/04/2018,C&YPS-Non Delegated,Amazon Svcs Eu-Uk Amazon.,20/03/2018,-11.99,Stationery - General,Book Stores,GPC
Statement 20/03/2018 - 17/04/2018,C&YPS-Non Delegated,Amazon Svcs Eu-Uk Amazon.,20/03/2018,20.78,Stationery - General,Book Stores,GPC
Statement 20/03/2018 - 17/04/2018,C&YPS-Non Delegated,Amazon UK Marketplace,14/04/2018,9.98,General Equipment - General,Book Stores,GPC
Statement 20/03/2018 - 17/04/2018,C&YPS-Non Delegated,Amazon UK Marketplace,15/04/2018,49.22,Other Expenditure - Assist/Conts to Schemes,Book Stores,GPC
Statement 20/03/2018 - 17/04/2018,C&YPS-Non Delegated,Amazon UK Marketplace,03/04/2018,21.00,Other Expenditure - General,Book Stores,GPC
Statement 20/03/2018 - 17/04/2018,C&YPS-Non Delegated,Amazon UK Marketplace,13/04/2018,37.91,Other Expenditure - General,Book Stores,GPC
Statement 20/03/2018 - 17/04/2018,C&YPS-Non Delegated,Amazon UK Marketplace,15/04/2018,33.25,Other Transfer Payments - Section 23 Grants,Book Stores,GPC
Statement 20/03/2018 - 17/04/2018,C&YPS-Non Delegated,Amazon UK Marketplace,10/04/2018,15.96,Stationery - General,Book Stores,GPC
Statement 20/03/2018 - 17/04/2018,C&YPS-Non Delegated,Amazon UK Marketplace,10/04/2018,4.11,Stationery - General,Book Stores,GPC
Statement 20/03/2018 - 17/04/2018,C&YPS-Non Delegated,Amazon UK Marketplace,10/04/2018,7.49,Stationery - General,Book Stores,GPC
Statement 20/03/2018 - 17/04/2018,C&YPS-Non Delegated,Amazon UK Prime Amzn.Co.U,19/03/2018,-7.99,Other Equipment & Materials - General,Continuity/Subscription Merchants,GPC
Statement 20/03/2018 - 17/04/2018,C&YPS-Non Delegated,Amazon UK Retail,05/04/2018,17.21,General Equipment - General,Direct Marketers - Other,GPC
Statement 20/03/2018 - 17/04/2018,C&YPS-Non Delegated,Amazon UK Retail,12/04/2018,22.55,General Equipment - General,Direct Marketers - Other,GPC
Statement 20/03/2018 - 17/04/2018,C&YPS-Non Delegated,Amazon UK Retail,30/03/2018,14.72,IT Equipment - Purchase - Hardware,Direct Marketers - Other,GPC
Statement 20/03/2018 - 17/04/2018,C&YPS-Non Delegated,Amazon UK Retail,10/04/2018,23.42,Other Equipment & Materials - General,Direct Marketers - Other,GPC
Statement 20/03/2018 - 17/04/2018,C&YPS-Non Delegated,Amazon UK Retail,21/03/2018,35.80,Stationery - General,Direct Marketers - Other,GPC
Statement 20/03/2018 - 17/04/2018,C&YPS-Non Delegated,Amazon UK Retail,24/03/2018,7.74,Stationery - General,Direct Marketers - Other,GPC
Statement 20/03/2018 - 17/04/2018,C&YPS-Non Delegated,Amber Rooms,26/03/2018,4.39,Other Transfer Payments - Section 23 Grants,"Eating Places, Restaurants",GPC
Statement 20/03/2018 - 17/04/2018,C&YPS-Non Delegated,Amf Bowling,03/04/2018,9.73,Other Transfer Payments - Section 23 Grants,"Membership Clubs (Sports, Recreation, Athletic), C",GPC
Statement 20/03/2018 - 17/04/2018,C&YPS-Non Delegated,Amf Bowling,05/04/2018,7.65,Other Transfer Payments - Section 23 Grants,"Membership Clubs (Sports, Recreation, Athletic), C",GPC
Statement 20/03/2018 - 17/04/2018,C&YPS-Non Delegated,Amf Bowling,27/03/2018,25.01,Other Transfer Payments - Section 23 Grants,"Membership Clubs (Sports, Recreation, Athletic), C",GPC
Statement 20/03/2018 - 17/04/2018,C&YPS-Non Delegated,Amf Bowling,27/03/2018,9.54,Other Transfer Payments - Section 23 Grants,"Membership Clubs (Sports, Recreation, Athletic), C",GPC
Statement 20/03/2018 - 17/04/2018,C&YPS-Non Delegated,Amfbowling.Co.Uk,16/04/2018,40.53,Other Equipment & Materials - General,"Membership Clubs (Sports, Recreation, Athletic), C",GPC
Statement 20/03/2018 - 17/04/2018,C&YPS-Non Delegated,Amfbowling.Co.Uk,04/04/2018,11.68,Other Transfer Payments - General,"Membership Clubs (Sports, Recreation, Athletic), C",GPC
Statement 20/03/2018 - 17/04/2018,C&YPS-Non Delegated,Amfbowling.Co.Uk,20/03/2018,23.36,Other Transfer Payments - Section 23 Grants,"Membership Clubs (Sports, Recreation, Athletic), C",GPC
Statement 20/03/2018 - 17/04/2018,C&YPS-Non Delegated,Anthony Peters Manufactu,28/03/2018,34.28,Other Equipment & Materials - General,"Hobby, Toy, and Game Shops",GPC
Statement 20/03/2018 - 17/04/2018,C&YPS-Non Delegated,Ao Retail Limited,27/03/2018,199.17,Other Transfer Payments - Leaving Care Grants,Household Appliance Stores,GPC
Statement 20/03/2018 - 17/04/2018,C&YPS-Non Delegated,Argos Ltd,12/04/2018,21.65,Other Expenditure - General,Discount Stores,GPC
Statement 20/03/2018 - 17/04/2018,C&YPS-Non Delegated,Argos Ltd,26/03/2018,166.65,Other Expenditure - General,Discount Stores,GPC
Statement 20/03/2018 - 17/04/2018,C&YPS-Non Delegated,Argos Ltd,10/04/2018,95.08,Other Transfer Payments - Leaving Care Grants,Discount Stores,GPC
Statement 20/03/2018 - 17/04/2018,C&YPS-Non Delegated,Argos Ltd,10/04/2018,55.47,Other Transfer Payments - Leaving Care Grants,Discount Stores,GPC
Statement 20/03/2018 - 17/04/2018,C&YPS-Non Delegated,Argos Ltd,11/04/2018,746.92,Other Transfer Payments - Leaving Care Grants,Discount Stores,GPC
Statement 20/03/2018 - 17/04/2018,C&YPS-Non Delegated,Arriva Mid Travel,22/03/2018,73.00,Other Transport Costs - General,"Bus Lines, Charters, Tour Buses",GPC
Statement 20/03/2018 - 17/04/2018,C&YPS-Non Delegated,Asda George Com Leeds,21/03/2018,48.50,Other Transfer Payments - Leaving Care Grants,"Grocery Stores, Supermarkets",GPC
Statement 20/03/2018 - 17/04/2018,C&YPS-Non Delegated,Asda Stores,11/04/2018,11.99,Other Transfer Payments - Section 24,"Grocery Stores, Supermarkets",GPC
Statement 20/03/2018 - 17/04/2018,C&YPS-Non Delegated,Asda Stores 4523,24/03/2018,8.00,Other Transfer Payments - Section 23 Grants,"Grocery Stores, Supermarkets",GPC
Statement 20/03/2018 - 17/04/2018,C&YPS-Non Delegated,Asda Stores 4533,11/04/2018,106.70,Other Transfer Payments - Leaving Care Grants,"Grocery Stores, Supermarkets",GPC
Statement 20/03/2018 - 17/04/2018,C&YPS-Non Delegated,Asda Superstore,11/04/2018,16.46,General Equipment - General,"Grocery Stores, Supermarkets",GPC
Statement 20/03/2018 - 17/04/2018,C&YPS-Non Delegated,Asda Superstore,21/03/2018,3.67,General Equipment - General,"Grocery Stores, Supermarkets",GPC
Statement 20/03/2018 - 17/04/2018,C&YPS-Non Delegated,Asda Superstore,12/04/2018,31.00,Other Transfer Payments - Leaving Care Grants,"Grocery Stores, Supermarkets",GPC
Statement 20/03/2018 - 17/04/2018,C&YPS-Non Delegated,Asda Superstore,16/04/2018,10.00,Other Transfer Payments - Section 24,"Grocery Stores, Supermarkets",GPC
Statement 20/03/2018 - 17/04/2018,C&YPS-Non Delegated,Asda Superstore,03/04/2018,10.82,Provisions - General,"Grocery Stores, Supermarkets",GPC
Statement 20/03/2018 - 17/04/2018,C&YPS-Non Delegated,Asda Superstore,03/04/2018,63.53,Provisions - General,"Grocery Stores, Supermarkets",GPC
Statement 20/03/2018 - 17/04/2018,C&YPS-Non Delegated,Asda Superstore,09/04/2018,119.42,Provisions - General,"Grocery Stores, Supermarkets",GPC
Statement 20/03/2018 - 17/04/2018,C&YPS-Non Delegated,Asda Superstore,26/03/2018,105.04,Provisions - General,"Grocery Stores, Supermarkets",GPC
Statement 20/03/2018 - 17/04/2018,C&YPS-Non Delegated,Asda Superstore,26/03/2018,5.60,Provisions - General,"Grocery Stores, Supermarkets",GPC
Statement 20/03/2018 - 17/04/2018,C&YPS-Non Delegated,Autism East Midlands,21/03/2018,36.00,Other Services - General,Charitable and Social Service Organizations,GPC
Statement 20/03/2018 - 17/04/2018,C&YPS-Non Delegated,Aux*resume,10/04/2018,1.00,Books - General,Digital Goods,GPC
Statement 20/03/2018 - 17/04/2018,C&YPS-Non Delegated,Aux*resume,10/04/2018,0.95,Books - General,Digital Goods,GPC
Statement 20/03/2018 - 17/04/2018,C&YPS-Non Delegated,B&m Retail,15/04/2018,16.66,Catering Equipment - General,Discount Stores,GPC
Statement 20/03/2018 - 17/04/2018,C&YPS-Non Delegated,B&m Retail,14/04/2018,9.16,Cleaning Materials - General,Discount Stores,GPC
Statement 20/03/2018 - 17/04/2018,C&YPS-Non Delegated,B&m Retail,11/04/2018,12.49,Furniture - General,Discount Stores,GPC
Statement 20/03/2018 - 17/04/2018,C&YPS-Non Delegated,B&m Retail,12/04/2018,40.34,Furniture - General,Discount Stores,GPC
Statement 20/03/2018 - 17/04/2018,C&YPS-Non Delegated,B&m Retail,11/04/2018,2.09,Materials - General,Discount Stores,GPC
Statement 20/03/2018 - 17/04/2018,C&YPS-Non Delegated,B&m Retail,13/04/2018,17.46,Other Expenditure - General,Discount Stores,GPC
Statement 20/03/2018 - 17/04/2018,C&YPS-Non Delegated,B&m Retail,24/03/2018,16.65,Personal Needs of Clients - Holidays & Outings,Discount Stores,GPC
Statement 20/03/2018 - 17/04/2018,C&YPS-Non Delegated,B&m Retail,13/04/2018,6.53,Provisions - General,Discount Stores,GPC
Statement 20/03/2018 - 17/04/2018,C&YPS-Non Delegated,B&m Retail Ltd,13/04/2018,19.68,Cleaning Materials - General,Discount Stores,GPC
Statement 20/03/2018 - 17/04/2018,C&YPS-Non Delegated,B&m Retail Ltd,13/04/2018,-9.99,Materials - General,Discount Stores,GPC
Statement 20/03/2018 - 17/04/2018,C&YPS-Non Delegated,B&m Retail Ltd,11/04/2018,159.96,Other Transfer Payments - Leaving Care Grants,Discount Stores,GPC
Statement 20/03/2018 - 17/04/2018,C&YPS-Non Delegated,B&m Retail Ltd,13/04/2018,3.33,Personal Needs of Clients - General,Discount Stores,GPC
Statement 20/03/2018 - 17/04/2018,C&YPS-Non Delegated,Barneys Playbarn,26/03/2018,5.80,Other Transfer Payments - General,"Amusement Parks, Circuses, Carnivals, Fortune Tell",GPC
Statement 20/03/2018 - 17/04/2018,C&YPS-Non Delegated,Birchwood Community&le,21/03/2018,2.92,Other Transfer Payments - Section 23 Grants,"Membership Clubs (Sports, Recreation, Athletic), C",GPC
Statement 20/03/2018 - 17/04/2018,C&YPS-Non Delegated,Birchwood Community&le,21/03/2018,6.58,Other Transfer Payments - Section 23 Grants,"Membership Clubs (Sports, Recreation, Athletic), C",GPC
Statement 20/03/2018 - 17/04/2018,C&YPS-Non Delegated,Birchwood Community&le,21/03/2018,10.95,Other Transfer Payments - Section 23 Grants,"Membership Clubs (Sports, Recreation, Athletic), C",GPC
Statement 20/03/2018 - 17/04/2018,C&YPS-Non Delegated,Boost Trampoline Parks,23/03/2018,22.00,Other Transfer Payments - General,RECREATION SERVICES--NOT ELSEWHERE CLASSIFIED,GPC
Statement 20/03/2018 - 17/04/2018,C&YPS-Non Delegated,Boost Trampoline Parks,26/03/2018,15.40,Other Transfer Payments - General,RECREATION SERVICES--NOT ELSEWHERE CLASSIFIED,GPC
Statement 20/03/2018 - 17/04/2018,C&YPS-Non Delegated,British Heart Foundati,11/04/2018,374.00,Other Transfer Payments - Leaving Care Grants,Charitable and Social Service Organizations,GPC
Statement 20/03/2018 - 17/04/2018,C&YPS-Non Delegated,Bt Bill Payment 2,09/04/2018,77.80,Telephones - General,Telecommunication Equipment Including Telephone Sa,GPC
Statement 20/03/2018 - 17/04/2018,C&YPS-Non Delegated,Bt Bill Payment 2,10/04/2018,58.74,Telephones - General,Telecommunication Equipment Including Telephone Sa,GPC
Statement 20/03/2018 - 17/04/2018,C&YPS-Non Delegated,Bt Bill Payment 2,19/03/2018,55.89,Telephones - General,Telecommunication Equipment Including Telephone Sa,GPC
Statement 20/03/2018 - 17/04/2018,C&YPS-Non Delegated,Caffe Nero,26/03/2018,8.90,Other Expenditure - General,"Eating Places, Restaurants",GPC
Statement 20/03/2018 - 17/04/2018,C&YPS-Non Delegated,Carpets Leicester Ltd,27/03/2018,375.00,Other Transfer Payments - Leaving Care Grants,"Furniture, Home Furnishings and Equipment Stores,",GPC
Statement 20/03/2018 - 17/04/2018,C&YPS-Non Delegated,Central Co-Op Reta,12/04/2018,3.48,General Equipment - General,Department Stores,GPC
Statement 20/03/2018 - 17/04/2018,C&YPS-Non Delegated,Central Eng Coop,12/04/2018,19.32,Other Equipment & Materials - General,Department Stores,GPC
Statement 20/03/2018 - 17/04/2018,C&YPS-Non Delegated,Central Eng Coop,12/04/2018,6.87,Recruitment Advertising - General,Department Stores,GPC
Statement 20/03/2018 - 17/04/2018,C&YPS-Non Delegated,Charnwood Bc,04/04/2018,19.58,Other Transfer Payments - Leaving Care Grants,Government Services-Not Elsewhere Classified,GPC
Statement 20/03/2018 - 17/04/2018,C&YPS-Non Delegated,Charnwood Borough Coun,23/03/2018,0.50,Other Transport Costs - General,Government Services-Not Elsewhere Classified,GPC
Statement 20/03/2018 - 17/04/2018,C&YPS-Non Delegated,Cherwell Valley Costa,06/04/2018,12.20,Other Equipment & Materials - General,"Eating Places, Restaurants",GPC
Statement 20/03/2018 - 17/04/2018,C&YPS-Non Delegated,Chocolate Alchemy,10/04/2018,7.30,Other Expenditure - General,"Gift, Card, Novelty, and Souvenir Shops",GPC
Statement 20/03/2018 - 17/04/2018,C&YPS-Non Delegated,Cineworld,04/04/2018,37.00,Other Transfer Payments - Section 23 Grants,"Theatrical Products (Except Motion Pictures), Tick",GPC
Statement 20/03/2018 - 17/04/2018,C&YPS-Non Delegated,Cineworld Cinemas,05/04/2018,3.50,Other Transfer Payments - Section 23 Grants,"Theatrical Products (Except Motion Pictures), Tick",GPC
Statement 20/03/2018 - 17/04/2018,C&YPS-Non Delegated,Cineworld Ste Cp,29/03/2018,6.55,Provisions - General,"Theatrical Products (Except Motion Pictures), Tick",GPC
Statement 20/03/2018 - 17/04/2018,C&YPS-Non Delegated,Civica Cnp & Chp,12/04/2018,-26.00,Other Transfer Payments - Section 23 Grants,Government Services-Not Elsewhere Classified,GPC
Statement 20/03/2018 - 17/04/2018,C&YPS-Non Delegated,Coffee#1 Droitwich,12/04/2018,2.55,Other Transfer Payments - Section 24,"Eating Places, Restaurants",GPC
Statement 20/03/2018 - 17/04/2018,C&YPS-Non Delegated,Costa Coffee,12/04/2018,7.65,Other Expenditure - General,Fast-Food Restaurants (Quick Payment Service Pilot,GPC
Statement 20/03/2018 - 17/04/2018,C&YPS-Non Delegated,Costa Coffee,03/04/2018,2.33,Other Transfer Payments - Section 24,"Eating Places, Restaurants",GPC
Statement 20/03/2018 - 17/04/2018,C&YPS-Non Delegated,Dsa,11/04/2018,62.00,Other Transfer Payments - Section 24,Government Services-Not Elsewhere Classified,GPC
Statement 20/03/2018 - 17/04/2018,C&YPS-Non Delegated,Dvla Driver Online,22/03/2018,14.00,Other Transfer Payments - Leaving Care Grants,Government Services-Not Elsewhere Classified,GPC
Statement 20/03/2018 - 17/04/2018,C&YPS-Non Delegated,East Midland Trains,22/03/2018,8.00,Public Transport -  Staff - General,Automobile Parking Lots and Garages,GPC
Statement 20/03/2018 - 17/04/2018,C&YPS-Non Delegated,East Midlands Leicester,04/04/2018,14.50,Other Transfer Payments - Section 23 Grants,Automobile Parking Lots and Garages,GPC
Statement 20/03/2018 - 17/04/2018,C&YPS-Non Delegated,East Midlands Trai,03/04/2018,121.35,Other Transfer Payments - Sector 17- Other,Passenger Railways,GPC
Statement 20/03/2018 - 17/04/2018,C&YPS-Non Delegated,East Midlands Trains,11/04/2018,98.50,Client/Volunteers - General,Passenger Railways,GPC
Statement 20/03/2018 - 17/04/2018,C&YPS-Non Delegated,East Midlands Trains,16/04/2018,133.20,Client/Volunteers - General,Passenger Railways,GPC
Statement 20/03/2018 - 17/04/2018,C&YPS-Non Delegated,East Midlands Trains,20/03/2018,87.50,Client/Volunteers - General,Passenger Railways,GPC
Statement 20/03/2018 - 17/04/2018,C&YPS-Non Delegated,East Midlands Trains,20/03/2018,111.00,Other Transfer Payments - Sector 17- Other,Passenger Railways,GPC
Statement 20/03/2018 - 17/04/2018,C&YPS-Non Delegated,Eb *sensory Attachment,03/04/2018,125.00,Training Expenses - General,Business Services-Not Elsewhere Classified,GPC
Statement 20/03/2018 - 17/04/2018,C&YPS-Non Delegated,Elc-Internet,04/04/2018,45.00,Other Equipment & Materials - General,Department Stores,GPC
Statement 20/03/2018 - 17/04/2018,C&YPS-Non Delegated,Equita Ltd,20/03/2018,400.40,Other Transfer Payments - General,Government Services-Not Elsewhere Classified,GPC
Statement 20/03/2018 - 17/04/2018,C&YPS-Non Delegated,Facebk Uzrt9fweq2,31/03/2018,7.00,Other Equipment & Materials - General,Advertising Services,GPC
Statement 20/03/2018 - 17/04/2018,C&YPS-Non Delegated,Fast Key Services Limi,20/03/2018,54.73,Other Transfer Payments - General,Business Services-Not Elsewhere Classified,GPC
Statement 20/03/2018 - 17/04/2018,C&YPS-Non Delegated,Fast Key Services Limi,21/03/2018,20.31,Other Transfer Payments - General,Business Services-Not Elsewhere Classified,GPC
Statement 20/03/2018 - 17/04/2018,C&YPS-Non Delegated,Fields Fitness Club,03/04/2018,31.00,Subscriptions - General,RECREATION SERVICES--NOT ELSEWHERE CLASSIFIED,GPC
Statement 20/03/2018 - 17/04/2018,C&YPS-Non Delegated,Gas-Elec,03/04/2018,85.00,Other Transfer Payments - Leaving Care Grants,"Heating, Plumbing, Air Conditioning Contractors",GPC
Statement 20/03/2018 - 17/04/2018,C&YPS-Non Delegated,Great Central Rail,05/04/2018,35.00,Provisions - General,Railroads-Freight,GPC
Statement 20/03/2018 - 17/04/2018,C&YPS-Non Delegated,Greggs Plc,27/03/2018,9.95,Other Transfer Payments - Section 24,"Eating Places, Restaurants",GPC
Statement 20/03/2018 - 17/04/2018,C&YPS-Non Delegated,Gro Hm Passport Office,26/03/2018,9.25,Other Transfer Payments - Section 23 Grants,Government Services-Not Elsewhere Classified,GPC
Statement 20/03/2018 - 17/04/2018,C&YPS-Non Delegated,Gro Hm Passport Office,16/04/2018,9.25,Other Transfer Payments - Sector 17- Other,Government Services-Not Elsewhere Classified,GPC
Statement 20/03/2018 - 17/04/2018,C&YPS-Non Delegated,Gro Hm Passport Office,28/03/2018,37.00,Provisions - General,Government Services-Not Elsewhere Classified,GPC
Statement 20/03/2018 - 17/04/2018,C&YPS-Non Delegated,H & Bbc Payment,22/03/2018,396.12,Other Transfer Payments - Section 24,Government Services-Not Elsewhere Classified,GPC
Statement 20/03/2018 - 17/04/2018,C&YPS-Non Delegated,Halfords 0375,14/04/2018,18.91,Other Expenditure - General,Bicycle Shops-Sales and Service,GPC
Statement 20/03/2018 - 17/04/2018,C&YPS-Non Delegated,Harvester Meridian,05/04/2018,6.65,Other Transfer Payments - Section 23 Grants,"Eating Places, Restaurants",GPC
Statement 20/03/2018 - 17/04/2018,C&YPS-Non Delegated,Heart Of England Nhs,12/04/2018,150.00,Other Equipment & Materials - General,Membership Organizations-Not Elsewhere Classified,GPC
Statement 20/03/2018 - 17/04/2018,C&YPS-Non Delegated,Heft-Heartlands Hospit,09/04/2018,126.00,Other Equipment & Materials - General,Hospitals,GPC
Statement 20/03/2018 - 17/04/2018,C&YPS-Non Delegated,Hermitage Leisure,04/04/2018,20.17,Subscriptions - General,Government Services-Not Elsewhere Classified,GPC
Statement 20/03/2018 - 17/04/2018,C&YPS-Non Delegated,"Highcross Car Park, Le",04/04/2018,7.00,Other Transfer Payments - Section 24,Automobile Parking Lots and Garages,GPC
Statement 20/03/2018 - 17/04/2018,C&YPS-Non Delegated,"Highcross Car Park, Le",27/03/2018,5.50,Other Transfer Payments - Section 24,Automobile Parking Lots and Garages,GPC
Statement 20/03/2018 - 17/04/2018,C&YPS-Non Delegated,Hinckley Knight,13/04/2018,2.20,Other Transfer Payments - Section 24,"Drinking Places (Alcoholic Beverages)-Bars, Tavern",GPC
Statement 20/03/2018 - 17/04/2018,C&YPS-Non Delegated,Hinckley Knight,27/03/2018,2.20,Other Transfer Payments - Section 24,"Drinking Places (Alcoholic Beverages)-Bars, Tavern",GPC
Statement 20/03/2018 - 17/04/2018,C&YPS-Non Delegated,Hm Passport Office,06/04/2018,85.00,Other Transfer Payments - Section 24,Government Services-Not Elsewhere Classified,GPC
Statement 20/03/2018 - 17/04/2018,C&YPS-Non Delegated,Hollywood Bowl,29/03/2018,10.00,Other Transfer Payments - Section 23 Grants,"Membership Clubs (Sports, Recreation, Athletic), C",GPC
Statement 20/03/2018 - 17/04/2018,C&YPS-Non Delegated,Hollywood Bowl,29/03/2018,5.54,Other Transfer Payments - Section 23 Grants,"Membership Clubs (Sports, Recreation, Athletic), C",GPC
Statement 20/03/2018 - 17/04/2018,C&YPS-Non Delegated,Home Bargains Coalvill,21/03/2018,1.32,Other Equipment & Materials - General,Hardware Stores,GPC
Statement 20/03/2018 - 17/04/2018,C&YPS-Non Delegated,Home Bargains Coalvill,28/03/2018,3.99,Other Transfer Payments - Section 23 Grants,Hardware Stores,GPC
Statement 20/03/2018 - 17/04/2018,C&YPS-Non Delegated,Ibis London Earls Court,20/03/2018,115.00,Training Expenses - General,"Lodging-Hotels, Motels, Resorts",GPC
Statement 20/03/2018 - 17/04/2018,C&YPS-Non Delegated,Ikea Limited,24/03/2018,26.04,Other Equipment & Materials - General,"Furniture, Home Furnishings and Equipment Stores,",GPC
Statement 20/03/2018 - 17/04/2018,C&YPS-Non Delegated,Intu Parking Derby,29/03/2018,3.42,Other Transfer Payments - Section 23 Grants,Automobile Parking Lots and Garages,GPC
Statement 20/03/2018 - 17/04/2018,C&YPS-Non Delegated,Jessica Kingsley Publishe,09/04/2018,63.72,Other Expenditure - General,Book Stores,GPC
Statement 20/03/2018 - 17/04/2018,C&YPS-Non Delegated,Jump Giants Holdings Ltd,27/03/2018,66.00,Other Transfer Payments - Section 23 Grants,RECREATION SERVICES--NOT ELSEWHERE CLASSIFIED,GPC
Statement 20/03/2018 - 17/04/2018,C&YPS-Non Delegated,Jump Giants Holdings Ltd,27/03/2018,33.00,Other Transfer Payments - Section 23 Grants,RECREATION SERVICES--NOT ELSEWHERE CLASSIFIED,GPC
Statement 20/03/2018 - 17/04/2018,C&YPS-Non Delegated,Jump Giants Loughborou,04/04/2018,6.00,Other Transfer Payments - Section 23 Grants,"Bands, Orchestras, Entertainers",GPC
Statement 20/03/2018 - 17/04/2018,C&YPS-Non Delegated,Kcjonesconf,29/03/2018,125.00,Training Expenses - General,"Theatrical Products (Except Motion Pictures), Tick",GPC
Statement 20/03/2018 - 17/04/2018,C&YPS-Non Delegated,Kfc - Leicester Msa,12/04/2018,4.15,Other Transfer Payments - General,Fast-Food Restaurants (Quick Payment Service Pilot,GPC
Statement 20/03/2018 - 17/04/2018,C&YPS-Non Delegated,Kfc - Loughborough,05/04/2018,3.83,Other Transfer Payments - General,Fast-Food Restaurants (Quick Payment Service Pilot,GPC
Statement 20/03/2018 - 17/04/2018,C&YPS-Non Delegated,Kfc - Loughborough,05/04/2018,7.96,Other Transfer Payments - General,Fast-Food Restaurants (Quick Payment Service Pilot,GPC
Statement 20/03/2018 - 17/04/2018,C&YPS-Non Delegated,Lcc Catering Services,16/04/2018,1.88,Training Expenses - General,Government Services-Not Elsewhere Classified,GPC
Statement 20/03/2018 - 17/04/2018,C&YPS-Non Delegated,Lcc Online,11/04/2018,11.00,Other Transfer Payments - Section 23 Grants,Government Services-Not Elsewhere Classified,GPC
Statement 20/03/2018 - 17/04/2018,C&YPS-Non Delegated,Lcc Online,16/04/2018,21.00,Other Transfer Payments - Section 23 Grants,Government Services-Not Elsewhere Classified,GPC
Statement 20/03/2018 - 17/04/2018,C&YPS-Non Delegated,Lcc Online,16/04/2018,11.00,Other Transfer Payments - Section 23 Grants,Government Services-Not Elsewhere Classified,GPC
Statement 20/03/2018 - 17/04/2018,C&YPS-Non Delegated,Lcc Online,28/03/2018,21.00,Other Transfer Payments - Section 23 Grants,Government Services-Not Elsewhere Classified,GPC
Statement 20/03/2018 - 17/04/2018,C&YPS-Non Delegated,Lcc Online,28/03/2018,21.00,Other Transfer Payments - Section 23 Grants,Government Services-Not Elsewhere Classified,GPC
Statement 20/03/2018 - 17/04/2018,C&YPS-Non Delegated,Lcc Online,28/03/2018,21.00,Other Transfer Payments - Section 23 Grants,Government Services-Not Elsewhere Classified,GPC
Statement 20/03/2018 - 17/04/2018,C&YPS-Non Delegated,Lcc Online,26/03/2018,41.67,Personal Needs of Clients - Holidays & Outings,Government Services-Not Elsewhere Classified,GPC
Statement 20/03/2018 - 17/04/2018,C&YPS-Non Delegated,Leic City Council,03/04/2018,14.00,Other Expenditure - General,Government Services-Not Elsewhere Classified,GPC
Statement 20/03/2018 - 17/04/2018,C&YPS-Non Delegated,Leic City Council,06/04/2018,24.00,Other Expenditure - General,Government Services-Not Elsewhere Classified,GPC
Statement 20/03/2018 - 17/04/2018,C&YPS-Non Delegated,Leic City Council,11/04/2018,14.00,Other Transfer Payments - General,Government Services-Not Elsewhere Classified,GPC
Statement 20/03/2018 - 17/04/2018,C&YPS-Non Delegated,Leic City Council,22/03/2018,14.00,Other Transfer Payments - General,Government Services-Not Elsewhere Classified,GPC
Statement 20/03/2018 - 17/04/2018,C&YPS-Non Delegated,Leic City Council,03/04/2018,34.00,Other Transfer Payments - Section 23 Grants,Government Services-Not Elsewhere Classified,GPC
Statement 20/03/2018 - 17/04/2018,C&YPS-Non Delegated,Leic City Council,03/04/2018,14.00,Other Transfer Payments - Section 23 Grants,Government Services-Not Elsewhere Classified,GPC
Statement 20/03/2018 - 17/04/2018,C&YPS-Non Delegated,Leic City Council,03/04/2018,14.00,Other Transfer Payments - Section 23 Grants,Government Services-Not Elsewhere Classified,GPC
Statement 20/03/2018 - 17/04/2018,C&YPS-Non Delegated,Leic City Council,06/04/2018,14.00,Other Transfer Payments - Section 23 Grants,Government Services-Not Elsewhere Classified,GPC
Statement 20/03/2018 - 17/04/2018,C&YPS-Non Delegated,Leic City Council,06/04/2018,14.00,Other Transfer Payments - Section 23 Grants,Government Services-Not Elsewhere Classified,GPC
Statement 20/03/2018 - 17/04/2018,C&YPS-Non Delegated,Leic City Council,06/04/2018,24.00,Other Transfer Payments - Section 23 Grants,Government Services-Not Elsewhere Classified,GPC
Statement 20/03/2018 - 17/04/2018,C&YPS-Non Delegated,Leic City Council,06/04/2018,24.00,Other Transfer Payments - Section 23 Grants,Government Services-Not Elsewhere Classified,GPC
Statement 20/03/2018 - 17/04/2018,C&YPS-Non Delegated,Leic City Council,09/04/2018,14.00,Other Transfer Payments - Section 23 Grants,Government Services-Not Elsewhere Classified,GPC
Statement 20/03/2018 - 17/04/2018,C&YPS-Non Delegated,Leic City Council,09/04/2018,-20.00,Other Transfer Payments - Section 23 Grants,Government Services-Not Elsewhere Classified,GPC
Statement 20/03/2018 - 17/04/2018,C&YPS-Non Delegated,Leic City Council,11/04/2018,24.00,Other Transfer Payments - Section 23 Grants,Government Services-Not Elsewhere Classified,GPC
Statement 20/03/2018 - 17/04/2018,C&YPS-Non Delegated,Leic City Council,11/04/2018,24.00,Other Transfer Payments - Section 23 Grants,Government Services-Not Elsewhere Classified,GPC
Statement 20/03/2018 - 17/04/2018,C&YPS-Non Delegated,Leic City Council,12/04/2018,-20.00,Other Transfer Payments - Section 23 Grants,Government Services-Not Elsewhere Classified,GPC
Statement 20/03/2018 - 17/04/2018,C&YPS-Non Delegated,Leic City Council,20/03/2018,-30.00,Other Transfer Payments - Section 23 Grants,Government Services-Not Elsewhere Classified,GPC
Statement 20/03/2018 - 17/04/2018,C&YPS-Non Delegated,Leic City Council,27/03/2018,14.00,Other Transfer Payments - Section 23 Grants,Government Services-Not Elsewhere Classified,GPC
Statement 20/03/2018 - 17/04/2018,C&YPS-Non Delegated,Leic City Council,27/03/2018,14.00,Other Transfer Payments - Section 23 Grants,Government Services-Not Elsewhere Classified,GPC
Statement 20/03/2018 - 17/04/2018,C&YPS-Non Delegated,Leic City Council,28/03/2018,24.00,Other Transfer Payments - Section 23 Grants,Government Services-Not Elsewhere Classified,GPC
Statement 20/03/2018 - 17/04/2018,C&YPS-Non Delegated,Leic City Council,28/03/2018,14.00,Other Transfer Payments - Section 23 Grants,Government Services-Not Elsewhere Classified,GPC
Statement 20/03/2018 - 17/04/2018,C&YPS-Non Delegated,Leic City Council,29/03/2018,24.00,Other Transfer Payments - Section 23 Grants,Government Services-Not Elsewhere Classified,GPC
Statement 20/03/2018 - 17/04/2018,C&YPS-Non Delegated,Leic City Council,29/03/2018,-24.00,Other Transfer Payments - Section 23 Grants,Government Services-Not Elsewhere Classified,GPC
Statement 20/03/2018 - 17/04/2018,C&YPS-Non Delegated,Leic City Council,29/03/2018,25.00,Subscriptions - General,Government Services-Not Elsewhere Classified,GPC
Statement 20/03/2018 - 17/04/2018,C&YPS-Non Delegated,Lidl Uk,05/04/2018,35.26,Materials - General,"Grocery Stores, Supermarkets",GPC
Statement 20/03/2018 - 17/04/2018,C&YPS-Non Delegated,Lidl Uk,19/03/2018,22.62,Provisions - General,"Grocery Stores, Supermarkets",GPC
Statement 20/03/2018 - 17/04/2018,C&YPS-Non Delegated,Lidl Uk,30/03/2018,18.90,Provisions - General,"Grocery Stores, Supermarkets",GPC
Statement 20/03/2018 - 17/04/2018,C&YPS-Non Delegated,Lincolnshire Cc Card P,03/04/2018,10.00,Other Transfer Payments - Section 23 Grants,Government Services-Not Elsewhere Classified,GPC
Statement 20/03/2018 - 17/04/2018,C&YPS-Non Delegated,Loughborough Le,06/04/2018,33.00,Subscriptions - General,"Membership Clubs (Sports, Recreation, Athletic), C",GPC
Statement 20/03/2018 - 17/04/2018,C&YPS-Non Delegated,Loughborough Le,06/04/2018,7.10,Subscriptions - General,"Membership Clubs (Sports, Recreation, Athletic), C",GPC
Statement 20/03/2018 - 17/04/2018,C&YPS-Non Delegated,Loughborough Le,23/03/2018,7.20,Subscriptions - General,"Membership Clubs (Sports, Recreation, Athletic), C",GPC
Statement 20/03/2018 - 17/04/2018,C&YPS-Non Delegated,Loughborough Le,26/03/2018,33.00,Subscriptions - General,"Membership Clubs (Sports, Recreation, Athletic), C",GPC
Statement 20/03/2018 - 17/04/2018,C&YPS-Non Delegated,Lp4,12/04/2018,3.40,Other Transfer Payments - General,Fast-Food Restaurants (Quick Payment Service Pilot,GPC
Statement 20/03/2018 - 17/04/2018,C&YPS-Non Delegated,M6 Toll,27/03/2018,4.40,Other Transfer Payments - General,"Bridge and Road Fees, Tolls",GPC
Statement 20/03/2018 - 17/04/2018,C&YPS-Non Delegated,Marks&spencer Plc Saca,20/03/2018,4.70,Other Transfer Payments - General,"Grocery Stores, Supermarkets",GPC
Statement 20/03/2018 - 17/04/2018,C&YPS-Non Delegated,McDonalds,03/04/2018,7.95,Other Expenditure - General,Fast-Food Restaurants (Quick Payment Service Pilot,GPC
Statement 20/03/2018 - 17/04/2018,C&YPS-Non Delegated,McDonalds,04/04/2018,6.47,Other Expenditure - General,Fast-Food Restaurants (Quick Payment Service Pilot,GPC
Statement 20/03/2018 - 17/04/2018,C&YPS-Non Delegated,McDonalds,10/04/2018,6.17,Other Expenditure - General,Fast-Food Restaurants (Quick Payment Service Pilot,GPC
Statement 20/03/2018 - 17/04/2018,C&YPS-Non Delegated,McDonalds,13/04/2018,7.80,Other Expenditure - General,"Eating Places, Restaurants",GPC
Statement 20/03/2018 - 17/04/2018,C&YPS-Non Delegated,McDonalds,16/04/2018,6.29,Other Expenditure - General,Fast-Food Restaurants (Quick Payment Service Pilot,GPC
Statement 20/03/2018 - 17/04/2018,C&YPS-Non Delegated,McDonalds,19/03/2018,8.78,Other Expenditure - General,Fast-Food Restaurants (Quick Payment Service Pilot,GPC
Statement 20/03/2018 - 17/04/2018,C&YPS-Non Delegated,McDonalds,29/03/2018,6.38,Other Expenditure - General,Fast-Food Restaurants (Quick Payment Service Pilot,GPC
Statement 20/03/2018 - 17/04/2018,C&YPS-Non Delegated,McDonalds,29/03/2018,6.77,Other Expenditure - General,Fast-Food Restaurants (Quick Payment Service Pilot,GPC
Statement 20/03/2018 - 17/04/2018,C&YPS-Non Delegated,McDonalds,12/04/2018,4.99,Other Transfer Payments - General,"Eating Places, Restaurants",GPC
Statement 20/03/2018 - 17/04/2018,C&YPS-Non Delegated,McDonalds,26/03/2018,6.78,Other Transfer Payments - General,Fast-Food Restaurants (Quick Payment Service Pilot,GPC
Statement 20/03/2018 - 17/04/2018,C&YPS-Non Delegated,McDonalds,09/04/2018,8.29,Other Transfer Payments - Section 23 Grants,Fast-Food Restaurants (Quick Payment Service Pilot,GPC
Statement 20/03/2018 - 17/04/2018,C&YPS-Non Delegated,McDonalds,12/04/2018,2.33,Other Transfer Payments - Section 23 Grants,"Eating Places, Restaurants",GPC
Statement 20/03/2018 - 17/04/2018,C&YPS-Non Delegated,McDonalds,03/04/2018,5.96,Subsistence - General,Fast-Food Restaurants (Quick Payment Service Pilot,GPC
Statement 20/03/2018 - 17/04/2018,C&YPS-Non Delegated,McDonalds,06/04/2018,4.92,Subsistence - General,Fast-Food Restaurants (Quick Payment Service Pilot,GPC
Statement 20/03/2018 - 17/04/2018,C&YPS-Non Delegated,McDonalds,09/04/2018,5.98,Subsistence - General,"Eating Places, Restaurants",GPC
Statement 20/03/2018 - 17/04/2018,C&YPS-Non Delegated,McDonalds,10/04/2018,2.65,Subsistence - General,Fast-Food Restaurants (Quick Payment Service Pilot,GPC
Statement 20/03/2018 - 17/04/2018,C&YPS-Non Delegated,Measham Leisure Centre,05/04/2018,16.66,Subscriptions - General,Business Services-Not Elsewhere Classified,GPC
Statement 20/03/2018 - 17/04/2018,C&YPS-Non Delegated,Milk&more,12/04/2018,2.35,Provisions - General,Dairy Products Stores,GPC
Statement 20/03/2018 - 17/04/2018,C&YPS-Non Delegated,Milkandmore.Co.Uk,05/04/2018,2.35,Provisions - General,Dairy Products Stores,GPC
Statement 20/03/2018 - 17/04/2018,C&YPS-Non Delegated,Milkandmore.Co.Uk,26/03/2018,2.35,Provisions - General,Dairy Products Stores,GPC
Statement 20/03/2018 - 17/04/2018,C&YPS-Non Delegated,Milkandmore.Co.Uk,26/03/2018,1.56,Provisions - General,Dairy Products Stores,GPC
Statement 20/03/2018 - 17/04/2018,C&YPS-Non Delegated,Milkandmore.Co.Uk,29/03/2018,2.35,Provisions - General,Dairy Products Stores,GPC
Statement 20/03/2018 - 17/04/2018,C&YPS-Non Delegated,Moments,06/04/2018,159.68,Stationery - General,"Stationery, Office, and School Supply Stores",GPC
Statement 20/03/2018 - 17/04/2018,C&YPS-Non Delegated,National Express Limited,07/04/2018,108.00,Other Transfer Payments - Section 23 Grants,"Bus Lines, Charters, Tour Buses",GPC
Statement 20/03/2018 - 17/04/2018,C&YPS-Non Delegated,Ncp Limited,12/04/2018,8.00,Other Transfer Payments - Section 24,Automobile Parking Lots and Garages,GPC
Statement 20/03/2018 - 17/04/2018,C&YPS-Non Delegated,Officialrecordcouk,04/04/2018,50.43,Other Transfer Payments - Sector 17- Other,"Management, Consulting and Public Relations Servic",GPC
Statement 20/03/2018 - 17/04/2018,C&YPS-Non Delegated,Officialrecordcouk,04/04/2018,50.43,Other Transfer Payments - Sector 17- Other,"Management, Consulting and Public Relations Servic",GPC
Statement 20/03/2018 - 17/04/2018,C&YPS-Non Delegated,Outfit,22/03/2018,51.71,Personal Needs of Clients - Clothing,Men's And Women's Clothing Stores,GPC
Statement 20/03/2018 - 17/04/2018,C&YPS-Non Delegated,Pak Foods,06/04/2018,28.75,Provisions - General,"Grocery Stores, Supermarkets",GPC
Statement 20/03/2018 - 17/04/2018,C&YPS-Non Delegated,Paylink Internet,06/04/2018,26.00,Other Transfer Payments - Section 23 Grants,Government Services-Not Elsewhere Classified,GPC
Statement 20/03/2018 - 17/04/2018,C&YPS-Non Delegated,Paylink Internet,09/04/2018,11.00,Other Transfer Payments - Section 23 Grants,Government Services-Not Elsewhere Classified,GPC
Statement 20/03/2018 - 17/04/2018,C&YPS-Non Delegated,Paylink Internet,09/04/2018,11.00,Other Transfer Payments - Section 23 Grants,Government Services-Not Elsewhere Classified,GPC
Statement 20/03/2018 - 17/04/2018,C&YPS-Non Delegated,Paylink Internet,28/03/2018,31.00,Other Transfer Payments - Section 23 Grants,Government Services-Not Elsewhere Classified,GPC
Statement 20/03/2018 - 17/04/2018,C&YPS-Non Delegated,Paypal *amkgroup,22/03/2018,9.98,Other Expenditure - General,Business Services-Not Elsewhere Classified,GPC
Statement 20/03/2018 - 17/04/2018,C&YPS-Non Delegated,Paypal *premierprod,14/04/2018,49.99,Furniture - General,"Fireplace, Fireplace Screens and Accessories Store",GPC
Statement 20/03/2018 - 17/04/2018,C&YPS-Non Delegated,Pc World Online,22/03/2018,291.66,IT Equipment - General,"RADIO, TELEVISION, AND STEREO STORES (ELECTRONIC STORES)",GPC
Statement 20/03/2018 - 17/04/2018,C&YPS-Non Delegated,Pizza Hut 953,29/03/2018,20.00,Other Transfer Payments - General,"Eating Places, Restaurants",GPC
Statement 20/03/2018 - 17/04/2018,C&YPS-Non Delegated,Post Office Counter,09/04/2018,99.75,Other Transfer Payments - Section 23 Grants,Postage Stamps,GPC
Statement 20/03/2018 - 17/04/2018,C&YPS-Non Delegated,Post Office Counter,29/03/2018,6.50,Other Transfer Payments - Section 24,Postage Stamps,GPC
Statement 20/03/2018 - 17/04/2018,C&YPS-Non Delegated,Potters Carpets,28/03/2018,400.00,Other Transfer Payments - Leaving Care Grants,Floor Coverings   Stores,GPC
Statement 20/03/2018 - 17/04/2018,C&YPS-Non Delegated,Potters Carpets,28/03/2018,129.00,Other Transfer Payments - Leaving Care Grants,Floor Coverings   Stores,GPC
Statement 20/03/2018 - 17/04/2018,C&YPS-Non Delegated,Poundland Ltd,04/04/2018,45.00,Materials - General,Discount Stores,GPC
Statement 20/03/2018 - 17/04/2018,C&YPS-Non Delegated,Poundland Ltd,19/03/2018,7.05,Other Transfer Payments - Section 23 Grants,Discount Stores,GPC
Statement 20/03/2018 - 17/04/2018,C&YPS-Non Delegated,Pp*kbeeley,19/03/2018,176.00,Grants - General,Business and Secretarial Schools,GPC
Statement 20/03/2018 - 17/04/2018,C&YPS-Non Delegated,Premier Inn 44535095,23/03/2018,307.45,Other Equipment & Materials - General,PREMIER TRAVEL,GPC
Statement 20/03/2018 - 17/04/2018,C&YPS-Non Delegated,Premier Inn 44535095,04/04/2018,314.54,Training Expenses - General,PREMIER TRAVEL,GPC
Statement 20/03/2018 - 17/04/2018,C&YPS-Non Delegated,Premier Inn 44535095,11/04/2018,34.99,Training Expenses - General,PREMIER TRAVEL,GPC
Statement 20/03/2018 - 17/04/2018,C&YPS-Non Delegated,Premier Inn 44535095,26/03/2018,250.00,Training Expenses - General,PREMIER TRAVEL,GPC
Statement 20/03/2018 - 17/04/2018,C&YPS-Non Delegated,Premier Inn44537400,27/03/2018,96.00,Subsistence - General,PREMIER TRAVEL,GPC
Statement 20/03/2018 - 17/04/2018,C&YPS-Non Delegated,Pret A Manger,29/03/2018,3.45,Provisions - General,"Eating Places, Restaurants",GPC
Statement 20/03/2018 - 17/04/2018,C&YPS-Non Delegated,Pride Of Lincoln,13/04/2018,12.57,Other Transfer Payments - Section 23 Grants,"Drinking Places (Alcoholic Beverages)-Bars, Tavern",GPC
Statement 20/03/2018 - 17/04/2018,C&YPS-Non Delegated,Pride Of Lincoln,13/04/2018,6.44,Other Transfer Payments - Section 23 Grants,"Drinking Places (Alcoholic Beverages)-Bars, Tavern",GPC
Statement 20/03/2018 - 17/04/2018,C&YPS-Non Delegated,Primark 477,22/03/2018,31.67,Personal Needs of Clients - Clothing,Family Clothing Stores,GPC
Statement 20/03/2018 - 17/04/2018,C&YPS-Non Delegated,Queensway Coffee,06/04/2018,5.20,Other Expenditure - General,"Eating Places, Restaurants",GPC
Statement 20/03/2018 - 17/04/2018,C&YPS-Non Delegated,Rebound,06/04/2018,4.00,Other Transfer Payments - Section 23 Grants,Sporting and Recreational Camps,GPC
Statement 20/03/2018 - 17/04/2018,C&YPS-Non Delegated,Rebound,06/04/2018,12.50,Other Transfer Payments - Section 23 Grants,Sporting and Recreational Camps,GPC
Statement 20/03/2018 - 17/04/2018,C&YPS-Non Delegated,Richard And Inger Mee,28/03/2018,7.25,Other Expenditure - General,"Miscellaneous Food Stores-Convenience Stores, Mark",GPC
Statement 20/03/2018 - 17/04/2018,C&YPS-Non Delegated,Sainsburys S/mkt,11/04/2018,13.72,General Equipment - General,"Grocery Stores, Supermarkets",GPC
Statement 20/03/2018 - 17/04/2018,C&YPS-Non Delegated,Sainsburys S/mkt,19/03/2018,6.17,General Equipment - General,"Grocery Stores, Supermarkets",GPC
Statement 20/03/2018 - 17/04/2018,C&YPS-Non Delegated,Sainsburys S/mkt,20/03/2018,-1.50,General Equipment - General,"Grocery Stores, Supermarkets",GPC
Statement 20/03/2018 - 17/04/2018,C&YPS-Non Delegated,Sainsburys S/mkt,20/03/2018,10.80,General Equipment - General,"Grocery Stores, Supermarkets",GPC
Statement 20/03/2018 - 17/04/2018,C&YPS-Non Delegated,Sainsburys S/mkt,29/03/2018,2.80,Other Transfer Payments - Section 24,"Grocery Stores, Supermarkets",GPC
Statement 20/03/2018 - 17/04/2018,C&YPS-Non Delegated,Sainsburys S/mkt,11/04/2018,2.99,Subsistence - General,"Grocery Stores, Supermarkets",GPC
Statement 20/03/2018 - 17/04/2018,C&YPS-Non Delegated,Sainsburys S/mkts,20/03/2018,28.80,General Equipment - General,"Grocery Stores, Supermarkets",GPC
Statement 20/03/2018 - 17/04/2018,C&YPS-Non Delegated,Sainsburys S/mkts,22/03/2018,7.95,General Equipment - General,"Grocery Stores, Supermarkets",GPC
Statement 20/03/2018 - 17/04/2018,C&YPS-Non Delegated,Sainsburys S/mkts,11/04/2018,1.25,Other Equipment & Materials - General,"Grocery Stores, Supermarkets",GPC
Statement 20/03/2018 - 17/04/2018,C&YPS-Non Delegated,Sainsburys S/mkts,16/04/2018,91.98,Other Equipment & Materials - General,"Grocery Stores, Supermarkets",GPC
Statement 20/03/2018 - 17/04/2018,C&YPS-Non Delegated,Sainsburys S/mkts,19/03/2018,1.59,Other Transfer Payments - Section 23 Grants,"Grocery Stores, Supermarkets",GPC
Statement 20/03/2018 - 17/04/2018,C&YPS-Non Delegated,Sainsburys S/mkts,11/04/2018,21.15,Provisions - General,"Grocery Stores, Supermarkets",GPC
Statement 20/03/2018 - 17/04/2018,C&YPS-Non Delegated,Sainsburys S/mkts,12/04/2018,59.88,Provisions - General,"Grocery Stores, Supermarkets",GPC
Statement 20/03/2018 - 17/04/2018,C&YPS-Non Delegated,Sainsburys S/mkts,20/03/2018,5.70,Provisions - General,"Grocery Stores, Supermarkets",GPC
Statement 20/03/2018 - 17/04/2018,C&YPS-Non Delegated,Sportsdirect 125,02/04/2018,13.60,Other Transfer Payments - General,Sporting Goods Stores,GPC
Statement 20/03/2018 - 17/04/2018,C&YPS-Non Delegated,Sportsdirect 125,22/03/2018,43.32,Personal Needs of Clients - Clothing,Sporting Goods Stores,GPC
Statement 20/03/2018 - 17/04/2018,C&YPS-Non Delegated,Sportsdirect.Com,05/04/2018,37.99,Other Transfer Payments - Section 24,Sporting Goods Stores,GPC
Statement 20/03/2018 - 17/04/2018,C&YPS-Non Delegated,Storage Giant Ltd,12/04/2018,65.83,Other Transfer Payments - General,Public Warehousing,GPC
Statement 20/03/2018 - 17/04/2018,C&YPS-Non Delegated,Storage Giant Ltd,13/04/2018,98.50,Other Transfer Payments - General,Public Warehousing,GPC
Statement 20/03/2018 - 17/04/2018,C&YPS-Non Delegated,Storagemart UK A-89e4645d,29/03/2018,16.00,Other Transfer Payments - General,"Motor Freight Carriers, and Trucking",GPC
Statement 20/03/2018 - 17/04/2018,C&YPS-Non Delegated,Storagemart UK A-E5422f36,29/03/2018,15.00,Other Transfer Payments - Section 24,"Motor Freight Carriers, and Trucking",GPC
Statement 20/03/2018 - 17/04/2018,C&YPS-Non Delegated,Subway,16/04/2018,5.20,Other Expenditure - General,"Eating Places, Restaurants",GPC
Statement 20/03/2018 - 17/04/2018,C&YPS-Non Delegated,Sugar Loaf,04/04/2018,13.25,Other Transfer Payments - Section 24,"Eating Places, Restaurants",GPC
Statement 20/03/2018 - 17/04/2018,C&YPS-Non Delegated,Teamviewer.Com*,19/03/2018,634.80,IT Equipment - General,Computer and Data Processing Services,GPC
Statement 20/03/2018 - 17/04/2018,C&YPS-Non Delegated,Tenpin,22/03/2018,27.40,Other Transfer Payments - Section 23 Grants,"Membership Clubs (Sports, Recreation, Athletic), C",GPC
Statement 20/03/2018 - 17/04/2018,C&YPS-Non Delegated,Tesco Direct,22/03/2018,249.00,IT Equipment - General,Miscellaneous and Specialty Retail Stores,GPC
Statement 20/03/2018 - 17/04/2018,C&YPS-Non Delegated,Tesco Store 2849,16/04/2018,98.68,Provisions - General,"Grocery Stores, Supermarkets",GPC
Statement 20/03/2018 - 17/04/2018,C&YPS-Non Delegated,Tesco Store 2849,13/04/2018,5.00,Subsistence - General,"Grocery Stores, Supermarkets",GPC
Statement 20/03/2018 - 17/04/2018,C&YPS-Non Delegated,Tesco Store 2849,28/03/2018,11.51,Subsistence - General,"Grocery Stores, Supermarkets",GPC
Statement 20/03/2018 - 17/04/2018,C&YPS-Non Delegated,Tesco Stores 2044,14/04/2018,71.24,Provisions - General,"Grocery Stores, Supermarkets",GPC
Statement 20/03/2018 - 17/04/2018,C&YPS-Non Delegated,Tesco Stores 5182,10/04/2018,15.82,Provisions - General,"Grocery Stores, Supermarkets",GPC
Statement 20/03/2018 - 17/04/2018,C&YPS-Non Delegated,Tesco Stores 5182,14/04/2018,102.31,Provisions - General,"Grocery Stores, Supermarkets",GPC
Statement 20/03/2018 - 17/04/2018,C&YPS-Non Delegated,Tesco Stores 5182,24/03/2018,97.50,Provisions - General,"Grocery Stores, Supermarkets",GPC
Statement 20/03/2018 - 17/04/2018,C&YPS-Non Delegated,Tesco Stores 5182,30/03/2018,20.10,Provisions - General,"Grocery Stores, Supermarkets",GPC
Statement 20/03/2018 - 17/04/2018,C&YPS-Non Delegated,Tesco Stores 6135,21/03/2018,11.82,Other Transfer Payments - Section 24,"Grocery Stores, Supermarkets",GPC
Statement 20/03/2018 - 17/04/2018,C&YPS-Non Delegated,Tesco Stores 6135,05/04/2018,20.92,Provisions - General,"Grocery Stores, Supermarkets",GPC
Statement 20/03/2018 - 17/04/2018,C&YPS-Non Delegated,The Makaton Charit,04/04/2018,300.60,General Equipment - General,Schools and Educational Services-Not Elsewhere Cla,GPC
Statement 20/03/2018 - 17/04/2018,C&YPS-Non Delegated,The Post Office,09/04/2018,116.00,Postal Services - General,Postage Stamps,GPC
Statement 20/03/2018 - 17/04/2018,C&YPS-Non Delegated,The Post Office,29/03/2018,53.95,Postal Services - General,Postage Stamps,GPC
Statement 20/03/2018 - 17/04/2018,C&YPS-Non Delegated,The Range,11/04/2018,6.97,Other Equipment & Materials - General,Department Stores,GPC
Statement 20/03/2018 - 17/04/2018,C&YPS-Non Delegated,The Range,13/04/2018,129.97,Other Transfer Payments - Leaving Care Grants,Department Stores,GPC
Statement 20/03/2018 - 17/04/2018,C&YPS-Non Delegated,Timpson Ltd,03/04/2018,15.00,Other Equipment & Materials - General,"Shoe Repair Shops, Shoe Shine Parlors, Hat Cleanin",GPC
Statement 20/03/2018 - 17/04/2018,C&YPS-Non Delegated,Trainline,21/03/2018,55.50,General Equipment - General,Passenger Railways,GPC
Statement 20/03/2018 - 17/04/2018,C&YPS-Non Delegated,Trainline,11/04/2018,427.09,Training Expenses - General,Passenger Railways,GPC
Statement 20/03/2018 - 17/04/2018,C&YPS-Non Delegated,Upperton,04/04/2018,5.60,Other Expenditure - General,"Eating Places, Restaurants",GPC
Statement 20/03/2018 - 17/04/2018,C&YPS-Non Delegated,Upt-East Midlands Trn-Lb,29/03/2018,12.00,Client/Volunteers - General,Professional Services-Not Elsewhere Classified,GPC
Statement 20/03/2018 - 17/04/2018,C&YPS-Non Delegated,W M Morrison,22/03/2018,9.75,Stationery - General,"Grocery Stores, Supermarkets",GPC
Statement 20/03/2018 - 17/04/2018,C&YPS-Non Delegated,W M Morrisons,03/04/2018,15.00,Postal Services - General,"Grocery Stores, Supermarkets",GPC
Statement 20/03/2018 - 17/04/2018,C&YPS-Non Delegated,W M Morrisons,04/04/2018,8.76,Provisions - General,"Grocery Stores, Supermarkets",GPC
Statement 20/03/2018 - 17/04/2018,C&YPS-Non Delegated,Welcome Break,06/04/2018,175.00,Other Transfer Payments - Sector 17- Other,"Lodging-Hotels, Motels, Resorts",GPC
Statement 20/03/2018 - 17/04/2018,C&YPS-Non Delegated,Westminster Forum,06/04/2018,230.00,Training Expenses - General,"Management, Consulting and Public Relations Servic",GPC
Statement 20/03/2018 - 17/04/2018,C&YPS-Non Delegated,Westsussex.Gov.Uk,12/04/2018,21.00,Other Transfer Payments - Section 23 Grants,"Colleges, Universities, Professional Schools, and",GPC
Statement 20/03/2018 - 17/04/2018,C&YPS-Non Delegated,Wh Smith,13/04/2018,10.05,Other Expenditure - General,News Dealers and Newsstands,GPC
Statement 20/03/2018 - 17/04/2018,C&YPS-Non Delegated,Wilko Retail Limit,10/04/2018,4.00,Cleaning Materials - General,Household Appliance Stores,GPC
Statement 20/03/2018 - 17/04/2018,C&YPS-Non Delegated,Wilko Retail Limit,03/04/2018,16.50,Other Equipment & Materials - General,Household Appliance Stores,GPC
Statement 20/03/2018 - 17/04/2018,C&YPS-Non Delegated,Wilko Retail Limit,11/04/2018,18.10,Other Equipment & Materials - General,Household Appliance Stores,GPC
Statement 20/03/2018 - 17/04/2018,C&YPS-Non Delegated,Wilko.Com,21/03/2018,38.00,Grants - General,Household Appliance Stores,GPC
Statement 20/03/2018 - 17/04/2018,C&YPS-Non Delegated,Wm Morrison 054,22/03/2018,11.00,Other Transfer Payments - Section 24,"Grocery Stores, Supermarkets",GPC
Statement 20/03/2018 - 17/04/2018,C&YPS-Non Delegated,Worldbooksl,16/04/2018,5.00,Other Equipment & Materials - General,Book Stores,GPC
Statement 20/03/2018 - 17/04/2018,C&YPS-Non Delegated,Worth Reading Ltd,22/03/2018,49.46,Other Expenditure - Assist/Conts to Schemes,Book Stores,GPC
Statement 20/03/2018 - 17/04/2018,C&YPS-Non Delegated,Www Teamworkskarting Com,05/04/2018,27.46,Other Expenditure - General,RECREATION SERVICES--NOT ELSEWHERE CLASSIFIED,GPC
Statement 20/03/2018 - 17/04/2018,C&YPS-Non Delegated,Www.Argos.Co.Uk,13/04/2018,-3.95,Other Transfer Payments - Leaving Care Grants,Discount Stores,GPC
Statement 20/03/2018 - 17/04/2018,C&YPS-Non Delegated,Www.Argos.Co.Uk,21/03/2018,116.94,Other Transfer Payments - Leaving Care Grants,Discount Stores,GPC
Statement 20/03/2018 - 17/04/2018,C&YPS-Non Delegated,Www.Argos.Co.Uk,27/03/2018,32.94,Other Transfer Payments - Leaving Care Grants,Discount Stores,GPC
Statement 20/03/2018 - 17/04/2018,C&YPS-Non Delegated,Www.Argos.Co.Uk,28/03/2018,83.33,Other Transfer Payments - Sector 17- Other,Discount Stores,GPC
Statement 20/03/2018 - 17/04/2018,C&YPS-Non Delegated,Www.Argos.Co.Uk,28/03/2018,234.94,Other Transfer Payments - Sector 17- Other,Discount Stores,GPC
Statement 20/03/2018 - 17/04/2018,C&YPS-Non Delegated,Www.Bhcc-Internet,03/04/2018,11.00,Other Expenditure - General,Government Services-Not Elsewhere Classified,GPC
Statement 20/03/2018 - 17/04/2018,C&YPS-Non Delegated,Www.Bhcc-Internet,03/04/2018,11.00,Other Transfer Payments - Section 23 Grants,Government Services-Not Elsewhere Classified,GPC
Statement 20/03/2018 - 17/04/2018,C&YPS-Non Delegated,Www.Coram.Org.Uk,11/04/2018,15.79,Books - General,Charitable and Social Service Organizations,GPC
Statement 20/03/2018 - 17/04/2018,C&YPS-Non Delegated,Www.Coram.Org.Uk,12/04/2018,118.80,Other Services - General,Charitable and Social Service Organizations,GPC
Statement 20/03/2018 - 17/04/2018,C&YPS-Non Delegated,Www.Edenred.Co.Uk,10/04/2018,133.13,Recruitment Advertising - General,Business Services-Not Elsewhere Classified,GPC
Statement 20/03/2018 - 17/04/2018,C&YPS-Non Delegated,Www.Groupon.Co.Uk,22/03/2018,25.00,Other Transfer Payments - Section 23 Grants,"Buying/Shopping Services, Clubs",GPC
Statement 20/03/2018 - 17/04/2018,C&YPS-Non Delegated,Www.Groupon.Co.Uk,22/03/2018,7.50,Other Transfer Payments - Section 23 Grants,"Buying/Shopping Services, Clubs",GPC
Statement 20/03/2018 - 17/04/2018,C&YPS-Non Delegated,Www.Groupon.Co.Uk,22/03/2018,14.00,Other Transfer Payments - Section 23 Grants,"Buying/Shopping Services, Clubs",GPC
Statement 20/03/2018 - 17/04/2018,C&YPS-Non Delegated,Www.Groupon.Co.Uk,22/03/2018,14.00,Other Transfer Payments - Section 23 Grants,"Buying/Shopping Services, Clubs",GPC
Statement 20/03/2018 - 17/04/2018,C&YPS-Non Delegated,Www.Groupon.Co.Uk,22/03/2018,-25.00,Other Transfer Payments - Section 23 Grants,"Buying/Shopping Services, Clubs",GPC
Statement 20/03/2018 - 17/04/2018,C&YPS-Non Delegated,Www.Groupon.Co.Uk,22/03/2018,-7.50,Other Transfer Payments - Section 23 Grants,"Buying/Shopping Services, Clubs",GPC
Statement 20/03/2018 - 17/04/2018,C&YPS-Non Delegated,Www.Groupon.Co.Uk,22/03/2018,-14.00,Other Transfer Payments - Section 23 Grants,"Buying/Shopping Services, Clubs",GPC
Statement 20/03/2018 - 17/04/2018,C&YPS-Non Delegated,Www.Groupon.Co.Uk,22/03/2018,-14.00,Other Transfer Payments - Section 23 Grants,"Buying/Shopping Services, Clubs",GPC
Statement 20/03/2018 - 17/04/2018,C&YPS-Non Delegated,Www.Ikea.Com,05/04/2018,326.25,Other Transfer Payments - Leaving Care Grants,"Furniture, Home Furnishings and Equipment Stores,",GPC
Statement 20/03/2018 - 17/04/2018,C&YPS-Non Delegated,Www.Johnlewis.Com,15/04/2018,61.95,Other Equipment & Materials - General,Department Stores,GPC
Statement 20/03/2018 - 17/04/2018,C&YPS-Non Delegated,Www.Mattressonline.Co.Uk,26/03/2018,124.96,Furniture - General,Miscellaneous and Specialty Retail Stores,GPC
Statement 20/03/2018 - 17/04/2018,C&YPS-Non Delegated,Www.Milkandmore.Co.Uk,03/04/2018,6.24,Provisions - General,Continuity/Subscription Merchants,GPC
Statement 20/03/2018 - 17/04/2018,C&YPS-Non Delegated,Www.Milkandmore.Co.Uk,03/04/2018,9.40,Provisions - General,Continuity/Subscription Merchants,GPC
Statement 20/03/2018 - 17/04/2018,C&YPS-Non Delegated,Www.Milkandmore.Co.Uk,03/04/2018,6.24,Provisions - General,Continuity/Subscription Merchants,GPC
Statement 20/03/2018 - 17/04/2018,C&YPS-Non Delegated,Www.Milkandmore.Co.Uk,03/04/2018,12.48,Provisions - General,Continuity/Subscription Merchants,GPC
Statement 20/03/2018 - 17/04/2018,C&YPS-Non Delegated,Www.Puregym.Com,29/03/2018,100.99,Other Transfer Payments - Section 24,"Membership Clubs (Sports, Recreation, Athletic), C",GPC
Statement 20/03/2018 - 17/04/2018,C&YPS-Non Delegated,Www.Reboundashby.Co.Uk,04/04/2018,30.00,Other Transfer Payments - Section 23 Grants,Sporting and Recreational Camps,GPC
Statement 20/03/2018 - 17/04/2018,C&YPS-Non Delegated,Www.Tenpin.Co.Uk,06/04/2018,28.95,Other Transfer Payments - Section 23 Grants,"Membership Clubs (Sports, Recreation, Athletic), C",GPC
Statement 20/03/2018 - 17/04/2018,C&YPS-Non Delegated,Www.Theappliancedepot.,26/03/2018,299.25,Furniture - General,Household Appliance Stores,GPC
Statement 20/03/2018 - 17/04/2018,C&YPS-Non Delegated,Www.Theworks.Co.Uk,21/03/2018,15.17,Grants - General,Discount Stores,GPC
Statement 20/03/2018 - 17/04/2018,C&YPS-Schools,Amazon Svcs Eu-Uk Amazon.,10/04/2018,59.80,Books - General,Book Stores,GPC
Statement 20/03/2018 - 17/04/2018,C&YPS-Schools,Amazon UK Retail,09/04/2018,16.24,Other Expenditure - General,Direct Marketers - Other,GPC
Statement 20/03/2018 - 17/04/2018,C&YPS-Schools,Argos Leicester,07/04/2018,9.99,Materials - General,Discount Stores,GPC
Statement 20/03/2018 - 17/04/2018,C&YPS-Schools,Argos Leicester,22/03/2018,29.99,Materials - General,Discount Stores,GPC
Statement 20/03/2018 - 17/04/2018,C&YPS-Schools,Argos Ltd,25/03/2018,6.99,Materials - General,Discount Stores,GPC
Statement 20/03/2018 - 17/04/2018,C&YPS-Schools,Asda Groceries Online,09/04/2018,64.29,Materials - General,"Grocery Stores, Supermarkets",GPC
Statement 20/03/2018 - 17/04/2018,C&YPS-Schools,Asda Groceries Online,10/04/2018,35.00,Materials - General,"Grocery Stores, Supermarkets",GPC
Statement 20/03/2018 - 17/04/2018,C&YPS-Schools,Asda Home Shopping,19/03/2018,62.58,Materials - General,"Grocery Stores, Supermarkets",GPC
Statement 20/03/2018 - 17/04/2018,C&YPS-Schools,Halfords 0813,09/04/2018,10.00,Materials - General,Bicycle Shops-Sales and Service,GPC
Statement 20/03/2018 - 17/04/2018,C&YPS-Schools,Halfords 0813,20/03/2018,65.99,Materials - General,Bicycle Shops-Sales and Service,GPC
Statement 20/03/2018 - 17/04/2018,C&YPS-Schools,Homebase Ltd 041,07/04/2018,16.89,R & M of Buildings - General,"Building Materials, Lumber Stores",GPC
Statement 20/03/2018 - 17/04/2018,C&YPS-Schools,Homebase Ltd 041,09/04/2018,19.98,R & M of Buildings - General,"Building Materials, Lumber Stores",GPC
Statement 20/03/2018 - 17/04/2018,C&YPS-Schools,Tesco Stores 5182,12/04/2018,18.00,Materials - General,"Grocery Stores, Supermarkets",GPC
Statement 20/03/2018 - 17/04/2018,C&YPS-Schools,Tesco Stores 5182,20/03/2018,42.10,Materials - General,"Grocery Stores, Supermarkets",GPC
Statement 20/03/2018 - 17/04/2018,C&YPS-Schools,The Range,20/03/2018,15.00,Materials - General,Department Stores,GPC
Statement 20/03/2018 - 17/04/2018,C&YPS-Schools,Tvlicensing.Co.Uk,11/04/2018,150.50,Other Expenditure - General,"Management, Consulting and Public Relations Servic",GPC
Statement 20/03/2018 - 17/04/2018,C&YPS-Schools,Wilko Retail Limit,14/04/2018,31.00,Materials - General,Household Appliance Stores,GPC
Statement 20/03/2018 - 17/04/2018,C&YPS-Schools,Wilko Retail Limit,19/03/2018,14.35,Materials - General,Household Appliance Stores,GPC
Statement 20/03/2018 - 17/04/2018,C&YPS-Schools,Www.Schoolstickers.Co.,09/04/2018,24.94,Printing - General,Miscellaneous Publishing and  Printing,GPC
Statement 20/03/2018 - 17/04/2018,Capital,Marsden Barn Trailers,28/03/2018,480.00,Vehicles - Expenditure,"Recreational and Utility Trailers, Camper Dealers",GPC
Statement 20/03/2018 - 17/04/2018,Chief Executive,Amazon Eu Amazon.Co.Uk,24/03/2018,7.49,Materials - General,Miscellaneous and Specialty Retail Stores,GPC
Statement 20/03/2018 - 17/04/2018,Chief Executive,Amazon Eu Amazon.Co.Uk,11/04/2018,35.32,Operational Equipment - General,Miscellaneous and Specialty Retail Stores,GPC
Statement 20/03/2018 - 17/04/2018,Chief Executive,Amazon Eu Amazon.Co.Uk,21/03/2018,28.95,Operational Equipment - General,Miscellaneous and Specialty Retail Stores,GPC
Statement 20/03/2018 - 17/04/2018,Chief Executive,Amazon Eu Amazon.Co.Uk,26/03/2018,30.73,Other Expenditure - General,Miscellaneous and Specialty Retail Stores,GPC
Statement 20/03/2018 - 17/04/2018,Chief Executive,Amazon Eu Amazon.Co.Uk,22/03/2018,19.77,Stationery - General,Miscellaneous and Specialty Retail Stores,GPC
Statement 20/03/2018 - 17/04/2018,Chief Executive,Amazon Svcs Eu-Uk Amazon.,05/04/2018,6.08,Books - General,Book Stores,GPC
Statement 20/03/2018 - 17/04/2018,Chief Executive,Amazon Svcs Eu-Uk Amazon.,21/03/2018,75.99,Books - General,Book Stores,GPC
Statement 20/03/2018 - 17/04/2018,Chief Executive,Amazon Svcs Eu-Uk Amazon.,23/03/2018,9.80,Books - General,Book Stores,GPC
Statement 20/03/2018 - 17/04/2018,Chief Executive,Amazon Svcs Eu-Uk Amazon.,26/03/2018,27.99,Books - General,Book Stores,GPC
Statement 20/03/2018 - 17/04/2018,Chief Executive,Amazon Svcs Eu-Uk Amazon.,26/03/2018,5.75,Books - General,Book Stores,GPC
Statement 20/03/2018 - 17/04/2018,Chief Executive,Amazon Svcs Eu-Uk Amazon.,09/04/2018,3.74,Operational Equipment - General,Book Stores,GPC
Statement 20/03/2018 - 17/04/2018,Chief Executive,Amazon Svcs Eu-Uk Amazon.,21/03/2018,274.17,Operational Equipment - General,Book Stores,GPC
Statement 20/03/2018 - 17/04/2018,Chief Executive,Amazon Svcs Eu-Uk Amazon.,23/03/2018,82.99,Protective Clothing & Uniforms - General,Book Stores,GPC
Statement 20/03/2018 - 17/04/2018,Chief Executive,Amazon Svcs Eu-Uk Amazon.,18/03/2018,23.63,Stationery - General,Book Stores,GPC
Statement 20/03/2018 - 17/04/2018,Chief Executive,Amazon UK Marketplace,04/04/2018,28.95,Books - General,Book Stores,GPC
Statement 20/03/2018 - 17/04/2018,Chief Executive,Amazon UK Marketplace,04/04/2018,28.95,Books - General,Book Stores,GPC
Statement 20/03/2018 - 17/04/2018,Chief Executive,Amazon UK Marketplace,04/04/2018,28.95,Books - General,Book Stores,GPC
Statement 20/03/2018 - 17/04/2018,Chief Executive,Amazon UK Marketplace,04/04/2018,28.95,Books - General,Book Stores,GPC
Statement 20/03/2018 - 17/04/2018,Chief Executive,Amazon UK Marketplace,04/04/2018,28.95,Books - General,Book Stores,GPC
Statement 20/03/2018 - 17/04/2018,Chief Executive,Amazon UK Marketplace,04/04/2018,28.95,Books - General,Book Stores,GPC
Statement 20/03/2018 - 17/04/2018,Chief Executive,Amazon UK Marketplace,09/04/2018,44.95,Protective Clothing & Uniforms - General,Book Stores,GPC
Statement 20/03/2018 - 17/04/2018,Chief Executive,Amazon UK Marketplace,10/04/2018,2.15,Protective Clothing & Uniforms - General,Book Stores,GPC
Statement 20/03/2018 - 17/04/2018,Chief Executive,Amazon UK Marketplace,23/03/2018,84.35,Protective Clothing & Uniforms - General,Book Stores,GPC
Statement 20/03/2018 - 17/04/2018,Chief Executive,Amazon UK Marketplace,23/03/2018,82.99,Protective Clothing & Uniforms - General,Book Stores,GPC
Statement 20/03/2018 - 17/04/2018,Chief Executive,Amazon UK Marketplace,08/04/2018,26.01,Stationery - General,Book Stores,GPC
Statement 20/03/2018 - 17/04/2018,Chief Executive,Amazon UK Marketplace,11/04/2018,254.40,Stationery - General,Book Stores,GPC
Statement 20/03/2018 - 17/04/2018,Chief Executive,Amazon UK Marketplace,15/04/2018,25.17,Stationery - General,Book Stores,GPC
Statement 20/03/2018 - 17/04/2018,Chief Executive,Amazon UK Marketplace,19/03/2018,3.60,Stationery - General,Book Stores,GPC
Statement 20/03/2018 - 17/04/2018,Chief Executive,Amazon UK Marketplace,26/03/2018,25.10,Stationery - General,Book Stores,GPC
Statement 20/03/2018 - 17/04/2018,Chief Executive,Amazon UK Retail,22/03/2018,20.07,Operational Equipment - General,Direct Marketers - Other,GPC
Statement 20/03/2018 - 17/04/2018,Chief Executive,Amazon UK Retail,26/03/2018,16.87,Other Expenditure - General,Direct Marketers - Other,GPC
Statement 20/03/2018 - 17/04/2018,Chief Executive,Amazon UK Retail,22/03/2018,63.67,Protective Clothing & Uniforms - General,Direct Marketers - Other,GPC
Statement 20/03/2018 - 17/04/2018,Chief Executive,Amazon UK Retail,22/03/2018,63.67,Protective Clothing & Uniforms - General,Direct Marketers - Other,GPC
Statement 20/03/2018 - 17/04/2018,Chief Executive,Amazon UK Retail,22/03/2018,31.74,Protective Clothing & Uniforms - General,Direct Marketers - Other,GPC
Statement 20/03/2018 - 17/04/2018,Chief Executive,Amazon UK Retail,22/03/2018,17.93,Stationery - General,Direct Marketers - Other,GPC
Statement 20/03/2018 - 17/04/2018,Chief Executive,Central Eng Coop,25/03/2018,1.99,Other Expenditure - General,Department Stores,GPC
Statement 20/03/2018 - 17/04/2018,Chief Executive,Charnwood Borough Council,12/04/2018,1.83,Casual/Essential - General,Automobile Parking Lots and Garages,GPC
Statement 20/03/2018 - 17/04/2018,Chief Executive,East Midlands Leicester,28/03/2018,12.08,Casual/Essential - General,Automobile Parking Lots and Garages,GPC
Statement 20/03/2018 - 17/04/2018,Chief Executive,Globe Ladders Ltd,16/04/2018,47.50,Operational Equipment - General,Hardware Stores,GPC
Statement 20/03/2018 - 17/04/2018,Chief Executive,Halfords 0977,07/04/2018,3.33,Other Expenditure - General,Bicycle Shops-Sales and Service,GPC
Statement 20/03/2018 - 17/04/2018,Chief Executive,"Highcross Car Park, Le",23/03/2018,3.50,Other Expenditure - General,Automobile Parking Lots and Garages,GPC
Statement 20/03/2018 - 17/04/2018,Chief Executive,Ncp Limited,16/04/2018,10.83,Casual/Essential - General,Automobile Parking Lots and Garages,GPC
Statement 20/03/2018 - 17/04/2018,Chief Executive,No 5 Chambers Ltd,21/03/2018,185.00,Training Expenses - General,"Legal Services, Attorneys",GPC
Statement 20/03/2018 - 17/04/2018,Chief Executive,Royal Mail,03/04/2018,308.00,Postal Services - General,Postage Stamps,GPC
Statement 20/03/2018 - 17/04/2018,Chief Executive,Royal Mail,04/04/2018,175.50,Postal Services - General,Postage Stamps,GPC
Statement 20/03/2018 - 17/04/2018,Chief Executive,Screwfix Direct Lt,09/04/2018,4.99,Protective Clothing & Uniforms - General,"Building Materials, Lumber Stores",GPC
Statement 20/03/2018 - 17/04/2018,Chief Executive,Sturgess Jaguar,11/04/2018,26.99,Other Expenditure - General,"Automobile and Truck Dealers-Sales, Service, Repai",GPC
Statement 20/03/2018 - 17/04/2018,Chief Executive,T M Lewin,23/03/2018,9.75,Protective Clothing & Uniforms - General,Men's and Boy's Clothing and Furnishings Store,GPC
Statement 20/03/2018 - 17/04/2018,Chief Executive,Tesco-Stores 6573,10/04/2018,19.74,Other Expenditure - General,"Grocery Stores, Supermarkets",GPC
Statement 20/03/2018 - 17/04/2018,Chief Executive,Tm Lewin & Sons,21/03/2018,195.83,Protective Clothing & Uniforms - General,Men's And Women's Clothing Stores,GPC
Statement 20/03/2018 - 17/04/2018,Chief Executive,Tvlicensing.Co.Uk,19/03/2018,147.00,Other Expenditure - General,"Management, Consulting and Public Relations Servic",GPC
Statement 20/03/2018 - 17/04/2018,Chief Executive,Www.Barprofessionaltra,28/03/2018,246.00,Other Expenditure - Other Fees/FEFC,"Legal Services, Attorneys",GPC
Statement 20/03/2018 - 17/04/2018,Chief Executive,Www.Gooutdoors.Co,20/03/2018,20.79,Operational Equipment - General,Men's And Women's Clothing Stores,GPC
Statement 20/03/2018 - 17/04/2018,Chief Executive,Www.Neopost.Co.Uk,04/04/2018,500.00,Stationery - General,"Stationary, Office Supplies, Printing and Writing",GPC
Statement 20/03/2018 - 17/04/2018,Corporate Resources,Aldi 19 772,29/03/2018,16.50,Materials - General,"Grocery Stores, Supermarkets",GPC
Statement 20/03/2018 - 17/04/2018,Corporate Resources,Aldi 24 772,16/04/2018,8.59,Materials - General,"Grocery Stores, Supermarkets",GPC
Statement 20/03/2018 - 17/04/2018,Corporate Resources,Amazon Prime Member Fee A,19/03/2018,7.99,Other Expenditure - General,Continuity/Subscription Merchants,GPC
Statement 20/03/2018 - 17/04/2018,Corporate Resources,Amazon Svcs Eu-Uk Amazon.,07/04/2018,-14.99,Books - General,Book Stores,GPC
Statement 20/03/2018 - 17/04/2018,Corporate Resources,Amazon Svcs Eu-Uk Amazon.,11/04/2018,2.55,Books - General,Book Stores,GPC
Statement 20/03/2018 - 17/04/2018,Corporate Resources,Amazon Svcs Eu-Uk Amazon.,11/04/2018,6.66,Books - General,Book Stores,GPC
Statement 20/03/2018 - 17/04/2018,Corporate Resources,Amazon Svcs Eu-Uk Amazon.,26/03/2018,14.99,Books - General,Book Stores,GPC
Statement 20/03/2018 - 17/04/2018,Corporate Resources,Amazon Svcs Eu-Uk Amazon.,26/03/2018,4.99,Books - General,Book Stores,GPC
Statement 20/03/2018 - 17/04/2018,Corporate Resources,Amazon Svcs Eu-Uk Amazon.,27/03/2018,89.95,Books - General,Book Stores,GPC
Statement 20/03/2018 - 17/04/2018,Corporate Resources,Amazon Svcs Eu-Uk Amazon.,27/03/2018,71.92,Books - General,Book Stores,GPC
Statement 20/03/2018 - 17/04/2018,Corporate Resources,Amazon Svcs Eu-Uk Amazon.,13/04/2018,21.76,Operational Equipment - General,Book Stores,GPC
Statement 20/03/2018 - 17/04/2018,Corporate Resources,Amazon Svcs Eu-Uk Amazon.,22/03/2018,83.32,Operational Equipment - General,Book Stores,GPC
Statement 20/03/2018 - 17/04/2018,Corporate Resources,Amazon Svcs Eu-Uk Amazon.,05/04/2018,18.98,Other Expenditure - General,Book Stores,GPC
Statement 20/03/2018 - 17/04/2018,Corporate Resources,Amazon Svcs Eu-Uk Amazon.,21/03/2018,2.46,Other Services - General,Book Stores,GPC
Statement 20/03/2018 - 17/04/2018,Corporate Resources,Amazon Svcs Eu-Uk Amazon.,22/03/2018,2.99,Other Services - General,Book Stores,GPC
Statement 20/03/2018 - 17/04/2018,Corporate Resources,Amazon UK Marketplace,11/04/2018,27.05,Books - General,Book Stores,GPC
Statement 20/03/2018 - 17/04/2018,Corporate Resources,Amazon UK Marketplace,20/03/2018,39.95,Books - General,Book Stores,GPC
Statement 20/03/2018 - 17/04/2018,Corporate Resources,Amazon UK Marketplace,28/03/2018,11.61,Books - General,Book Stores,GPC
Statement 20/03/2018 - 17/04/2018,Corporate Resources,Amazon UK Marketplace,28/03/2018,3.80,Books - General,Book Stores,GPC
Statement 20/03/2018 - 17/04/2018,Corporate Resources,Amazon UK Marketplace,30/03/2018,13.83,Books - General,Book Stores,GPC
Statement 20/03/2018 - 17/04/2018,Corporate Resources,Amazon UK Marketplace,19/03/2018,31.96,Catering Equipment - General,Book Stores,GPC
Statement 20/03/2018 - 17/04/2018,Corporate Resources,Amazon UK Marketplace,28/03/2018,41.33,General Equipment - General,Book Stores,GPC
Statement 20/03/2018 - 17/04/2018,Corporate Resources,Amazon UK Marketplace,13/04/2018,5.17,Materials - General,Book Stores,GPC
Statement 20/03/2018 - 17/04/2018,Corporate Resources,Amazon UK Marketplace,13/04/2018,2.92,Operational Equipment - General,Book Stores,GPC
Statement 20/03/2018 - 17/04/2018,Corporate Resources,Amazon UK Marketplace,09/04/2018,10.98,Other Services - General,Book Stores,GPC
Statement 20/03/2018 - 17/04/2018,Corporate Resources,Amazon UK Marketplace,21/03/2018,50.06,Stationery - General,Book Stores,GPC
Statement 20/03/2018 - 17/04/2018,Corporate Resources,Amazon UK Marketplace,29/03/2018,2.81,Training Expenses - General,Book Stores,GPC
Statement 20/03/2018 - 17/04/2018,Corporate Resources,Amazon UK Retail,16/04/2018,9.16,Other Expenditure - General,Direct Marketers - Other,GPC
Statement 20/03/2018 - 17/04/2018,Corporate Resources,Amazon UK Retail,16/04/2018,17.70,Stationery - General,Direct Marketers - Other,GPC
Statement 20/03/2018 - 17/04/2018,Corporate Resources,Anstey Shoe Repairs,27/03/2018,36.55,Other Services - General,"Shoe Repair Shops, Shoe Shine Parlors, Hat Cleanin",GPC
Statement 20/03/2018 - 17/04/2018,Corporate Resources,Anstey Shoe Repairs,28/03/2018,23.70,Other Services - General,"Shoe Repair Shops, Shoe Shine Parlors, Hat Cleanin",GPC
Statement 20/03/2018 - 17/04/2018,Corporate Resources,Apple Kiosk Gbp,12/04/2018,517.20,Materials - General,"RADIO, TELEVISION, AND STEREO STORES (ELECTRONIC STORES)",GPC
Statement 20/03/2018 - 17/04/2018,Corporate Resources,Apple Kiosk Gbp,27/03/2018,536.40,Materials - General,"RADIO, TELEVISION, AND STEREO STORES (ELECTRONIC STORES)",GPC
Statement 20/03/2018 - 17/04/2018,Corporate Resources,Arco Ltd,16/04/2018,96.00,Protective Clothing & Uniforms - General,Industrial Supplies Not Elsewhere Classified,GPC
Statement 20/03/2018 - 17/04/2018,Corporate Resources,Arco Ltd,16/04/2018,100.00,Protective Clothing & Uniforms - General,Industrial Supplies Not Elsewhere Classified,GPC
Statement 20/03/2018 - 17/04/2018,Corporate Resources,Asda Stores 4477,09/04/2018,5.00,Other Expenditure - General,"Grocery Stores, Supermarkets",GPC
Statement 20/03/2018 - 17/04/2018,Corporate Resources,Asda Stores 4477,11/04/2018,1.34,Other Expenditure - General,"Grocery Stores, Supermarkets",GPC
Statement 20/03/2018 - 17/04/2018,Corporate Resources,Asda Stores 4477,11/04/2018,10.18,Other Expenditure - General,"Grocery Stores, Supermarkets",GPC
Statement 20/03/2018 - 17/04/2018,Corporate Resources,Asda Stores 4477,21/03/2018,4.43,Other Expenditure - General,"Grocery Stores, Supermarkets",GPC
Statement 20/03/2018 - 17/04/2018,Corporate Resources,Asda Stores 4477,28/03/2018,1.34,Other Expenditure - General,"Grocery Stores, Supermarkets",GPC
Statement 20/03/2018 - 17/04/2018,Corporate Resources,Asda Stores 4477,27/03/2018,21.59,Other Services - General,"Grocery Stores, Supermarkets",GPC
Statement 20/03/2018 - 17/04/2018,Corporate Resources,Asda Stores 4477,28/03/2018,11.52,Other Services - General,"Grocery Stores, Supermarkets",GPC
Statement 20/03/2018 - 17/04/2018,Corporate Resources,Asda Superstore,28/03/2018,15.09,Other Expenditure - General,"Grocery Stores, Supermarkets",GPC
Statement 20/03/2018 - 17/04/2018,Corporate Resources,Asda Superstore,02/04/2018,33.92,Provisions - General,"Grocery Stores, Supermarkets",GPC
Statement 20/03/2018 - 17/04/2018,Corporate Resources,Asda Superstore,03/04/2018,22.50,Stationery - General,"Grocery Stores, Supermarkets",GPC
Statement 20/03/2018 - 17/04/2018,Corporate Resources,B&m Retail Ltd,28/03/2018,9.98,Other Expenditure - General,Discount Stores,GPC
Statement 20/03/2018 - 17/04/2018,Corporate Resources,B&m Retail Ltd,08/04/2018,20.97,Other Services - General,Discount Stores,GPC
Statement 20/03/2018 - 17/04/2018,Corporate Resources,B&m Retail Ltd,08/04/2018,12.98,Other Services - General,Discount Stores,GPC
Statement 20/03/2018 - 17/04/2018,Corporate Resources,Bennett`s Bait And Tackl,06/04/2018,69.98,Other Services - General,Sporting Goods Stores,GPC
Statement 20/03/2018 - 17/04/2018,Corporate Resources,Bus Ticket Or Emt Wifi,05/04/2018,12.50,Public Transport -  Staff - General,"Bus Lines, Charters, Tour Buses",GPC
Statement 20/03/2018 - 17/04/2018,Corporate Resources,Buxtons Ltd,29/03/2018,-328.20,Other Expenditure - General,"Florists Supplies, Nursery Stock, and Flowers",GPC
Statement 20/03/2018 - 17/04/2018,Corporate Resources,Citb,26/03/2018,100.00,Training Expenses - General,"Colleges, Universities, Professional Schools, and",GPC
Statement 20/03/2018 - 17/04/2018,Corporate Resources,Citb,29/03/2018,50.00,Training Expenses - General,"Colleges, Universities, Professional Schools, and",GPC
Statement 20/03/2018 - 17/04/2018,Corporate Resources,Cooks Farm Shop,29/03/2018,84.15,Other Expenditure - Public Enquiry fees,"Lawn and Garden Supply Stores, Nurseries",GPC
Statement 20/03/2018 - 17/04/2018,Corporate Resources,Cooks Farm Shop,13/04/2018,9.80,Other Services - General,"Lawn and Garden Supply Stores, Nurseries",GPC
Statement 20/03/2018 - 17/04/2018,Corporate Resources,Co-Op Group 070412,04/04/2018,22.33,Other Expenditure - General,"Grocery Stores, Supermarkets",GPC
Statement 20/03/2018 - 17/04/2018,Corporate Resources,Co-Op Group 070412,20/03/2018,24.06,Other Expenditure - General,"Grocery Stores, Supermarkets",GPC
Statement 20/03/2018 - 17/04/2018,Corporate Resources,Co-Op Late Shop,26/03/2018,1.97,Other Services - General,"Grocery Stores, Supermarkets",GPC
Statement 20/03/2018 - 17/04/2018,Corporate Resources,Co-Op Late Shop,01/04/2018,30.55,Provisions - General,"Grocery Stores, Supermarkets",GPC
Statement 20/03/2018 - 17/04/2018,Corporate Resources,Co-Op Late Shop,06/04/2018,8.95,Provisions - General,"Grocery Stores, Supermarkets",GPC
Statement 20/03/2018 - 17/04/2018,Corporate Resources,Cross Country Trains,06/04/2018,170.50,Training Expenses - General,Passenger Railways,GPC
Statement 20/03/2018 - 17/04/2018,Corporate Resources,Curry Leaf Cafe,09/04/2018,30.00,Subsistence - General,"Eating Places, Restaurants",GPC
Statement 20/03/2018 - 17/04/2018,Corporate Resources,Destinet Ltd,28/03/2018,234.00,Publicity/Marketing - General,Advertising Services,GPC
Statement 20/03/2018 - 17/04/2018,Corporate Resources,Dvla Vehicle Tax,12/04/2018,252.50,Road Licences - General,Government Services-Not Elsewhere Classified,GPC
Statement 20/03/2018 - 17/04/2018,Corporate Resources,Dvla Vehicle Tax,16/04/2018,252.50,Road Licences - General,Government Services-Not Elsewhere Classified,GPC
Statement 20/03/2018 - 17/04/2018,Corporate Resources,Dvla Vehicle Tax,23/03/2018,242.50,Road Licences - General,Government Services-Not Elsewhere Classified,GPC
Statement 20/03/2018 - 17/04/2018,Corporate Resources,Dvla Vehicle Tax,23/03/2018,242.50,Road Licences - General,Government Services-Not Elsewhere Classified,GPC
Statement 20/03/2018 - 17/04/2018,Corporate Resources,Dvla Vehicle Tax,23/03/2018,167.50,Road Licences - General,Government Services-Not Elsewhere Classified,GPC
Statement 20/03/2018 - 17/04/2018,Corporate Resources,East Midland Trains,27/03/2018,4.58,Public Transport -  Staff - General,Automobile Parking Lots and Garages,GPC
Statement 20/03/2018 - 17/04/2018,Corporate Resources,East Midland Trains,28/03/2018,6.67,Public Transport -  Staff - General,Automobile Parking Lots and Garages,GPC
Statement 20/03/2018 - 17/04/2018,Corporate Resources,East Midlands Market Har,05/04/2018,10.00,Public Transport -  Staff - General,Automobile Parking Lots and Garages,GPC
Statement 20/03/2018 - 17/04/2018,Corporate Resources,East Midlands Market Har,05/04/2018,10.00,Public Transport -  Staff - General,Automobile Parking Lots and Garages,GPC
Statement 20/03/2018 - 17/04/2018,Corporate Resources,East Midlands Market Har,06/04/2018,10.00,Public Transport -  Staff - General,Automobile Parking Lots and Garages,GPC
Statement 20/03/2018 - 17/04/2018,Corporate Resources,East Midlands Market Har,11/04/2018,10.00,Public Transport -  Staff - General,Automobile Parking Lots and Garages,GPC
Statement 20/03/2018 - 17/04/2018,Corporate Resources,East Midlands Market Har,11/04/2018,10.00,Public Transport -  Staff - General,Automobile Parking Lots and Garages,GPC
Statement 20/03/2018 - 17/04/2018,Corporate Resources,East Midlands Market Har,12/04/2018,10.00,Public Transport -  Staff - General,Automobile Parking Lots and Garages,GPC
Statement 20/03/2018 - 17/04/2018,Corporate Resources,East Midlands Market Har,21/03/2018,5.83,Public Transport -  Staff - General,Automobile Parking Lots and Garages,GPC
Statement 20/03/2018 - 17/04/2018,Corporate Resources,East Midlands Market Har,28/03/2018,10.00,Public Transport -  Staff - General,Automobile Parking Lots and Garages,GPC
Statement 20/03/2018 - 17/04/2018,Corporate Resources,East Midlands Market Har,28/03/2018,10.00,Public Transport -  Staff - General,Automobile Parking Lots and Garages,GPC
Statement 20/03/2018 - 17/04/2018,Corporate Resources,East Midlands Market Har,28/03/2018,10.00,Public Transport -  Staff - General,Automobile Parking Lots and Garages,GPC
Statement 20/03/2018 - 17/04/2018,Corporate Resources,East Midlands Trai,10/04/2018,12.08,Public Transport -  Staff - General,Passenger Railways,GPC
Statement 20/03/2018 - 17/04/2018,Corporate Resources,East Midlands Trains,20/03/2018,25.90,Casual/Essential - General,Passenger Railways,GPC
Statement 20/03/2018 - 17/04/2018,Corporate Resources,Eb *essential Digital,28/03/2018,99.17,Training Expenses - General,Business Services-Not Elsewhere Classified,GPC
Statement 20/03/2018 - 17/04/2018,Corporate Resources,Eb *essential Digital,28/03/2018,119.00,Training Expenses - General,Business Services-Not Elsewhere Classified,GPC
Statement 20/03/2018 - 17/04/2018,Corporate Resources,Eb *seminar Understand,06/04/2018,249.95,Training Expenses - General,Business Services-Not Elsewhere Classified,GPC
Statement 20/03/2018 - 17/04/2018,Corporate Resources,Eb *society Of Chief L,22/03/2018,67.50,Training Expenses - General,Business Services-Not Elsewhere Classified,GPC
Statement 20/03/2018 - 17/04/2018,Corporate Resources,Eb *supporting Adult S,03/04/2018,-125.00,Other Equipment & Materials - General,Business Services-Not Elsewhere Classified,GPC
Statement 20/03/2018 - 17/04/2018,Corporate Resources,Eclipse Networking Lim,23/03/2018,22.76,Other Expenditure - General,Continuity/Subscription Merchants,GPC
Statement 20/03/2018 - 17/04/2018,Corporate Resources,Environment Agency,06/04/2018,30.00,Other Services - General,Government Services-Not Elsewhere Classified,GPC
Statement 20/03/2018 - 17/04/2018,Corporate Resources,Environment Agency,06/04/2018,30.00,Other Services - General,Government Services-Not Elsewhere Classified,GPC
Statement 20/03/2018 - 17/04/2018,Corporate Resources,Facebk 4zfc8fney2,05/04/2018,17.48,Publicity/Marketing - Information Provision,Advertising Services,GPC
Statement 20/03/2018 - 17/04/2018,Corporate Resources,Facebk 5b49gesl52,23/03/2018,512.79,Publicity/Marketing - General,Advertising Services,GPC
Statement 20/03/2018 - 17/04/2018,Corporate Resources,Facebk 6zfc8fney2,05/04/2018,5.69,Publicity/Marketing - Information Provision,Advertising Services,GPC
Statement 20/03/2018 - 17/04/2018,Corporate Resources,Facebk 95qfdfwse2,31/03/2018,190.13,Publicity/Marketing - General,Advertising Services,GPC
Statement 20/03/2018 - 17/04/2018,Corporate Resources,Facebk 9b49gesl52,23/03/2018,87.21,Publicity/Marketing - General,Advertising Services,GPC
Statement 20/03/2018 - 17/04/2018,Corporate Resources,Facebk A5qfdfwse2,31/03/2018,60.44,Publicity/Marketing - General,Advertising Services,GPC
Statement 20/03/2018 - 17/04/2018,Corporate Resources,Facebk Ak9jlf64k2,31/03/2018,22.74,Publicity/Marketing - General,Advertising Services,GPC
Statement 20/03/2018 - 17/04/2018,Corporate Resources,Facebk Bk9jlf64k2,31/03/2018,11.28,Publicity/Marketing - General,Advertising Services,GPC
Statement 20/03/2018 - 17/04/2018,Corporate Resources,Facebk Fnygckal52,14/04/2018,569.79,Publicity/Marketing - General,Advertising Services,GPC
Statement 20/03/2018 - 17/04/2018,Corporate Resources,Facebk Hnygckal52,14/04/2018,30.21,Publicity/Marketing - General,Advertising Services,GPC
Statement 20/03/2018 - 17/04/2018,Corporate Resources,Facebk Mstgvg6fy2,23/03/2018,30.80,Publicity/Marketing - Information Provision,Advertising Services,GPC
Statement 20/03/2018 - 17/04/2018,Corporate Resources,Facebk Mzapseel52,06/04/2018,536.21,Publicity/Marketing - General,Advertising Services,GPC
Statement 20/03/2018 - 17/04/2018,Corporate Resources,Facebk Qttgvg6fy2,23/03/2018,9.20,Publicity/Marketing - Information Provision,Advertising Services,GPC
Statement 20/03/2018 - 17/04/2018,Corporate Resources,Facebk Rzapseel52,06/04/2018,63.79,Publicity/Marketing - General,Advertising Services,GPC
Statement 20/03/2018 - 17/04/2018,Corporate Resources,Facebk T563kesl52,31/03/2018,435.27,Publicity/Marketing - General,Advertising Services,GPC
Statement 20/03/2018 - 17/04/2018,Corporate Resources,Facebk U563kesl52,31/03/2018,35.40,Publicity/Marketing - General,Advertising Services,GPC
Statement 20/03/2018 - 17/04/2018,Corporate Resources,Fleurs En Fleur,23/03/2018,15.00,Other Equipment & Materials - General,Florists,GPC
Statement 20/03/2018 - 17/04/2018,Corporate Resources,Google *adws3070599614,07/04/2018,350.00,Advertising - General,Continuity/Subscription Merchants,GPC
Statement 20/03/2018 - 17/04/2018,Corporate Resources,Hancock Cash & Carry,29/03/2018,146.53,Materials - General,Nondurable Goods Not Elsewhere Classified,GPC
Statement 20/03/2018 - 17/04/2018,Corporate Resources,Hancock Cash & Carry,29/03/2018,68.14,Materials - General,Nondurable Goods Not Elsewhere Classified,GPC
Statement 20/03/2018 - 17/04/2018,Corporate Resources,Hancock Cash And Carry Lt,20/03/2018,118.26,Materials - General,Wholesale Clubs,GPC
Statement 20/03/2018 - 17/04/2018,Corporate Resources,Hemming Group Ltd,10/04/2018,140.00,Subscriptions - General,Catalog Merchants,GPC
Statement 20/03/2018 - 17/04/2018,Corporate Resources,Henbrandt Limited,16/04/2018,152.40,General Equipment - General,Miscellaneous and Specialty Retail Stores,GPC
Statement 20/03/2018 - 17/04/2018,Corporate Resources,Higgotts,28/03/2018,16.63,Other Services - General,Landscaping and Horticultural Services,GPC
Statement 20/03/2018 - 17/04/2018,Corporate Resources,"Highcross Car Park, Le",04/04/2018,4.58,Public Transport -  Staff - General,Automobile Parking Lots and Garages,GPC
Statement 20/03/2018 - 17/04/2018,Corporate Resources,Hoo*hootsuite Inc,23/03/2018,81.49,Publicity/Marketing - General,Continuity/Subscription Merchants,GPC
Statement 20/03/2018 - 17/04/2018,Corporate Resources,Hoo*hootsuite Inc,30/03/2018,7.71,Publicity/Marketing - General,Continuity/Subscription Merchants,GPC
Statement 20/03/2018 - 17/04/2018,Corporate Resources,Hotel On Booking.Com,22/03/2018,-95.00,Subsistence - General,"Lodging-Hotels, Motels, Resorts",GPC
Statement 20/03/2018 - 17/04/2018,Corporate Resources,Ibstock Gun And Tackle,05/04/2018,25.00,Other Services - General,Miscellaneous and Specialty Retail Stores,GPC
Statement 20/03/2018 - 17/04/2018,Corporate Resources,Information not available,03/04/2018,0.29,Publicity/Marketing - General,Misc-Unknown,GPC
Statement 20/03/2018 - 17/04/2018,Corporate Resources,Information not available,26/03/2018,2.93,Publicity/Marketing - General,Misc-Unknown,GPC
Statement 20/03/2018 - 17/04/2018,Corporate Resources,Information not available,29/03/2018,2.90,Publicity/Marketing - General,Misc-Unknown,GPC
Statement 20/03/2018 - 17/04/2018,Corporate Resources,Itsu 048 Great Peter S,19/03/2018,7.07,Subsistence - General,"Eating Places, Restaurants",GPC
Statement 20/03/2018 - 17/04/2018,Corporate Resources,Ivanhoe Country Store,07/04/2018,65.00,Other Services - General,Miscellaneous General Merchandise Stores,GPC
Statement 20/03/2018 - 17/04/2018,Corporate Resources,Jam Jar,09/04/2018,2.17,Subsistence - General,"Package Stores, Beer, Wine, Liquor",GPC
Statement 20/03/2018 - 17/04/2018,Corporate Resources,Js Online Grocery,21/03/2018,44.58,Materials - General,"Grocery Stores, Supermarkets",GPC
Statement 20/03/2018 - 17/04/2018,Corporate Resources,Lcc Catering Services,03/04/2018,4.59,Subsistence - General,Government Services-Not Elsewhere Classified,GPC
Statement 20/03/2018 - 17/04/2018,Corporate Resources,Lcc Catering Services,12/04/2018,4.46,Subsistence - General,Government Services-Not Elsewhere Classified,GPC
Statement 20/03/2018 - 17/04/2018,Corporate Resources,Leic City Council,13/04/2018,35.00,Other Expenditure - General,Government Services-Not Elsewhere Classified,GPC
Statement 20/03/2018 - 17/04/2018,Corporate Resources,Linkedin-300*7955376,28/03/2018,105.38,Publicity/Marketing - General,Continuity/Subscription Merchants,GPC
Statement 20/03/2018 - 17/04/2018,Corporate Resources,London & South Eas,10/04/2018,50.00,Public Transport -  Staff - General,Passenger Railways,GPC
Statement 20/03/2018 - 17/04/2018,Corporate Resources,Loughborough Sst,04/04/2018,36.60,Public Transport -  Staff - General,Passenger Railways,GPC
Statement 20/03/2018 - 17/04/2018,Corporate Resources,Loughborough Sst,08/04/2018,42.70,Public Transport -  Staff - General,Passenger Railways,GPC
Statement 20/03/2018 - 17/04/2018,Corporate Resources,Lr Harris & Son,11/04/2018,134.46,Operational Equipment - General,"Marinas, Marine Service/Suppliers",GPC
Statement 20/03/2018 - 17/04/2018,Corporate Resources,Lul Ticket Machine,12/04/2018,20.00,Public Transport -  Staff - General,Passenger Railways,GPC
Statement 20/03/2018 - 17/04/2018,Corporate Resources,Lul Ticket Machine,12/04/2018,20.00,Public Transport -  Staff - General,Passenger Railways,GPC
Statement 20/03/2018 - 17/04/2018,Corporate Resources,Malthurst Retail L,04/04/2018,1.49,Subscriptions - General,Service Stations (with or without Ancillary Servic,GPC
Statement 20/03/2018 - 17/04/2018,Corporate Resources,McDonalds,27/03/2018,5.77,Subsistence - General,Fast-Food Restaurants (Quick Payment Service Pilot,GPC
Statement 20/03/2018 - 17/04/2018,Corporate Resources,Media & Communications L,21/03/2018,-81.60,Communications Equipment - General,Telecommunication Equipment Including Telephone Sa,GPC
Statement 20/03/2018 - 17/04/2018,Corporate Resources,Media & Communications L,23/03/2018,-80.00,Communications Equipment - General,Telecommunication Equipment Including Telephone Sa,GPC
Statement 20/03/2018 - 17/04/2018,Corporate Resources,Mediaarchiv,04/04/2018,210.00,Publicity/Marketing - General,Charitable and Social Service Organizations,GPC
Statement 20/03/2018 - 17/04/2018,Corporate Resources,Metrolink Tvm,04/04/2018,3.20,Public Transport -  Staff - General,"Bus Lines, Charters, Tour Buses",GPC
Statement 20/03/2018 - 17/04/2018,Corporate Resources,Miles Tool & Mach Ctre,04/04/2018,11.86,Other Services - General,Hardware Stores,GPC
Statement 20/03/2018 - 17/04/2018,Corporate Resources,Msft *<e02005gjlp>,01/04/2018,196.32,IT Equipment - Software,"Computers, Computer Peripheral Equipment, Software",GPC
Statement 20/03/2018 - 17/04/2018,Corporate Resources,Ncp Limited,09/04/2018,20.00,Public Transport -  Staff - General,Automobile Parking Lots and Garages,GPC
Statement 20/03/2018 - 17/04/2018,Corporate Resources,Ncp Limited,10/04/2018,16.67,Public Transport -  Staff - General,Automobile Parking Lots and Garages,GPC
Statement 20/03/2018 - 17/04/2018,Corporate Resources,Ncp Sheffield Wellingt,21/03/2018,3.00,Public Transport -  Staff - General,Automobile Parking Lots and Garages,GPC
Statement 20/03/2018 - 17/04/2018,Corporate Resources,Nottingham Sports Inju,22/03/2018,228.00,Other Allowances/Expenses - Retirement gifts,"Medical Services, Health Practitioners-Not Elsewhe",GPC
Statement 20/03/2018 - 17/04/2018,Corporate Resources,Ns Plumbing & Heating,23/03/2018,13.83,R & M of Buildings - General,Plumbing and Heating Equipment,GPC
Statement 20/03/2018 - 17/04/2018,Corporate Resources,P & R Building Supplie,19/03/2018,12.75,Other Services - General,"Building Materials, Lumber Stores",GPC
Statement 20/03/2018 - 17/04/2018,Corporate Resources,Parker Motor Service,25/03/2018,41.59,Other Services - General,"Automotive Parts, Accessories Stores",GPC
Statement 20/03/2018 - 17/04/2018,Corporate Resources,Paternoster Ltd,28/03/2018,81.00,Subsistence - General,"Eating Places, Restaurants",GPC
Statement 20/03/2018 - 17/04/2018,Corporate Resources,Paypal *ipcmanageme,29/03/2018,795.00,Training Expenses - General,Miscellaneous and Specialty Retail Stores,GPC
Statement 20/03/2018 - 17/04/2018,Corporate Resources,Paypal *simongoodwa,28/03/2018,100.00,Other Expenditure - General,"Artist Supply Stores, Craft Shops",GPC
Statement 20/03/2018 - 17/04/2018,Corporate Resources,Plumb Center Eu,26/03/2018,30.73,R & M of Buildings - General,"Heating, Plumbing, Air Conditioning Contractors",GPC
Statement 20/03/2018 - 17/04/2018,Corporate Resources,Poundstretcher 791,28/03/2018,23.94,Other Expenditure - General,"Drapery, Window Coverings, and Upholstery Stores",GPC
Statement 20/03/2018 - 17/04/2018,Corporate Resources,Poundworld Retail,28/03/2018,4.17,Other Expenditure - General,Discount Stores,GPC
Statement 20/03/2018 - 17/04/2018,Corporate Resources,Pp*breakescape,10/04/2018,226.67,Training Expenses - General,Miscellaneous and Specialty Retail Stores,GPC
Statement 20/03/2018 - 17/04/2018,Corporate Resources,Premier Inn 44535095,28/03/2018,352.46,Training Expenses - General,PREMIER TRAVEL,GPC
Statement 20/03/2018 - 17/04/2018,Corporate Resources,Premier Inn 44536475,11/04/2018,-93.32,Training Expenses - General,"Eating Places, Restaurants",GPC
Statement 20/03/2018 - 17/04/2018,Corporate Resources,Premier Inn 44536475,11/04/2018,-253.31,Training Expenses - General,"Eating Places, Restaurants",GPC
Statement 20/03/2018 - 17/04/2018,Corporate Resources,Premier Inn 44536475,11/04/2018,-519.09,Training Expenses - General,"Eating Places, Restaurants",GPC
Statement 20/03/2018 - 17/04/2018,Corporate Resources,Premier Inn 44536475,11/04/2018,-175.82,Training Expenses - General,"Eating Places, Restaurants",GPC
Statement 20/03/2018 - 17/04/2018,Corporate Resources,Premier Inn 44536475,22/03/2018,519.09,Training Expenses - General,"Eating Places, Restaurants",GPC
Statement 20/03/2018 - 17/04/2018,Corporate Resources,Premier Inn 44536475,22/03/2018,253.31,Training Expenses - General,"Eating Places, Restaurants",GPC
Statement 20/03/2018 - 17/04/2018,Corporate Resources,Premier Inn 44536475,22/03/2018,175.82,Training Expenses - General,"Eating Places, Restaurants",GPC
Statement 20/03/2018 - 17/04/2018,Corporate Resources,Premier Inn 44536475,22/03/2018,111.98,Training Expenses - General,"Eating Places, Restaurants",GPC
Statement 20/03/2018 - 17/04/2018,Corporate Resources,Premier Inn44028535,05/04/2018,81.66,Training Expenses - General,PREMIER TRAVEL,GPC
Statement 20/03/2018 - 17/04/2018,Corporate Resources,Premier Inn44521250,05/04/2018,45.83,Subsistence - General,PREMIER TRAVEL,GPC
Statement 20/03/2018 - 17/04/2018,Corporate Resources,Premier Inn44521250,05/04/2018,59.16,Training Expenses - General,PREMIER TRAVEL,GPC
Statement 20/03/2018 - 17/04/2018,Corporate Resources,Premier Inn44521250,05/04/2018,44.99,Training Expenses - General,PREMIER TRAVEL,GPC
Statement 20/03/2018 - 17/04/2018,Corporate Resources,Premier Inn44521250,05/04/2018,71.66,Training Expenses - General,PREMIER TRAVEL,GPC
Statement 20/03/2018 - 17/04/2018,Corporate Resources,Premier Inn44521250,05/04/2018,73.33,Training Expenses - General,PREMIER TRAVEL,GPC
Statement 20/03/2018 - 17/04/2018,Corporate Resources,Premier Inn44521260,27/03/2018,61.99,Subsistence - General,PREMIER TRAVEL,GPC
Statement 20/03/2018 - 17/04/2018,Corporate Resources,Pret A Manger,09/04/2018,4.04,Subsistence - General,"Eating Places, Restaurants",GPC
Statement 20/03/2018 - 17/04/2018,Corporate Resources,Q Park Charles Street,21/03/2018,6.25,Public Transport -  Staff - General,Automobile Parking Lots and Garages,GPC
Statement 20/03/2018 - 17/04/2018,Corporate Resources,Ritazza 2,27/03/2018,4.01,Subsistence - General,Fast-Food Restaurants (Quick Payment Service Pilot,GPC
Statement 20/03/2018 - 17/04/2018,Corporate Resources,Rose & Radish,06/04/2018,14.19,Other Expenditure - General,Florists,GPC
Statement 20/03/2018 - 17/04/2018,Corporate Resources,Royal Mail,04/04/2018,500.00,Provisions - General,Postage Stamps,GPC
Statement 20/03/2018 - 17/04/2018,Corporate Resources,Royal Mail,04/04/2018,213.86,Provisions - General,Postage Stamps,GPC
Statement 20/03/2018 - 17/04/2018,Corporate Resources,Royal Schools Of M,26/03/2018,12.00,Other Services - General,Charitable and Social Service Organizations,GPC
Statement 20/03/2018 - 17/04/2018,Corporate Resources,Ryman,24/03/2018,12.07,Stationery - General,"Stationery, Office, and School Supply Stores",GPC
Statement 20/03/2018 - 17/04/2018,Corporate Resources,Safetyliftingear,26/03/2018,232.37,Other Expenditure - General,Hardware Stores,GPC
Statement 20/03/2018 - 17/04/2018,Corporate Resources,Sainsburys S/mkts,31/03/2018,10.00,General Equipment - General,"Grocery Stores, Supermarkets",GPC
Statement 20/03/2018 - 17/04/2018,Corporate Resources,Screwfix,30/03/2018,6.66,Operational Equipment - General,"Building Materials, Lumber Stores",GPC
Statement 20/03/2018 - 17/04/2018,Corporate Resources,Screwfix,09/04/2018,19.95,Other Expenditure - General,"Building Materials, Lumber Stores",GPC
Statement 20/03/2018 - 17/04/2018,Corporate Resources,Screwfix,19/03/2018,3.33,Other Expenditure - General,"Building Materials, Lumber Stores",GPC
Statement 20/03/2018 - 17/04/2018,Corporate Resources,Screwfix,19/03/2018,3.33,Other Expenditure - General,"Building Materials, Lumber Stores",GPC
Statement 20/03/2018 - 17/04/2018,Corporate Resources,Screwfix,30/03/2018,29.15,Other Services - General,"Building Materials, Lumber Stores",GPC
Statement 20/03/2018 - 17/04/2018,Corporate Resources,Sheffield Cc -Onoff St,28/03/2018,4.17,Public Transport -  Staff - General,Government Services-Not Elsewhere Classified,GPC
Statement 20/03/2018 - 17/04/2018,Corporate Resources,Shell Ashby,07/04/2018,2.05,Other Expenditure - General,Service Stations (with or without Ancillary Servic,GPC
Statement 20/03/2018 - 17/04/2018,Corporate Resources,Shu Online Store,29/03/2018,480.00,Training Expenses - General,"Colleges, Universities, Professional Schools, and",GPC
Statement 20/03/2018 - 17/04/2018,Corporate Resources,Slb Supplies Limit,21/03/2018,88.00,Other Services - General,Pet Shops-Pet Food and Supplies,GPC
Statement 20/03/2018 - 17/04/2018,Corporate Resources,Slb Supplies Limit,29/03/2018,54.00,Other Services - General,Pet Shops-Pet Food and Supplies,GPC
Statement 20/03/2018 - 17/04/2018,Corporate Resources,Smartsheet,04/04/2018,14.00,Other Expenditure - General,Computer Software Stores,GPC
Statement 20/03/2018 - 17/04/2018,Corporate Resources,Stk*bigstockphoto.Com,12/04/2018,269.00,Training Expenses - General,"Commercial Photography, Art, Graphics",GPC
Statement 20/03/2018 - 17/04/2018,Corporate Resources,Stonewall Equality,04/04/2018,299.00,Training Expenses - General,Charitable and Social Service Organizations,GPC
Statement 20/03/2018 - 17/04/2018,Corporate Resources,Suk Retail Ltd,06/04/2018,29.55,Stationery - General,"Stationery, Office, and School Supply Stores",GPC
Statement 20/03/2018 - 17/04/2018,Corporate Resources,Suk Retail Ltd,11/04/2018,4.77,Stationery - General,"Stationery, Office, and School Supply Stores",GPC
Statement 20/03/2018 - 17/04/2018,Corporate Resources,Suk Retail Ltd,16/04/2018,4.16,Stationery - General,"Stationery, Office, and School Supply Stores",GPC
Statement 20/03/2018 - 17/04/2018,Corporate Resources,Suk Retail Ltd,27/03/2018,24.96,Subsistence - General,"Stationery, Office, and School Supply Stores",GPC
Statement 20/03/2018 - 17/04/2018,Corporate Resources,Taylors Buildbase,19/03/2018,10.04,Other Services - General,"Building Materials, Lumber Stores",GPC
Statement 20/03/2018 - 17/04/2018,Corporate Resources,Tesco Store 2849,29/03/2018,29.00,Materials - General,"Grocery Stores, Supermarkets",GPC
Statement 20/03/2018 - 17/04/2018,Corporate Resources,Tesco Stores 5731,09/04/2018,6.83,Subsistence - General,"Grocery Stores, Supermarkets",GPC
Statement 20/03/2018 - 17/04/2018,Corporate Resources,Tesco Stores 6135,20/03/2018,6.39,Other Expenditure - General,"Grocery Stores, Supermarkets",GPC
Statement 20/03/2018 - 17/04/2018,Corporate Resources,The Post Office,28/03/2018,6.50,Postal Services - General,Postage Stamps,GPC
Statement 20/03/2018 - 17/04/2018,Corporate Resources,The Tiles Hall Cafe,10/04/2018,4.80,Subsistence - General,Government Services-Not Elsewhere Classified,GPC
Statement 20/03/2018 - 17/04/2018,Corporate Resources,The Works,28/03/2018,13.50,Other Expenditure - General,Discount Stores,GPC
Statement 20/03/2018 - 17/04/2018,Corporate Resources,The Works,31/03/2018,6.67,Other Expenditure - General,Discount Stores,GPC
Statement 20/03/2018 - 17/04/2018,Corporate Resources,Timpson Ltd,11/04/2018,15.40,Other Expenditure - General,"Shoe Repair Shops, Shoe Shine Parlors, Hat Cleanin",GPC
Statement 20/03/2018 - 17/04/2018,Corporate Resources,Trading Standards Inst,10/04/2018,138.00,Training Expenses - General,CombinationMail/Phones and Retail Merchants,GPC
Statement 20/03/2018 - 17/04/2018,Corporate Resources,Uber Trip 2qb53 Help.Uber,03/04/2018,8.19,Public Transport -  Staff - General,Taxicabs and Limousines,GPC
Statement 20/03/2018 - 17/04/2018,Corporate Resources,Uber Trip C6lsa Help.Uber,03/04/2018,7.60,Public Transport -  Staff - General,Taxicabs and Limousines,GPC
Statement 20/03/2018 - 17/04/2018,Corporate Resources,Uber Trip Offnw Help.Uber,03/04/2018,7.43,Public Transport -  Staff - General,Taxicabs and Limousines,GPC
Statement 20/03/2018 - 17/04/2018,Corporate Resources,Uber Trip Py43y Help.Uber,10/04/2018,9.17,Public Transport -  Staff - General,Taxicabs and Limousines,GPC
Statement 20/03/2018 - 17/04/2018,Corporate Resources,Uber Trip Xsg3e Help.Uber,03/04/2018,12.56,Public Transport -  Staff - General,Taxicabs and Limousines,GPC
Statement 20/03/2018 - 17/04/2018,Corporate Resources,Uber Trip Z2qxb Help.Uber,10/04/2018,7.80,Public Transport -  Staff - General,Taxicabs and Limousines,GPC
Statement 20/03/2018 - 17/04/2018,Corporate Resources,Up And Under/Inet,23/03/2018,93.86,General Equipment - General,Sporting Goods Stores,GPC
Statement 20/03/2018 - 17/04/2018,Corporate Resources,Up And Under/Inet,23/03/2018,162.50,General Equipment - General,Sporting Goods Stores,GPC
Statement 20/03/2018 - 17/04/2018,Corporate Resources,Upper Crust-12941713,27/03/2018,1.88,Subsistence - General,Fast-Food Restaurants (Quick Payment Service Pilot,GPC
Statement 20/03/2018 - 17/04/2018,Corporate Resources,Upt-East Midlands Trn-Lb,04/04/2018,10.00,Public Transport -  Staff - General,Professional Services-Not Elsewhere Classified,GPC
Statement 20/03/2018 - 17/04/2018,Corporate Resources,Upt-East Midlands Trn-Lb,09/04/2018,7.50,Public Transport -  Staff - General,Professional Services-Not Elsewhere Classified,GPC
Statement 20/03/2018 - 17/04/2018,Corporate Resources,Upt-East Midlands Trn-Lb,27/03/2018,10.00,Public Transport -  Staff - General,Professional Services-Not Elsewhere Classified,GPC
Statement 20/03/2018 - 17/04/2018,Corporate Resources,Viking,21/03/2018,44.83,Stationery - General,"Stationary, Office Supplies, Printing and Writing",GPC
Statement 20/03/2018 - 17/04/2018,Corporate Resources,Viking,20/03/2018,28.64,Training Expenses - General,"Stationary, Office Supplies, Printing and Writing",GPC
Statement 20/03/2018 - 17/04/2018,Corporate Resources,Vue*ncs Citb Hs&e Test,28/03/2018,19.50,Training Expenses - General,Schools and Educational Services-Not Elsewhere Cla,GPC
Statement 20/03/2018 - 17/04/2018,Corporate Resources,Waterstones,11/04/2018,6.99,Other Services - General,Book Stores,GPC
Statement 20/03/2018 - 17/04/2018,Corporate Resources,West Coast Trains,09/04/2018,57.90,Public Transport -  Staff - General,Passenger Railways,GPC
Statement 20/03/2018 - 17/04/2018,Corporate Resources,West Coast Trains,19/03/2018,12.00,Public Transport -  Staff - General,Automobile Parking Lots and Garages,GPC
Statement 20/03/2018 - 17/04/2018,Corporate Resources,West Coast Trains,22/03/2018,12.00,Public Transport -  Staff - General,Automobile Parking Lots and Garages,GPC
Statement 20/03/2018 - 17/04/2018,Corporate Resources,Wh Smith,23/03/2018,14.99,Other Services - General,News Dealers and Newsstands,GPC
Statement 20/03/2018 - 17/04/2018,Corporate Resources,Wickes,05/04/2018,38.92,Operational Equipment - General,"Building Materials, Lumber Stores",GPC
Statement 20/03/2018 - 17/04/2018,Corporate Resources,Wickes,19/03/2018,16.07,Other Expenditure - General,"Building Materials, Lumber Stores",GPC
Statement 20/03/2018 - 17/04/2018,Corporate Resources,Wickes,08/04/2018,30.78,Other Services - General,"Building Materials, Lumber Stores",GPC
Statement 20/03/2018 - 17/04/2018,Corporate Resources,Wilko Retail Limit,20/03/2018,64.85,Other Expenditure - General,Household Appliance Stores,GPC
Statement 20/03/2018 - 17/04/2018,Corporate Resources,Wilko Retail Limit,02/04/2018,2.00,Other Services - General,Household Appliance Stores,GPC
Statement 20/03/2018 - 17/04/2018,Corporate Resources,Wilko Retail Limit,09/04/2018,30.50,Other Services - General,Household Appliance Stores,GPC
Statement 20/03/2018 - 17/04/2018,Corporate Resources,Wilko Retail Limit,20/03/2018,3.75,Other Services - General,Household Appliance Stores,GPC
Statement 20/03/2018 - 17/04/2018,Corporate Resources,Wilko Retail Limit,29/03/2018,14.50,Other Services - General,Household Appliance Stores,GPC
Statement 20/03/2018 - 17/04/2018,Corporate Resources,Wilko Retail Limit,30/03/2018,38.90,Other Services - General,Household Appliance Stores,GPC
Statement 20/03/2018 - 17/04/2018,Corporate Resources,Wilko Retail Limit,28/03/2018,10.00,Provisions - General,Household Appliance Stores,GPC
Statement 20/03/2018 - 17/04/2018,Corporate Resources,Wilmington Shared Service,28/03/2018,207.50,Subscriptions - General,Membership Organizations-Not Elsewhere Classified,GPC
Statement 20/03/2018 - 17/04/2018,Corporate Resources,Winfields Megastore,11/04/2018,69.17,Other Services - General,Tent and Awning Shops,GPC
Statement 20/03/2018 - 17/04/2018,Corporate Resources,Winfields Megastore,11/04/2018,32.72,Other Services - General,Tent and Awning Shops,GPC
Statement 20/03/2018 - 17/04/2018,Corporate Resources,Wm Morrison 054,31/03/2018,7.56,Other Expenditure - General,"Grocery Stores, Supermarkets",GPC
Statement 20/03/2018 - 17/04/2018,Corporate Resources,Wm Morrison 054,02/04/2018,15.00,Other Services - General,"Grocery Stores, Supermarkets",GPC
Statement 20/03/2018 - 17/04/2018,Corporate Resources,Wm Morrison 054,20/03/2018,4.00,Other Services - General,"Grocery Stores, Supermarkets",GPC
Statement 20/03/2018 - 17/04/2018,Corporate Resources,Wm Morrisons,07/04/2018,27.71,Provisions - General,"Grocery Stores, Supermarkets",GPC
Statement 20/03/2018 - 17/04/2018,Corporate Resources,Www.Blackwell.Co.Uk,29/03/2018,20.51,Books - General,"Stationery, Office, and School Supply Stores",GPC
Statement 20/03/2018 - 17/04/2018,Corporate Resources,Www.Cipfa.Org.Uk/pfmco,29/03/2018,365.50,Books - General,Membership Organizations-Not Elsewhere Classified,GPC
Statement 20/03/2018 - 17/04/2018,Corporate Resources,Www.Commidea.Com,26/03/2018,96.97,IT Equipment - General,Computer and Data Processing Services,GPC
Statement 20/03/2018 - 17/04/2018,Corporate Resources,Www.Eurocharts.Co.Uk,11/04/2018,1177.14,Printing - General,Miscellaneous Publishing and  Printing,GPC
Statement 20/03/2018 - 17/04/2018,Corporate Resources,Www.Nisbets.Com,28/03/2018,21.73,Other Equipment & Materials - General,Catalog Merchants,GPC
Statement 20/03/2018 - 17/04/2018,Corporate Resources,Www.Nisbets.Com,28/03/2018,41.63,Other Equipment & Materials - General,Catalog Merchants,GPC
Statement 20/03/2018 - 17/04/2018,Corporate Resources,Www.Officefurnitureonl,16/04/2018,255.00,Other Expenditure - General,"Furniture, Home Furnishings and Equipment Stores,",GPC
Statement 20/03/2018 - 17/04/2018,Corporate Resources,Www.Rslawards.Com,16/04/2018,258.00,Training Expenses - General,Schools and Educational Services-Not Elsewhere Cla,GPC
Statement 20/03/2018 - 17/04/2018,Corporate Resources,Www.Themightycreatives,28/03/2018,-25.00,Training Expenses - General,Charitable and Social Service Organizations,GPC
Statement 20/03/2018 - 17/04/2018,Corporate Resources,Www.Tradersupplies.Co.Uk,22/03/2018,416.67,Catering Equipment - General,"Engineering, Architectural, and Surveying Services",GPC
Statement 20/03/2018 - 17/04/2018,Corporate Resources,Www.Tradersupplies.Co.Uk,22/03/2018,500.00,Catering Equipment - General,"Engineering, Architectural, and Surveying Services",GPC
Statement 20/03/2018 - 17/04/2018,Corporate Resources,Www.Tradersupplies.Co.Uk,22/03/2018,684.55,Catering Equipment - General,"Engineering, Architectural, and Surveying Services",GPC
Statement 20/03/2018 - 17/04/2018,Corporate Resources,Youngs Head Office,12/04/2018,4.75,Subsistence - General,"Eating Places, Restaurants",GPC
Statement 20/03/2018 - 17/04/2018,E&T,Amazon Svcs Eu-Uk Amazon.,05/04/2018,19.57,Books - General,Book Stores,GPC
Statement 20/03/2018 - 17/04/2018,E&T,Amazon Svcs Eu-Uk Amazon.,10/04/2018,156.24,Books - General,Book Stores,GPC
Statement 20/03/2018 - 17/04/2018,E&T,Amazon Svcs Eu-Uk Amazon.,22/03/2018,121.16,Other Equipment & Materials - General,Book Stores,GPC
Statement 20/03/2018 - 17/04/2018,E&T,Amazon UK Marketplace,15/04/2018,46.86,Other Expenditure - General,Book Stores,GPC
Statement 20/03/2018 - 17/04/2018,E&T,Disccycle/Leisureout,21/03/2018,41.95,Other Expenditure - General,Bicycle Shops-Sales and Service,GPC
Statement 20/03/2018 - 17/04/2018,E&T,Dvla Vehicle Tax,23/03/2018,167.50,Other Expenditure - General,Government Services-Not Elsewhere Classified,GPC
Statement 20/03/2018 - 17/04/2018,E&T,Dvla Vehicle Tax,12/04/2018,652.50,Road Licences - General,Government Services-Not Elsewhere Classified,GPC
Statement 20/03/2018 - 17/04/2018,E&T,Dvla Vehicle Tax,12/04/2018,652.50,Road Licences - General,Government Services-Not Elsewhere Classified,GPC
Statement 20/03/2018 - 17/04/2018,E&T,Dvla Vehicle Tax,12/04/2018,252.50,Road Licences - General,Government Services-Not Elsewhere Classified,GPC
Statement 20/03/2018 - 17/04/2018,E&T,Dvla Vehicle Tax,12/04/2018,252.50,Road Licences - General,Government Services-Not Elsewhere Classified,GPC
Statement 20/03/2018 - 17/04/2018,E&T,Dvla Vehicle Tax,12/04/2018,252.50,Road Licences - General,Government Services-Not Elsewhere Classified,GPC
Statement 20/03/2018 - 17/04/2018,E&T,Dvla Vehicle Tax,12/04/2018,317.50,Road Licences - General,Government Services-Not Elsewhere Classified,GPC
Statement 20/03/2018 - 17/04/2018,E&T,Dvla Vehicle Tax,12/04/2018,652.50,Road Licences - General,Government Services-Not Elsewhere Classified,GPC
Statement 20/03/2018 - 17/04/2018,E&T,Dvla Vehicle Tax,12/04/2018,167.50,Road Licences - General,Government Services-Not Elsewhere Classified,GPC
Statement 20/03/2018 - 17/04/2018,E&T,Dvla Vehicle Tax,12/04/2018,167.50,Road Licences - General,Government Services-Not Elsewhere Classified,GPC
Statement 20/03/2018 - 17/04/2018,E&T,Dvla Vehicle Tax,12/04/2018,167.50,Road Licences - General,Government Services-Not Elsewhere Classified,GPC
Statement 20/03/2018 - 17/04/2018,E&T,Dvla Vehicle Tax,12/04/2018,167.50,Road Licences - General,Government Services-Not Elsewhere Classified,GPC
Statement 20/03/2018 - 17/04/2018,E&T,Dvla Vehicle Tax,22/03/2018,242.50,Road Licences - General,Government Services-Not Elsewhere Classified,GPC
Statement 20/03/2018 - 17/04/2018,E&T,Dvla Vehicle Tax,22/03/2018,242.50,Road Licences - General,Government Services-Not Elsewhere Classified,GPC
Statement 20/03/2018 - 17/04/2018,E&T,Dvla Vehicle Tax,22/03/2018,167.50,Road Licences - General,Government Services-Not Elsewhere Classified,GPC
Statement 20/03/2018 - 17/04/2018,E&T,Dvla Vehicle Tax,22/03/2018,242.50,Road Licences - General,Government Services-Not Elsewhere Classified,GPC
Statement 20/03/2018 - 17/04/2018,E&T,Dvla Vehicle Tax,23/03/2018,652.50,Road Licences - General,Government Services-Not Elsewhere Classified,GPC
Statement 20/03/2018 - 17/04/2018,E&T,Dvla Vehicle Tax,23/03/2018,652.50,Road Licences - General,Government Services-Not Elsewhere Classified,GPC
Statement 20/03/2018 - 17/04/2018,E&T,Dvla Vehicle Tax,23/03/2018,652.50,Road Licences - General,Government Services-Not Elsewhere Classified,GPC
Statement 20/03/2018 - 17/04/2018,E&T,Dvla Vehicle Tax,23/03/2018,167.50,Road Licences - General,Government Services-Not Elsewhere Classified,GPC
Statement 20/03/2018 - 17/04/2018,E&T,Dvla Vehicle Tax,23/03/2018,167.50,Road Licences - General,Government Services-Not Elsewhere Classified,GPC
Statement 20/03/2018 - 17/04/2018,E&T,Dvla Vehicle Tax,23/03/2018,242.50,Road Licences - General,Government Services-Not Elsewhere Classified,GPC
Statement 20/03/2018 - 17/04/2018,E&T,Dvla Vehicle Tax,23/03/2018,242.50,Road Licences - General,Government Services-Not Elsewhere Classified,GPC
Statement 20/03/2018 - 17/04/2018,E&T,Dvla Vehicle Tax,23/03/2018,167.50,Road Licences - General,Government Services-Not Elsewhere Classified,GPC
Statement 20/03/2018 - 17/04/2018,E&T,Dvla Vehicle Tax,23/03/2018,167.50,Road Licences - General,Government Services-Not Elsewhere Classified,GPC
Statement 20/03/2018 - 17/04/2018,E&T,Dvla Vehicle Tax,23/03/2018,167.50,Road Licences - General,Government Services-Not Elsewhere Classified,GPC
Statement 20/03/2018 - 17/04/2018,E&T,Dvla Vehicle Tax,23/03/2018,167.50,Road Licences - General,Government Services-Not Elsewhere Classified,GPC
Statement 20/03/2018 - 17/04/2018,E&T,Dvla Vehicle Tax,23/03/2018,242.50,Road Licences - General,Government Services-Not Elsewhere Classified,GPC
Statement 20/03/2018 - 17/04/2018,E&T,Dvla Vehicle Tax,23/03/2018,167.50,Road Licences - General,Government Services-Not Elsewhere Classified,GPC
Statement 20/03/2018 - 17/04/2018,E&T,Dvla Vehicle Tax,23/03/2018,167.50,Road Licences - General,Government Services-Not Elsewhere Classified,GPC
Statement 20/03/2018 - 17/04/2018,E&T,Dvla Vehicle Tax,23/03/2018,167.50,Road Licences - General,Government Services-Not Elsewhere Classified,GPC
Statement 20/03/2018 - 17/04/2018,E&T,Dvla Vehicle Tax,23/03/2018,167.50,Road Licences - General,Government Services-Not Elsewhere Classified,GPC
Statement 20/03/2018 - 17/04/2018,E&T,Dvla Vehicle Tax,23/03/2018,167.50,Road Licences - General,Government Services-Not Elsewhere Classified,GPC
Statement 20/03/2018 - 17/04/2018,E&T,Dvla Vehicle Tax,23/03/2018,167.50,Road Licences - General,Government Services-Not Elsewhere Classified,GPC
Statement 20/03/2018 - 17/04/2018,E&T,Dvla Vehicle Tax,26/03/2018,242.50,Road Licences - General,Government Services-Not Elsewhere Classified,GPC
Statement 20/03/2018 - 17/04/2018,E&T,Dvla Vehicle Tax,29/03/2018,652.50,Road Licences - General,Government Services-Not Elsewhere Classified,GPC
Statement 20/03/2018 - 17/04/2018,E&T,Dvsa Mot Comp 2,10/04/2018,205.00,Petrol/Oil/Tyres/Spares - General,Government Services-Not Elsewhere Classified,GPC
Statement 20/03/2018 - 17/04/2018,E&T,East Midlands Trains,05/04/2018,685.50,Materials - General,Passenger Railways,GPC
Statement 20/03/2018 - 17/04/2018,E&T,East Midlands Trains,14/04/2018,-498.50,Materials - General,Passenger Railways,GPC
Statement 20/03/2018 - 17/04/2018,E&T,East Midlands Trains,05/04/2018,383.50,Public Transport -  Staff - General,Passenger Railways,GPC
Statement 20/03/2018 - 17/04/2018,E&T,East Midlands Trains,11/04/2018,123.70,Public Transport -  Staff - General,Passenger Railways,GPC
Statement 20/03/2018 - 17/04/2018,E&T,East Midlands Trains,11/04/2018,509.50,Public Transport -  Staff - General,Passenger Railways,GPC
Statement 20/03/2018 - 17/04/2018,E&T,East Midlands Trains,12/04/2018,23.00,Public Transport -  Staff - General,Passenger Railways,GPC
Statement 20/03/2018 - 17/04/2018,E&T,East Midlands Trains,12/04/2018,32.30,Public Transport -  Staff - General,Passenger Railways,GPC
Statement 20/03/2018 - 17/04/2018,E&T,East Midlands Trains,28/03/2018,25.90,Public Transport -  Staff - General,Passenger Railways,GPC
Statement 20/03/2018 - 17/04/2018,E&T,Espo,16/04/2018,57.46,Stationery - General,Government Services-Not Elsewhere Classified,GPC
Statement 20/03/2018 - 17/04/2018,E&T,National Express Limited,22/03/2018,20.90,Training Expenses - General,"Bus Lines, Charters, Tour Buses",GPC
Statement 20/03/2018 - 17/04/2018,E&T,Nott Emt Carpark,28/03/2018,5.00,Casual/Essential - General,Automobile Parking Lots and Garages,GPC
Statement 20/03/2018 - 17/04/2018,E&T,Post Office Counter,27/03/2018,650.00,Road Licences - General,Postage Stamps,GPC
Statement 20/03/2018 - 17/04/2018,E&T,Sheriff Hotel,21/03/2018,175.00,Training Expenses - General,"Lodging-Hotels, Motels, Resorts",GPC
Statement 20/03/2018 - 17/04/2018,E&T,Tesco Store 2819,10/04/2018,48.07,Materials - General,"Grocery Stores, Supermarkets",GPC
Statement 20/03/2018 - 17/04/2018,E&T,Tesco Store 2819,10/04/2018,-42.08,Materials - General,"Grocery Stores, Supermarkets",GPC
Statement 20/03/2018 - 17/04/2018,E&T,Www.Argos.Co.Uk,05/04/2018,28.94,Materials - General,Discount Stores,GPC
Statement 20/03/2018 - 17/04/2018,E&T,Www.Parcelmonkey.Co.Uk,05/04/2018,17.24,Private Contractors - General,"Courier Services-Air and Ground, and Freight Forw",GPC
Statement 20/03/2018 - 17/04/2018,Public Health,Amazon Svcs Eu-Uk Amazon.,09/04/2018,3.33,Other Equipment & Materials - General,Book Stores,GPC
Statement 20/03/2018 - 17/04/2018,Public Health,Amazon Svcs Eu-Uk Amazon.,22/03/2018,14.20,Stationery - General,Book Stores,GPC
Statement 20/03/2018 - 17/04/2018,Public Health,Amazon UK Retail,11/04/2018,4.94,IT Equipment - Purchase - Hardware,Direct Marketers - Other,GPC
Statement 20/03/2018 - 17/04/2018,Public Health,Eb *applied Suicide In,06/04/2018,310.00,Other Equipment & Materials - General,Business Services-Not Elsewhere Classified,GPC
Statement 20/03/2018 - 17/04/2018,Public Health,Facebk Thba6eew32,31/03/2018,152.18,Advertising - General,Advertising Services,GPC
Statement 20/03/2018 - 17/04/2018,Public Health,Facebk Vhba6eew32,31/03/2018,40.62,Advertising - General,Advertising Services,GPC
Statement 20/03/2018 - 17/04/2018,Public Health,Ggh Catering,19/03/2018,31.25,Subsistence - General,Fast-Food Restaurants (Quick Payment Service Pilot,GPC
Statement 20/03/2018 - 17/04/2018,Public Health,Hub By Premier Inn 496,10/04/2018,118.00,Subsistence - General,PREMIER TRAVEL,GPC
Statement 20/03/2018 - 17/04/2018,Public Health,Leicester City Council,29/03/2018,3.00,Subsistence - General,Government Services-Not Elsewhere Classified,GPC
Statement 20/03/2018 - 17/04/2018,Public Health,Linkedin-372*8066494,27/03/2018,74.11,Advertising - General,Continuity/Subscription Merchants,GPC
Statement 20/03/2018 - 17/04/2018,Public Health,Linkedin-395*7768033,19/03/2018,27.80,Other Expenditure - General,Continuity/Subscription Merchants,GPC
Statement 20/03/2018 - 17/04/2018,Public Health,Linkedin-399*9214853,16/04/2018,12.40,Advertising - General,Continuity/Subscription Merchants,GPC
Statement 20/03/2018 - 17/04/2018,Public Health,Makro Self Service,09/04/2018,52.96,Provisions - General,Wholesale Clubs,GPC
Statement 20/03/2018 - 17/04/2018,Public Health,Maudesport Ltd,26/03/2018,252.49,Publicity/Marketing - General,Sporting Goods Stores,GPC
Statement 20/03/2018 - 17/04/2018,Public Health,McDonalds,21/03/2018,76.95,Contract Catering - General,Fast-Food Restaurants (Quick Payment Service Pilot,GPC
Statement 20/03/2018 - 17/04/2018,Public Health,Spotify P05a35a50d,16/04/2018,8.33,Advertising - General,"Digital Goods - Media, Books, Movies, Music",GPC
Statement 20/03/2018 - 17/04/2018,Public Health,Tesco Stores 2849,09/04/2018,14.74,Materials - General,"Grocery Stores, Supermarkets",GPC
Statement 20/03/2018 - 17/04/2018,Public Health,The Post Office,22/03/2018,31.20,Postal Services - General,Postage Stamps,GPC
Statement 20/03/2018 - 17/04/2018,Public Health,Trainline,04/04/2018,74.50,Provisions - General,Passenger Railways,GPC
Statement 20/03/2018 - 17/04/2018,Public Health,Trainline,13/04/2018,112.00,Public Transport -  Staff - General,Passenger Railways,GPC
Statement 20/03/2018 - 17/04/2018,Public Health,Trainline,16/04/2018,34.75,Public Transport -  Staff - General,Passenger Railways,GPC
Statement 20/03/2018 - 17/04/2018,Public Health,Trainline,22/03/2018,33.75,Public Transport -  Staff - General,Passenger Railways,GPC
"**Amounts stated are net of VAT, except where VAT has not been recovered.",,,,,,,
